Workbook

Sheet Cover
F3: Amendments made on 6 August 2014.
F4: Click here for details.
A8: Distribution Network Service Provider
A9: Annual reporting template
A11: This template is to be used by a DNSP to fulfil its annual reporting obligations to the AER.
A13: Colour coding of input sheets:
A14: Dark blue = AER instructions/headings
A15: Yellow = Input cells
A16: Grey = Not applicable/No inputs required
A18: Leave coloured cells blank if no information exists - PLEASE DO NOT ENTER TEXT unless specifically requested to do so.
A19: All dollar amounts are to be unrounded, and in nominal terms.
A22: DNSP - trading name: | E22: CitiPower Pty Ltd
A24: DNSP - Australian business number: | E24: ACN 064 651 056
A26: Reporting year: | E26: 2015
A30: Business address | D30: Address | F30: 40 Market Street
D31: Suburb | F31: Melbourne
E32: State | F32: VIC | G32: Postcode | H32: 3000
A34: Postal address | D34: Address | F34: Locked Bag 14090
D35: Suburb | F35: Melbourne
E36: State | F36: VIC | G36: Postcode | H36: 8001
A39: Contact name/s | D39: Hannah Williams | E39: Renate Tirpcou | F39: Renate Tirpcou | G39: Renate Tirpcou | H39: Renate Tirpcou
A40: Contact phone/s | D40: 9683 4088 | E40: 9683 4082 | F40: 9683 4082 | G40: 9683 4082 | H40: 9683 4082
A41: Contact email address/s | D41: hwilliams@powercor.com.au | E41: rtirpcou@powercor.com.au | F41: rtirpcou@powercor.com.au | G41: rtirpcou@powercor.com.au | H41: rtirpcou@powercor.com.au
A44: Consumer Price Index | D44: 2010 | E44: 2011 | F44: 2012 | G44: 2013 | H44: 2014 | I44: 2015
A45: ABS CPI (Pub No: 6401.0, All groups, 8 Capital Cities, Sept) | D45: 168.6 | E45: 173.3 | F45: 179.4 | G45: 182.9951904 | H45: 186.9498998 | I45: 191.2659972
A46: ABS CPI (Pub No: 6401.0, All groups, 8 Capital Cities, Sept) | D46: =E46/(1+E54) -> 93.79197324 | E46: =F46/(1+F54) -> 96.40657748 | F46: =G46/(1+G54) -> 99.8 | G46: =H46/(1+H54) -> 101.8 | H46: =I46/(1+I54) -> 104 | I46: 106.4010397
A47: CPI (per cent) | E47: =+E45/D45-1 -> 0.02787663108 | F47: =+F46/E46-1 -> 0.03519907675 | G47: =+G46/F46-1 -> 0.02004008016 | H47: =+H46/G46-1 -> 0.02161100196 | I47: =+I46/H46-1 -> 0.02308692
A48: Reconstructed index (2014 = 100) | D48: =+E48/(1+E47) -> 90.18458966 | E48: =+F48/(1+F47) -> 92.69863219 | F48: =+G48/(1+G47) -> 95.96153846 | G48: =+H48/(1+H47) -> 97.88461538 | H48: 100
A49: Reconstructed index (2015 = 100) | D49: =+E49/(1+E47) -> 88.14948945 | E49: =+F49/(1+F47) -> 90.60680024 | F49: 93.79607596 | G49: =+H49/(1+H47) -> 95.67575684 | H49: =+I49/(1+I47) -> 97.74340581 | I49: 100
D50: * Above CPI is used to adjust forecasts from 2011-15 determination.
E54: =E45/D45-1 -> 0.02787663108 | F54: =F45/E45-1 -> 0.03519907675 | G54: =G45/F45-1 -> 0.02004008016 | H54: =H45/G45-1 -> 0.02161100196 | I54: =I45/H45-1 -> 0.02308692

Sheet Contents
C3: Electricity Distribution Network Service Provider Annual Reporting Template
D4: Table of contents
C7: Cover sheet | D7: Operating activities | E7: 18. Self Insurance
D8: 8a. Operating Activities (T)
C9: Reconciliation (deleted) | D9: 8b. Operating Activities (M) | E9: 19. CHAP
C11: 1a. Income Statement | D11: 9a. Operating Oheads (T) (deleted) | E11: 20. Related Party
C12: 1b. Provisions (deleted) | D12: 9b. Operating Oheads (M) (deleted)
E13: 21. AMI
C14: 2. Demand and Revenue | D14: Overheads
D15: 10. Overheads Allocation (deleted) | E15: 22. Safety and Bushfire
C16: Capex
C17: 3a. Capex - total | D17: 11. Total Overheads (deleted) | E17: 23. Shared assets
C18: 3b. Capex - margins
D19: Other information | E19: Pricing proposal
C20: 4a. Capex overheads - total (deleted) | D20: 12. Cost categories (deleted) | E20: 24. Unmetered supply
C21: 4b. Capex overheads - Margins (deleted)
D22: 13. Avoided Cost Payments | E22: 25. Actual t-2 Distr Tariff
C23: 5. Capex for tax depreciation
D24: 14. Alt Control&Others | E24: 26. Actual t-2 Trans Tariff
C25: Maintenance
C26: 6a. Maintenance - total | D26: 15. EBSS | E26: 27. TUoS cost audit (t-2)
C27: 6b. Maintenance - margin
D28: 16. Juris Scheme | E28: 28. Actual t-2 Juris Revenue
C29: 7a. Maintenance overhead -total (deleted)
C30: 7b. Maintenance ohead - margin (deleted) | D30: 17. DMIS-DMIA | E30: 29. Juris cost audit template

Sheet 1a. Income
B1: =Cover!E22 -> CitiPower Pty Ltd
B2: Income Statement
B3: =Cover!E26 -> 2015
E4: Colour coding:
B5: Dollar unit used in this sheet | E5: Yellow = Input cells
B6: nominal $'000 | E6: Grey = No inputs required
B8: This information is used to monitor revenues for each service classification. Elements of the information are used to calculate financial ratios, used for intra and inter-business comparison and reconcile statutory amounts with regulatory amounts.
B12: Statutory Account code or reference to account code | C12: Description | D12: Audited Statutory Accounts | E12: Adjustments | F12: Distribution business | G12: Standard Control Services | H12: AMI | I12: Alternative Control Services - Public Lighting | K12: Alternative Control Services | M12: Negotiated Services | N12: Unregulated Services
I13: Energy efficient | J13: Non energy efficient | K13: Fee based services | L13: Quoted services
C14: Distribution Revenue | D14: 338953.0503 | E14: 0 | F14: 338953.0503 | G14: 287663.0822 | H14: 36868.20092 | I14: 2147.456393 | J14: 2195.311277 | K14: 5428.372201 | L14: 4474.20396 | M14: 176.42694 | N14: 0
C15: TUOS revenue | D15: 107561.9681 | E15: -107561.9681 | F15: 0 | G15: 0 | H15: 0 | I15: 0 | J15: 0 | K15: 0 | L15: 0 | M15: 0 | N15: 0
C16: Cross boundary revenue | D16: 3810.89484 | E16: -3810.89484 | F16: 0 | G16: 0 | H16: 0 | I16: 0 | J16: 0 | K16: 0 | L16: 0 | M16: 0 | N16: 0
C17: Jurisdictional Scheme Amounts | D17: 4010.41661 | E17: -4010.41661 | F17: 0 | G17: 0 | H17: 0 | I17: 0 | J17: 0 | K17: 0 | L17: 0 | M17: 0 | N17: 0
C18: Profit from sale of Fixed Assets | D18: -17.95147 | E18: 16.67665 | F18: -1.27482 | G18: -1.27482 | H18: 0 | I18: 0 | J18: 0 | K18: 0 | L18: 0 | M18: 0 | N18: 0
C19: Customer Contributions | D19: 28703.45497 | E19: -28703.45497 | F19: 0 | G19: 0 | H19: 0 | I19: 0 | J19: 0 | K19: 0 | L19: 0 | M19: 0 | N19: 0
C20: Interest income | D20: 128.4401 | E20: 0 | F20: 128.4401 | G20: 118.0734471 | H20: 9.634449725 | I20: 0.3107570081 | J20: 0.4214461981 | K20: 0 | L20: 0 | M20: 0 | N20: 0
C21: Revenue from use of RAB assets for non-SCS purposes | D21: 0 | E21: 0 | F21: 0 | G21: 0 | H21: 0 | I21: 0 | J21: 0 | K21: 0 | L21: 0 | M21: 0 | N21: 0
C22: Other Revenue | D22: 26771.65236 | E22: -27666.70486 | F22: -895.0525 | G22: 727.02199 | H22: -4342.44609 | I22: -99.195 | J22: 0 | K22: 0 | L22: 0 | M22: 0 | N22: 2819.5666
C23: Total revenue | D23: =SUM(D14:D22) -> 509921.9258 | E23: -171736.7627 | F23: 338185.1631 | G23: 288506.9028 | H23: 32535.38928 | I23: 2048.57215 | J23: 2195.732723 | K23: 5428.372201 | L23: 4474.20396 | M23: 176.42694 | N23: 2819.5666
C24: TUOS costs | D24: 107561.9681 | E24: -107561.9681 | F24: 0 | G24: 0 | H24: 0 | I24: 0 | J24: 0 | K24: 0 | L24: 0 | M24: 0 | N24: 0
C25: Cross boundary costs | D25: 3810.89484 | E25: -3810.89484 | F25: 0 | G25: 0 | H25: 0 | I25: 0 | J25: 0 | K25: 0 | L25: 0 | M25: 0 | N25: 0
C26: Jurisdictional Scheme Amounts | D26: 4010.41661 | E26: -4010.41661 | F26: 0 | G26: 0 | H26: 0 | I26: 0 | J26: 0 | K26: 0 | L26: 0 | M26: 0 | N26: 0
C27: Maintenance | D27: 32384.60468 | E27: 0 | F27: 32384.60468 | G27: 25985.57513 | H27: 928.726 | I27: 922.4360928 | J27: 1251.000538 | K27: 1502.431558 | L27: 1794.435365 | M27: 0 | N27: 0
C28: Operating Expenses | D28: 66265.67887 | E28: -23884.39085 | F28: 42381.28803 | G28: 30028.39741 | H28: 6067.90067 | I28: 27.10668245 | J28: 36.76186848 | K28: 3130.616915 | L28: 3090.50468 | M28: 0 | N28: 0
C29: Depreciation | D29: 75425.31203 | E29: 27773.32471 | F29: 103198.6367 | G29: 84256.16814 | H29: 18352.39931 | I29: 250.4334402 | J29: 339.6358522 | K29: 0 | L29: 0 | M29: 0 | N29: 0
C30: Finance Charges | D30: 10776.65121 | E30: -10776.65121 | F30: 0 | G30: 0 | H30: 0 | I30: 0 | J30: 0 | K30: 0 | L30: 0 | M30: 0 | N30: 0
C31: Loss from sale of Fixed Assets | D31: 0 | E31: 16.67665 | F31: 16.67665 | G31: 16.67665 | H31: 0 | I31: 0 | J31: 0 | K31: 0 | L31: 0 | M31: 0 | N31: 0
C32: Impairment Losses (Nature) | D32: 0 | E32: 0 | F32: 0 | G32: 0 | H32: 0 | I32: 0 | J32: 0 | K32: 0 | L32: 0 | M32: 0 | N32: 0
C33: Costs from use of RAB assets for non-SCS purposes | D33: 0 | E33: 0 | F33: 0 | G33: 0 | H33: 0 | I33: 0 | J33: 0 | K33: 0 | L33: 0 | M33: 0 | N33: 0
C34: Other | D34: 0 | E34: 0 | F34: 0 | G34: 0 | H34: 0 | I34: 0 | J34: 0 | K34: 0 | L34: 0 | M34: 0 | N34: 0
C35: Profit before Tax (PBT) | D35: =D23-SUM(D24:D34) -> 209686.3995 | E35: -49482.44249 | F35: 160203.957 | G35: 148220.0855 | H35: 7186.363298 | I35: 848.5959346 | J35: 568.3344643 | K35: 795.3237273 | L35: -410.7360849 | M35: 176.42694 | N35: 2819.5666
C36: Income Tax Expenses /(Benefit) | D36: 1748.39946 | E36: -412.5926905 | F36: 1335.806769 | G36: 1235.883291 | H36: 59.92107138 | I36: 7.075731558 | J36: 4.738865625 | K36: 6.631539189 | L36: -3.424784587 | M36: 1.471076653 | N36: 23.51000701
C37: Profit after tax | D37: =D35-D36 -> 207938 | E37: -49069.8498 | F37: 158868.1502 | G37: 146984.2022 | H37: 7126.442227 | I37: 841.5202031 | J37: 563.5955987 | K37: 788.6921881 | L37: -407.3113003 | M37: 174.9558633 | N37: 2796.056593
B39: Note:
B40: Balancing is required at distribution business level: Distribution business = SCS+AMI+ACS+Negotiated services; and Audited Statutory accounts + Adjustments = Distribution business
B42: In addition it is mandatory to produce for each cost or revenue item that has been allocated to the distribution services/AMI a supporting
B43: workpaper that includes the following:
B44: a) the amounts that have been directly attributed to each distribution service
B45: b) the amounts that have been allocated to each distribution service
B46: c) a description of the allocation basis
B47: d) the numeric quantity of each allocator.
B50: Definitions
B51: The accounting terms used in this template have the same meaning as is used for the prepartion of the statutory accounts.
B52: The service classifications have the same meaning as that used in Citipower's approved CAM.
B53: Audited statutory accounts: | C53: the audited set of accounts prepared in accordance with the requirements of the Australian Securities and Investments Commission (ASIC) and the Corporations Act 2001 (Cth).

Sheet 2. Demand and Revenue
B1: =Cover!E22 -> CitiPower Pty Ltd
B2: Total Revenue and Demand
B3: =Cover!E26 -> 2015
D4: Colour coding:
B5: Dollar unit used in this sheet | D5: Yellow = Input cells
B6: nominal $'000 | D6: Grey = No inputs required
B8: Table 1 Standard Control Services Revenue - Current Year
B9: Note: insert additional rows as necessary
B11: Statutory Account code or reference to account code | C11: Tariff categories | D11: Amount of Electricity Distributed (GWh) | E11: Distribution Revenue
C12: C1R - Residential Single Rate | D12: 830.1928718 | E12: 53118.8091
C13: C1RB - Residential Single Rate - Bulk | D13: 105.1741412 | E13: 4742.096062
C14: C13R - Residential - flexible pricing | D14: 3.434222038 | E14: 279.064125
C15: C13RB - Residential - flexible pricing bulk | D15: 0.3084143238 | E15: 25.25613209
C16: C2R - Residential Two Rate | D16: 69.72202556 | E16: 5113.920098
C17: C2RB - Residential Two Rate - Bulk | D17: 23.59525782 | E17: 1920.133328
C18: C2ROP - Residential Two Rate 5d - Controlled Load | D18: 20.03765794 | E18: 433.541947
C19: C2RBOP - Residential Two Rate 5d - Bulk - Controlled Load | D19: 7.359412654 | E19: 105.2065119
C20: C3R - Residential Three Rate | D20: 117.3909127 | E20: 8456.466252
C21: C3RB - Residential Three Rate - Bulk | D21: 30.30956886 | E21: 2823.915014
C22: CDS - Dedicated Supplies | D22: 39.32347098 | E22: 716.111583
C23: CDSB - Dedicated Supplies - Bulk | D23: 2.601665589 | E23: 41.50528717
C24: C1G - General Purpose Single Rate | D24: 323.0855097 | E24: 29827.68566
C25: C1GB - General Purpose Single Rate - Bulk | D25: 129.2771072 | E25: 9520.868552
C26: C2G5 - General Purpose Two Rate (5 day peak) | D26: 535.7771863 | E26: 32526.76413
C27: C2G5B - General Purpose Two Rate (5 day peak) bulk | D27: 165.9234444 | E27: 5007.684595
C28: C3G - General Purpose Interval | D28: 195.2498759 | E28: 12366.28676
C29: C3GB - General Purpose Interval Bulk | D29: 295.709271 | E29: 8886.075986
C30: C14G - Non-Residential | D30: 1.823497859 | E30: 57.59789789
C31: C14GB - Non-Residential - Bulk | D31: 1.99699372 | E31: 34.56151378
C32: C2G7 - General Purpose Two Rate (7 day peak) | D32: 124.8500275 | E32: 9962.314292
C33: C2G7B - General Purpose Two Rate (7 day peak) bulk | D33: 31.92182443 | E33: 1950.577511
C34: C2U - Unmetered Supplies | D34: 34.92324269 | E34: 1142.336178
C35: C2DL - Large LV Demand metered | D35: 160.3028864 | E35: 9753.514798
C36: C2L7 - Large two Rate (7 day Peak) Bulk | D36: 17.86003352 | E36: 509.3594295
C37: C2DLB - Large LV Demand metered bulk | D37: 1741.35225 | E37: 63367.07944
C38: C2DLER - Large LV Demand R | D38: 4.330826665 | E38: 305.1773781
C39: C2DLEG - Large LV Demand G | D39: -4.905720623 | E39: -155.1879972
C40: C2DLBER - Large LV Demand Bulk R | D40: 106.2875061 | E40: 4014.619093
C41: C2DLBEG - Large LV Demand Bulk G | D41: 116.2647715 | E41: 6121.706482
C42: C2DH - HV Demand Metered | D42: 602.1368798 | E42: 13580.60079
C43: C2DHD1 - HV Holden | D43: 0 | E43: 0
C44: C2DHER - HV Demand R | D44: 0 | E44: -3.408828775e-15
C45: C2DHEG - HV Demand G | D45: 8.161299421 | E45: 256.6321639
C46: C2DT - Subtransmission | D46: 102.3947269 | E46: 850.8020834
C48: Total | D48: =SUM(D12:D46) -> 5944.173062 | E48: =SUM(E12:E46) -> 287663.0822
B50: Table 2 Standard Control Revenue - Prior Year
B51: Note: insert additional rows as necessary
B53: Statutory Account code or reference to account code | C53: Tariff categories | D53: Amount of Electricity Distributed (GWh) | E53: Distribution Revenue
C54: C1R - Residential Single Rate | D54: 793.9918938 | E54: 50088.04761
C55: C1RB - Residential Single Rate - Bulk | D55: 99.82459949 | E55: 5446.576892
C56: C13R - Residential - flexible pricing | D56: 1.794664026 | E56: 78.53352047
C57: C13RB - Residential - flexible pricing bulk | D57: 0.2469302743 | E57: 11.27068031
C58: C2R - Residential Two Rate | D58: 80.84850937 | E58: 4509.157905
C59: C2RB - Residential Two Rate - Bulk | D59: 27.99112142 | E59: 1308.92453
C60: C2ROP - Residential Two Rate 5d - Controlled Load | D60: 9.298438747 | E60: 95.35228214
C61: C2RBOP - Residential Two Rate 5d - Bulk - Controlled Load | D61: 3.412508261 | E61: 23.24321864
C62: C3R - Residential Three Rate | D62: 112.6929774 | E62: 7122.18968
C63: C3RB - Residential Three Rate - Bulk | D63: 29.08956351 | E63: 1857.777421
C64: CDS - Dedicated Supplies | D64: 39.02053381 | E64: 338.9975471
C65: CDSB - Dedicated Supplies - Bulk | D65: 2.514395962 | E65: 19.18239431
C66: C1G - General Purpose Single Rate | D66: 305.9749998 | E66: 20440.27112
C67: C1GB - General Purpose Single Rate - Bulk | D67: 121.513148 | E67: 6427.69475
C68: C2G5 - General Purpose Two Rate (5 day peak) | D68: 550.4749611 | E68: 31215.95601
C69: C2G5B - General Purpose Two Rate (5 day peak) bulk | D69: 183.1541826 | E69: 7275.603366
C70: C3G - General Purpose Interval | D70: 198.6059251 | E70: 11792.07658
C71: C3GB - General Purpose Interval Bulk | D71: 299.2961528 | E71: 12104.17329
C72: C14G - Non-Residential | D72: 1.017737894 | E72: 29.11669581
C73: C14GB - Non-Residential - Bulk | D73: 2.148939807 | E73: 49.14708135
C74: C2G7 - General Purpose Two Rate (7 day peak) | D74: 127.9638302 | E74: 5996.625572
C75: C2G7B - General Purpose Two Rate (7 day peak) bulk | D75: 33.9485955 | E75: 1177.682199
C76: C2U - Unmetered Supplies | D76: 37.06667748 | E76: 1363.356554
C77: C2DL - Large LV Demand metered | D77: 155.8447374 | E77: 6370.438766
C78: C2L7 - Large two Rate (7 day Peak) Bulk | D78: 20.84669674 | E78: 834.9955109
C79: C2DLB - Large LV Demand metered bulk | D79: 1814.490146 | E79: 59969.68909
C80: C2DLER - Large LV Demand R | D80: 0 | E80: 0
C81: C2DLEG - Large LV Demand G | D81: 6.58300589 | E81: 339.1731671
C82: C2DLBER - Large LV Demand Bulk R | D82: 0 | E82: 0
C83: C2DLBEG - Large LV Demand Bulk G | D83: 174.9030756 | E83: 5800.118581
C84: C2DH - HV Demand Metered | D84: 564.7918565 | E84: 11405.80607
C85: C2DHD1 - HV Holden | D85: 0 | E85: 0
C86: C2DHER - HV Demand R | D86: 0 | E86: 0
C87: C2DHEG - HV Demand G | D87: 8.383355728 | E87: 215.5325619
C88: C2DT - Subtransmission | D88: 111.6679116 | E88: 778.9454698
C89: Total | D89: =SUM(D54:D88) -> 5919.402072 | E89: =SUM(E54:E88) -> 254485.6561
B91: Table 3 AMI - Current Year
B92: Note: 'Number of Meters\NMIs refers to end of year figures
B94: Statutory Account code or reference to account code | C94: Tariff categories | D94: Number of Meters\NMIs\Lights | E94: Metering Revenue
C95: MP - Single phase non-off peak meter | D95: 199194.9167 | E95: 21413.44285
C96: MP - Single phase off peak meter | D96: 57378.5 | E96: 6168.185671
C97: MP - Two or threee phase direct connet | D97: 59234.66667 | E97: 8323.09259
C98: MP - Two or threee phase current transformer connet | D98: 2491.5 | E98: 442.1722389
C99: 0 | D99: 0 | E99: 0
C100: 0 | D100: 0 | E100: 0
C101: 0 | D101: 0 | E101: 0
C102: Total | D102: =SUM(D95:D101) -> 318299.5833 | E102: =SUM(E95:E101) -> 36346.89335
B105: Table 4 AMI - Prior Year
B106: Note: 'Number of Meters\NMIs refers to end of year figures
B108: Statutory Account code or reference to account code | C108: Tariff categories | D108: Number of Meters | E108: Metering Revenue
C109: MP - Single phase non-off peak meter | D109: 200361.9167 | E109: 23380.22289
C110: MP - Single phase off peak meter | D110: 55147.5 | E110: 6435.159251
C111: MP - Two or threee phase direct connet | D111: 58483.41667 | E111: 8919.476599
C112: MP - Two or threee phase current transformer connet | D112: 2366.083333 | E112: 455.7810827
C113: 0 | D113: 0 | E113: 0
C114: 0 | D114: 0 | E114: 0
C115: 0 | D115: 0 | E115: 0
C116: Total | D116: =SUM(D109:D115) -> 316358.9167 | E116: =SUM(E109:E115) -> 39190.63982
B119: Table 5 Public lighting- Current Year
B121: Statutory Account code or reference to account code | C121: Tariff categories | D121: Number of Lights | E121: Public Lighting Revenue
C122: MDs - Unmetered Supplies | D122: 65073 | E122: 85.17327
C123: 0 | D123: 0 | E123: 0
C124: 0 | D124: 0 | E124: 0
C125: 0 | D125: 0 | E125: 0
C126: 0 | D126: 0 | E126: 0
C127: 0 | D127: 0 | E127: 0
C128: 0 | D128: 0 | E128: 0
C129: Total | D129: =SUM(D122:D128) -> 65073 | E129: =SUM(E122:E128) -> 85.17327
B132: Table 6 Public lighting - Prior Year
B134: Statutory Account code or reference to account code | C134: Tariff categories | D134: Number of Lights | E134: Public Lighting Revenue
C135: MDs - Unmetered Supplies | D135: 64955.40194 | E135: 81.56448
C136: 0 | D136: 0 | E136: 0
C137: 0 | D137: 0 | E137: 0
C138: 0 | D138: 0 | E138: 0
C139: 0 | D139: 0 | E139: 0
C140: 0 | D140: 0 | E140: 0
C141: 0 | D141: 0 | E141: 0
C142: Total | D142: =SUM(D135:D141) -> 64955.40194 | E142: =SUM(E135:E141) -> 81.56448
B144: Table 7 Total annual retailer charges
B146: TARC is defined as the total annual amount of network charges billed by the Citipower to all retailers as most recently reported by Citipower to the AER, or total annual amount of network charges billed by Citipower to all retailers.
B148: TARC | C148: 454159.9065

Sheet 3a. Capex - total
B1: CitiPower
B2: Capex total
B3: =Cover!E26 -> 2015
D4: Colour coding:
B5: Dollar unit used in this sheet | D5: Yellow = Input cells
B6: nominal $'000 | D6: Grey = No inputs required
B8: The information on sheets 5 and 6 is necessary for monitoring capex and will be used to inform the AER's assessment of capex and its underlying drivers at the next reset. It will also be used to assist in any comparative analysis undertaken by the AER within the current and future regulatory control periods.
B10: Instructions:
B11: Reported expenditure must EXCLUDE capital contributions, except for Table 5.
B12: Reported expenditure must INCLUDE any profit margins or management fees paid directly or indirectly to related party contractors (which is not an actual incurred cost of the related party contractor) for the regulatory reporting period.
B13: Forecast expenditure is to be taken from the 2011-15 distribution determination. This forecast is adjusted using the CPI calculations on the cover sheet.
B14: If allocating based on assumptions then provide method.
B15: All adjustments must be explained with supporting documentation attached.
B18: Table 1 Standard Control Services - capex by purpose by voltage level
C20: Forecast | D20: Adjusted Forecast | E20: Actual | F20: Difference (%) | G20: Sub-transmission | H20: HV | I20: LV | J20: Other
B21: Demand Related
B22: Reinforcement | C22: 49406.92919 | D22: =IF(Cover!$E$26=2014,((C22/Cover!$D$48)*Cover!$H$48),((C22/Cover!$D$49)*Cover!$I$49)) -> 56049.02479 | E22: =SUM(G22:J22) -> 37774.43839 | F22: =IF(D22=0,1,((E22-D22)/D22)*1) -> -0.326046465 | G22: 17707.60289 | H22: 11511.43948 | I22: 7805.420744 | J22: 749.9752696
B23: New customer connection | C23: 48713.05493 | D23: =IF(Cover!$E$26=2014,((C23/Cover!$D$48)*Cover!$H$48),((C23/Cover!$D$49)*Cover!$I$49)) -> 55261.86849 | E23: 51218.72084 | F23: =IF(D23=0,1,((E23-D23)/D23)*1) -> -0.0731634264 | G23: 24009.90744 | H23: 15608.47045 | I23: 10583.44434 | J23: 1016.898612
B24: Non Demand Related
B25: Reliability & quality maintained | C25: 39773.53778 | D25: =IF(Cover!$E$26=2014,((C25/Cover!$D$48)*Cover!$H$48),((C25/Cover!$D$49)*Cover!$I$49)) -> 45120.55376 | E25: 19738.70544 | F25: =IF(D25=0,1,((E25-D25)/D25)*1) -> -0.5625340606 | G25: 9252.954444 | H25: 6015.202946 | I25: 4078.654971 | J25: 391.8930781
B26: Environmental, safety & legal | C26: 7587.427028 | D26: =IF(Cover!$E$26=2014,((C26/Cover!$D$48)*Cover!$H$48),((C26/Cover!$D$49)*Cover!$I$49)) -> 8607.454309 | E26: 8346.471299 | F26: -0.03032058034 | G26: 3912.592897 | H26: 2543.516286 | I26: 1724.650928 | J26: 165.711188
B27: Sub-total | C27: =C22+C23+C25+C26 -> 145480.9489 | D27: =D22+D23+D25+D26 -> 165038.9013 | E27: =E22+E23+E25+E26 -> 117078.336 | F27: -0.2906015793 | G27: =G22+G23+G25+G26 -> 54883.05768 | H27: =H22+H23+H25+H26 -> 35678.62916 | I27: =I22+I23+I25+I26 -> 24192.17098 | J27: =J22+J23+J25+J26 -> 2324.478148
B28: SCADA/Network control | C28: 3041.318343 | D28: =IF(Cover!$E$26=2014,((C28/Cover!$D$48)*Cover!$H$48),((C28/Cover!$D$49)*Cover!$I$49)) -> 3450.182595 | E28: 2268.68649 | F28: -0.3424445149 | G28: 0 | H28: 0 | I28: 0 | J28: 2268.68649
B29: Non network general - IT | C29: 10176.8325 | D29: =IF(Cover!$E$26=2014,((C29/Cover!$D$48)*Cover!$H$48),((C29/Cover!$D$49)*Cover!$I$49)) -> 11544.97044 | E29: 20667.82769 | F29: 0.7902018709 | G29: 0 | H29: 0 | I29: 0 | J29: 20667.82769
B30: Non network general - other | C30: 3436.022526 | D30: =IF(Cover!$E$26=2014,((C30/Cover!$D$48)*Cover!$H$48),((C30/Cover!$D$49)*Cover!$I$49)) -> 3897.949435 | E30: 486.74252 | F30: -0.87512857 | G30: 0 | H30: 0 | I30: 0 | J30: 486.74252
B31: Metering - Non AMI | C31: 0 | D31: =IF(Cover!$E$26=2014,((C31/Cover!$D$48)*Cover!$H$48),((C31/Cover!$D$49)*Cover!$I$49)) -> 0 | E31: 0 | F31: 1 | G31: 0 | H31: 0 | I31: 0 | J31: 0
B32: Standard Control - Total Capex | C32: =SUM(C27:C31) -> 162135.1223 | D32: =SUM(D27:D31) -> 183932.0038 | E32: =SUM(E27:E31) -> 140501.5927 | F32: -0.2361221008 | G32: 54883.05768 | H32: =SUM(H27:H31) -> 35678.62916 | I32: 24192.17098 | J32: 25747.73485
B34: Table 2: Material difference explanation
B35: Where the difference between forecast and actual expenditure shown in table 1, column E is greater than ±10per cent, please explain the main factors driving the difference.
C37: Reason for material difference
B38: Demand Related
B39: Reinforcement | C39: See Schedule 1
B40: New customer connection
B41: Non Demand Related
B42: Reliability & quality maintained | C42: See Schedule 1
B43: Environmental, safety & legal
B44: Other
B45: SCADA/Network control | C45: See Schedule 1
B46: Non network general - IT | C46: See Schedule 1
B47: Non network general - other | C47: See Schedule 1
B48: Metering - Non AMI
B50: Table 3 Capex by asset class
B52: Asset class | C52: Audited Statutory Accounts | D52: Adjustments | E52: Forecast | F52: Adjusted Forecast | G52: Actual | H52: Movements in provisions allocated to as-incurred capex | I52: Difference (%)
B53: Subtransmission | C53: 54883.05768 | D53: 0 | E53: 26535.62709 | F53: =IF(Cover!$E$26=2014,((E53/Cover!$D$48)*Cover!$H$48),((E53/Cover!$D$49)*Cover!$I$49)) -> 30102.98444 | G53: 54883.05768 | H53: 147.014645 | I53: =IF(F53=0,1,((G53-F53)/F53)*1) -> 0.8231766284
B54: Distribution system assets | C54: 62195.27829 | D54: 0 | E54: 118945.3218 | F54: =IF(Cover!$E$26=2014,((E54/Cover!$D$48)*Cover!$H$48),((E54/Cover!$D$49)*Cover!$I$49)) -> 134935.9169 | G54: 62195.27829 | H54: 166.6018102 | I54: -0.5390754388
B55: Metering | C55: 0 | D55: 0 | E55: 0 | F55: =IF(Cover!$E$26=2014,((E55/Cover!$D$48)*Cover!$H$48),((E55/Cover!$D$49)*Cover!$I$49)) -> 0 | G55: 0 | H55: 0 | I55: 1
B56: Public Lighting | C56: 0 | D56: 0 | E56: 0 | F56: =IF(Cover!$E$26=2014,((E56/Cover!$D$48)*Cover!$H$48),((E56/Cover!$D$49)*Cover!$I$49)) -> 0 | G56: 0 | H56: 0 | I56: 1
B57: SCADA/Network control | C57: 2268.68649 | D57: 0 | E57: 3041.318343 | F57: =IF(Cover!$E$26=2014,((E57/Cover!$D$48)*Cover!$H$48),((E57/Cover!$D$49)*Cover!$I$49)) -> 3450.182595 | G57: 2268.68649 | H57: 6.077105634 | I57: -0.3424445149
B58: Non network - IT | C58: 20667.82769 | D58: 0 | E58: 10176.8325 | F58: =IF(Cover!$E$26=2014,((E58/Cover!$D$48)*Cover!$H$48),((E58/Cover!$D$49)*Cover!$I$49)) -> 11544.97044 | G58: 20667.82769 | H58: 55.36268349 | I58: 0.7902018709
B59: Non network - other | C59: 955.39444 | D59: -468.65192 | E59: 3436.022526 | F59: =IF(Cover!$E$26=2014,((E59/Cover!$D$48)*Cover!$H$48),((E59/Cover!$D$49)*Cover!$I$49)) -> 3897.949435 | G59: 486.74252 | H59: 1.303831853 | I59: -0.87512857
B60: Equity Raising Costs | C60: 0 | D60: 0 | E60: 0 | F60: =IF(Cover!$E$26=2014,((E60/Cover!$D$48)*Cover!$H$48),((E60/Cover!$D$49)*Cover!$I$49)) -> 0 | G60: 0 | H60: 0 | I60: 1
B61: AMI | C61: 5371.892535 | D61: 0 | E61: 5191.399751 | F61: =IF(Cover!$E$26=2014,((E61/Cover!$D$48)*Cover!$H$48),((E61/Cover!$D$49)*Cover!$I$49)) -> 5889.313465 | G61: 5371.892535 | H61: 0 | I61: -0.08785759709
B62: Victorian Bushfires Royal Commission | C62: 0 | D62: 0 | E62: 0 | F62: =IF(Cover!$E$26=2014,((E62/Cover!$D$48)*Cover!$H$48),((E62/Cover!$D$49)*Cover!$I$49)) -> 0 | G62: 0 | H62: 0 | I62: 1
B63: Alternative control fee and quoted services | C63: 1004.242149 | D63: 0 | E63: 0 | F63: =IF(Cover!$E$26=2014,((E63/Cover!$D$48)*Cover!$H$48),((E63/Cover!$D$49)*Cover!$I$49)) -> 0 | G63: 1004.242149 | H63: 0 | I63: 1
B64: Negotiated | C64: 952.4893688 | D64: 0 | E64: 0 | F64: =IF(Cover!$E$26=2014,((E64/Cover!$D$48)*Cover!$H$48),((E64/Cover!$D$49)*Cover!$I$49)) -> 0 | G64: 952.4893688 | H64: 0 | I64: 1
B65: Unregulated | C65: 0 | D65: 0 | E65: 0 | F65: =IF(Cover!$E$26=2014,((E65/Cover!$D$48)*Cover!$H$48),((E65/Cover!$D$49)*Cover!$I$49)) -> 0 | G65: 0 | H65: 0 | I65: 1
B66: Total (system and non system) | C66: =SUM(C53:C65) -> 148298.8686 | D66: -468.65192 | E66: =SUM(E53:E65) -> 167326.5221 | F66: =SUM(F53:F65) -> 189821.3173 | G66: =SUM(G53:G65) -> 147830.2167 | H66: =SUM(H53:H65) -> 376.3600763 | I66: -0.2212138298
B68: Table 4 Other Capex
C70: Forecast | D70: Adjusted Forecast | E70: Actual | F70: Difference (%) | G70: Sub-transmission | H70: HV | I70: LV | J70: Other
B71: AMI
B72: Accumulation Meters | C72: 0 | D72: =IF(Cover!$E$26=2014,((C72/Cover!$D$48)*Cover!$H$48),((C72/Cover!$D$49)*Cover!$I$49)) -> 0 | E72: =SUM(G72:J72) -> 0 | F72: =IF(D72=0,1,((E72-D72)/D72)*1) -> 1 | G72: 0 | H72: 0 | I72: 0 | J72: 0
B73: Manually read interval meters | C73: 0 | D73: =IF(Cover!$E$26=2014,((C73/Cover!$D$48)*Cover!$H$48),((C73/Cover!$D$49)*Cover!$I$49)) -> 0 | E73: =SUM(G73:J73) -> 14.25353 | F73: 1 | G73: 0 | H73: 0 | I73: 0 | J73: 14.25353
B74: Remotely read interval meters & transformers | C74: 2794.54046 | D74: =IF(Cover!$E$26=2014,((C74/Cover!$D$48)*Cover!$H$48),((C74/Cover!$D$49)*Cover!$I$49)) -> 3170.228753 | E74: 2729.73763 | F74: -0.1389461635 | G74: 0 | H74: 0 | I74: 0 | J74: 2729.73763
B75: AMI communication | C75: 82.58454528 | D75: =IF(Cover!$E$26=2014,((C75/Cover!$D$48)*Cover!$H$48),((C75/Cover!$D$49)*Cover!$I$49)) -> 93.68692411 | E75: 199.1079652 | F75: 1.125248183 | G75: 0 | H75: 0 | I75: 0 | J75: 199.1079652
B76: Metering data services (IT) | C76: 2314.274746 | D76: =IF(Cover!$E$26=2014,((C76/Cover!$D$48)*Cover!$H$48),((C76/Cover!$D$49)*Cover!$I$49)) -> 2625.397788 | E76: 2428.79341 | F76: -0.0748855579 | G76: 0 | H76: 0 | I76: 0 | J76: 2428.79341
B77: Metering data services (other) | C77: 0 | D77: =IF(Cover!$E$26=2014,((C77/Cover!$D$48)*Cover!$H$48),((C77/Cover!$D$49)*Cover!$I$49)) -> 0 | E77: 0 | F77: 1 | G77: 0 | H77: 0 | I77: 0 | J77: 0
B78: AMI - Total | C78: =SUM(C72:C77) -> 5191.399751 | D78: =SUM(D72:D77) -> 5889.313465 | E78: 5371.892535 | F78: -0.08785759709 | G78: =SUM(G72:G77) -> 0 | H78: =SUM(H72:H77) -> 0 | I78: =SUM(I72:I77) -> 0 | J78: =SUM(J72:J77) -> 5371.892535
B79: Alternative Control services
B80: Public lighting - energy efficient | C80: 0 | D80: =IF(Cover!$E$26=2014,((C80/Cover!$D$48)*Cover!$H$48),((C80/Cover!$D$49)*Cover!$I$49)) -> 0 | E80: =SUM(G80:J80) -> 466.1794488 | F80: =IF(D80=0,1,((E80-D80)/D80)*1) -> 1 | G80: 0 | H80: 0 | I80: 0 | J80: 466.1794488
B81: Public lighting - non energy efficient | C81: 0 | D81: =IF(Cover!$E$26=2014,((C81/Cover!$D$48)*Cover!$H$48),((C81/Cover!$D$49)*Cover!$I$49)) -> 0 | E81: 538.0627003 | F81: 1 | G81: 0 | H81: 0 | I81: 0 | J81: 538.0627003
B82: Public Lighting - Total | C82: =SUM(C80:C81) -> 0 | D82: =SUM(D80:D81) -> 0 | E82: 1004.242149 | F82: 1 | G82: =SUM(G80:G81) -> 0 | H82: =SUM(H80:H81) -> 0 | I82: =SUM(I80:I81) -> 0 | J82: =SUM(J80:J81) -> 1004.242149
B83: Other - fee based services | C83: 0 | D83: =IF(Cover!$E$26=2014,((C83/Cover!$D$48)*Cover!$H$48),((C83/Cover!$D$49)*Cover!$I$49)) -> 0 | E83: 0 | F83: 1 | G83: 0 | H83: 0 | I83: 0 | J83: 0
B84: Other - quoted services | C84: 0 | D84: =IF(Cover!$E$26=2014,((C84/Cover!$D$48)*Cover!$H$48),((C84/Cover!$D$49)*Cover!$I$49)) -> 0 | E84: 0 | F84: 1 | G84: 0 | H84: 0 | I84: 0 | J84: 0
B85: Other Alternative Control - Total | C85: =SUM(C83:C84) -> 0 | D85: =SUM(D83:D84) -> 0 | E85: 0 | F85: 1 | G85: =SUM(G83:G84) -> 0 | H85: =SUM(H83:H84) -> 0 | I85: =SUM(I83:I84) -> 0 | J85: =SUM(J83:J84) -> 0
B86: Negotiated services | C86: 0 | D86: =IF(Cover!$E$26=2014,((C86/Cover!$D$48)*Cover!$H$48),((C86/Cover!$D$49)*Cover!$I$49)) -> 0 | E86: 952.4893688 | F86: 1 | G86: 0 | H86: 0 | I86: 0 | J86: 952.4893688
B87: Unregulated services | C87: 0 | D87: =IF(Cover!$E$26=2014,((C87/Cover!$D$48)*Cover!$H$48),((C87/Cover!$D$49)*Cover!$I$49)) -> 0 | E87: 0 | F87: 1 | G87: 0 | H87: 0 | I87: 0 | J87: 0
B88: Total Other capex | C88: =C78+C82+C85+C86+C87 -> 5191.399751 | D88: =D78+D82+D85+D86+D87 -> 5889.313465 | E88: 7328.624053 | F88: 0.2443936117 | G88: =G78+G82+G85+G86+G87 -> 0 | H88: 0 | I88: 0 | J88: 7328.624053
B91: Table 5 Customer Contributions by asset class
C93: Audited Statutory Accounts | D93: Adjustments | E93: Forecast | F93: Adjusted Forecast | G93: Actual | H93: Difference (%)
B94: Subtransmission | C94: 0 | D94: 0 | E94: 2253.128567 | F94: =IF(Cover!$E$26=2014,((E94/Cover!$D$48)*Cover!$H$48),((E94/Cover!$D$49)*Cover!$I$49)) -> 2556.031329 | G94: 11433.05852 | H94: =IF(F94=0,1,((G94-F94)/F94)*1) -> 3.472972764
B95: Distribution system assets | C95: 0 | D95: 0 | E95: 10060.61055 | F95: =IF(Cover!$E$26=2014,((E95/Cover!$D$48)*Cover!$H$48),((E95/Cover!$D$49)*Cover!$I$49)) -> 11413.12401 | G95: 14402.33729 | H95: 0.2619101721
B96: Metering | C96: 0 | D96: 0 | E96: 0 | F96: =IF(Cover!$E$26=2014,((E96/Cover!$D$48)*Cover!$H$48),((E96/Cover!$D$49)*Cover!$I$49)) -> 0 | G96: 0 | H96: 1
B97: Public Lighting | C97: 0 | D97: 0 | E97: 0 | F97: =IF(Cover!$E$26=2014,((E97/Cover!$D$48)*Cover!$H$48),((E97/Cover!$D$49)*Cover!$I$49)) -> 0 | G97: 0 | H97: 1
B98: SCADA/Network control | C98: 0 | D98: 0 | E98: 0 | F98: =IF(Cover!$E$26=2014,((E98/Cover!$D$48)*Cover!$H$48),((E98/Cover!$D$49)*Cover!$I$49)) -> 0 | G98: 0 | H98: 1
B99: Non network - IT | C99: 0 | D99: 0 | E99: 0 | F99: =IF(Cover!$E$26=2014,((E99/Cover!$D$48)*Cover!$H$48),((E99/Cover!$D$49)*Cover!$I$49)) -> 0 | G99: 0 | H99: 1
B100: Non network - other | C100: 0 | D100: 0 | E100: 0 | F100: =IF(Cover!$E$26=2014,((E100/Cover!$D$48)*Cover!$H$48),((E100/Cover!$D$49)*Cover!$I$49)) -> 0 | G100: 0 | H100: 1
B101: Equity Raising Costs | C101: 0 | D101: 0 | E101: 0 | F101: =IF(Cover!$E$26=2014,((E101/Cover!$D$48)*Cover!$H$48),((E101/Cover!$D$49)*Cover!$I$49)) -> 0 | G101: 0 | H101: =IF(F101=0,1,((G101-F101)/F101)*1) -> 1
B102: AMI | C102: 0 | D102: 0 | E102: 0 | F102: =IF(Cover!$E$26=2014,((E102/Cover!$D$48)*Cover!$H$48),((E102/Cover!$D$49)*Cover!$I$49)) -> 0 | G102: 0 | H102: 1
B103: Victorian Bushfires Royal Commission | C103: 0 | D103: 0 | E103: 0 | F103: =IF(Cover!$E$26=2014,((E103/Cover!$D$48)*Cover!$H$48),((E103/Cover!$D$49)*Cover!$I$49)) -> 0 | G103: 0 | H103: 1
B104: Alternative control fee and quoted services | C104: 0 | D104: 0 | E104: 0 | F104: =IF(Cover!$E$26=2014,((E104/Cover!$D$48)*Cover!$H$48),((E104/Cover!$D$49)*Cover!$I$49)) -> 0 | G104: 430.551 | H104: 1
B105: Negotiated | C105: 0 | D105: 0 | E105: 0 | F105: =IF(Cover!$E$26=2014,((E105/Cover!$D$48)*Cover!$H$48),((E105/Cover!$D$49)*Cover!$I$49)) -> 0 | G105: 2868.059162 | H105: 1
B106: Unregulated | C106: 0 | D106: 0 | E106: 0 | F106: =IF(Cover!$E$26=2014,((E106/Cover!$D$48)*Cover!$H$48),((E106/Cover!$D$49)*Cover!$I$49)) -> 0 | G106: 0 | H106: 1
B107: Total Customer Contributions | C107: =SUM(C94:C106) -> 0 | D107: =SUM(D94:D106) -> 0 | E107: =SUM(E94:E106) -> 12313.73912 | F107: =SUM(F94:F106) -> 13969.15534 | G107: =SUM(G94:G106) -> 29134.00597 | H107: 1.085595389
B109: Table 6 Disposals by asset class
C111: Audited Statutory Accounts | D111: Adjustments | E111: Forecast | F111: Adjusted Forecast | G111: Actual | H111: Difference (%)
B112: Subtransmission | C112: 0 | D112: 0 | E112: 0 | F112: =IF(Cover!$E$26=2014,((E112/Cover!$D$48)*Cover!$H$48),((E112/Cover!$D$49)*Cover!$I$49)) -> 0 | G112: 0 | H112: =IF(F112=0,1,((G112-F112)/F112)*1) -> 1
B113: Distribution system assets | C113: 0 | D113: 0 | E113: 0 | F113: =IF(Cover!$E$26=2014,((E113/Cover!$D$48)*Cover!$H$48),((E113/Cover!$D$49)*Cover!$I$49)) -> 0 | G113: 0 | H113: 1
B114: Metering | C114: 0 | D114: 0 | E114: 0 | F114: =IF(Cover!$E$26=2014,((E114/Cover!$D$48)*Cover!$H$48),((E114/Cover!$D$49)*Cover!$I$49)) -> 0 | G114: 0 | H114: 1
B115: Public Lighting | C115: 0 | D115: 0 | E115: 0 | F115: =IF(Cover!$E$26=2014,((E115/Cover!$D$48)*Cover!$H$48),((E115/Cover!$D$49)*Cover!$I$49)) -> 0 | G115: 0 | H115: 1
B116: SCADA/Network control | C116: 0 | D116: 0 | E116: 0 | F116: =IF(Cover!$E$26=2014,((E116/Cover!$D$48)*Cover!$H$48),((E116/Cover!$D$49)*Cover!$I$49)) -> 0 | G116: 0 | H116: 1
B117: Non network - IT | C117: 0 | D117: 0 | E117: 0 | F117: =IF(Cover!$E$26=2014,((E117/Cover!$D$48)*Cover!$H$48),((E117/Cover!$D$49)*Cover!$I$49)) -> 0 | G117: 0 | H117: 1
B118: Non network - other | C118: 0 | D118: 0 | E118: 0 | F118: =IF(Cover!$E$26=2014,((E118/Cover!$D$48)*Cover!$H$48),((E118/Cover!$D$49)*Cover!$I$49)) -> 0 | G118: 103.65653 | H118: 1
B119: Equity Raising Costs | C119: 0 | D119: 0 | E119: 0 | F119: =IF(Cover!$E$26=2014,((E119/Cover!$D$48)*Cover!$H$48),((E119/Cover!$D$49)*Cover!$I$49)) -> 0 | G119: 0 | H119: 1
B120: AMI | C120: 0 | D120: 0 | E120: 0 | F120: =IF(Cover!$E$26=2014,((E120/Cover!$D$48)*Cover!$H$48),((E120/Cover!$D$49)*Cover!$I$49)) -> 0 | G120: 0 | H120: 1
B121: Victorian Bushfires Royal Commission | C121: 0 | D121: 0 | E121: 0 | F121: =IF(Cover!$E$26=2014,((E121/Cover!$D$48)*Cover!$H$48),((E121/Cover!$D$49)*Cover!$I$49)) -> 0 | G121: 0 | H121: 1
B122: Alternative control fee and quoted services | C122: 0 | D122: 0 | E122: 0 | F122: =IF(Cover!$E$26=2014,((E122/Cover!$D$48)*Cover!$H$48),((E122/Cover!$D$49)*Cover!$I$49)) -> 0 | G122: 0 | H122: 1
B123: Negotiated | C123: 0 | D123: 0 | E123: 0 | F123: =IF(Cover!$E$26=2014,((E123/Cover!$D$48)*Cover!$H$48),((E123/Cover!$D$49)*Cover!$I$49)) -> 0 | G123: 0 | H123: 1
B124: Unregulated | C124: 0 | D124: 0 | E124: 0 | F124: =IF(Cover!$E$26=2014,((E124/Cover!$D$48)*Cover!$H$48),((E124/Cover!$D$49)*Cover!$I$49)) -> 0 | G124: 0 | H124: =IF(F124=0,1,((G124-F124)/F124)*1) -> 1
B125: Total Disposals | C125: =SUM(C112:C124) -> 0 | D125: =SUM(D112:D124) -> 0 | E125: =SUM(E112:E124) -> 0 | F125: =IF(Cover!$E$26=2014,((E125/Cover!$D$48)*Cover!$H$48),((E125/Cover!$D$49)*Cover!$I$49)) -> 0 | G125: =SUM(G112:G124) -> 103.65653 | H125: 1
B128: Definitions
B129: SCS Capex by purpose | C129: Capex by purpose is defined in appendix G of the RIN.
B130: SCS Capex by asset class | C130: The assets classes must align with asset classes used in the PTRM for the 2011-15 distribution determination.
B131: Capex by service | C131: Capex for non-SCS distribution services is defined in appendix G of the RIN, or in the 2011-15 distribution determination.
B132: Voltage level - HV | C132: Assets with a nominal voltage above 1 kV and not exceeding 35 kV used to distribute electricity from a (zone) substation.
B133: Voltage level - subtransmission | C133: Assets that distribute electricity at voltage levels between the transmission system and the HV section of the network.
B134: Voltage level - LV | C134: Assets that distribute electricity at low voltage. The connection boundaries are the LV terminals of the HV to LV distribution transformers to the supply point.
B135: Voltage level - other | C135: Assets that distribute electricity at a voltage level that is not subtransmission, HV or LV.
B136: Customer contributions | C136: Cash or in kind contributions to Capex projects and gifted assets.
B137: Disposals | C137: The written down value (WDV) of assets disposed or proceeds from the sale of assets.
B138: Forecast | C138: The forecast expenditure derived for the 2011-2015 Distribution determination.
B139: Adjusted Forecast | C139: The forecast adjusted to be in equivalent dollar terms to the actual expenditure for the relevant regulatory year
B140: Actual | C140: The expenditure reported for the relevant regulatory year.
B141: ABS CPI | C141: ABS CPI (Pub No: 6401.0, All groups, 8 Capital Cities, September)
B142: Movements in provisions | C142: The difference between opening and closing capitalised provisions.

Sheet 3b. Capex - margins
B1: CitiPower
B2: Capex - margins
B3: =Cover!E26 -> 2015
D4: Colour coding:
B5: Dollar unit used in this sheet | D5: Yellow = Input cells
B6: nominal $'000 | D6: Grey = No inputs required
B8: Instructions:
B9: Reported expenditure must EXCLUDE capital contributions, except for Table 5.
B10: Reported expenditure must ONLY INCLUDE profit margins or management fees paid directly or indirectly to related party contractors (which is not an actual incurred cost of the related party contractor) for the regulatory reporting period.
B11: Forecast expenditure is to be taken from the 2011-15 distribution determination. This forecast is adjusted using the CPI calculations on the cover sheet.
B12: If allocating based on assumptions then provide method.
B13: All adjustments must be explained with supporting documentation attached.
B16: Table 1 Standard Control Services - capex by purpose by voltage level
C18: Forecast | D18: Adjusted Forecast | E18: Actual | F18: Difference (%) | G18: Sub-transmission | H18: HV | I18: LV | J18: Other
B19: Demand Related
B20: Reinforcement | C20: 0 | D20: =IF(Cover!$E$26=2014,((C20/Cover!$D$48)*Cover!$H$48),((C20/Cover!$D$49)*Cover!$I$49)) -> 0 | E20: =SUM(G20:J20) -> 170.7731011 | F20: =IF(D20=0,1,((E20-D20)/D20)*1) -> 1 | G20: 80.05366563 | H20: 52.0416531 | I20: 35.28724617 | J20: 3.390536247
B21: New customer connection | C21: 0 | D21: =IF(Cover!$E$26=2014,((C21/Cover!$D$48)*Cover!$H$48),((C21/Cover!$D$49)*Cover!$I$49)) -> 0 | E21: 457.1972606 | F21: 1 | G21: 214.321321 | H21: 139.3269846 | I21: 94.47174159 | J21: 9.077213412
B22: Non Demand Related
B23: Reliability & quality maintained | C23: 0 | D23: =IF(Cover!$E$26=2014,((C23/Cover!$D$48)*Cover!$H$48),((C23/Cover!$D$49)*Cover!$I$49)) -> 0 | E23: 166.5087027 | F23: =IF(D23=0,1,((E23-D23)/D23)*1) -> 1 | G23: 78.05463461 | H23: 50.74211387 | I23: 34.40608352 | J23: 3.305870703
B24: Environmental, safety & legal | C24: 0 | D24: =IF(Cover!$E$26=2014,((C24/Cover!$D$48)*Cover!$H$48),((C24/Cover!$D$49)*Cover!$I$49)) -> 0 | E24: 141.7271772 | F24: 1 | G24: 66.43774678 | H24: 43.19015431 | I24: 29.28541881 | J24: 2.813857265
B25: Sub-total | C25: =C20+C21+C23+C24 -> 0 | D25: =D20+D21+D23+D24 -> 0 | E25: =E20+E21+E23+E24 -> 936.2062416 | F25: 1 | G25: =G20+G21+G23+G24 -> 438.867368 | H25: =H20+H21+H23+H24 -> 285.3009059 | I25: =I20+I21+I23+I24 -> 193.4504901 | J25: =J20+J21+J23+J24 -> 18.58747763
B26: SCADA/Network control | C26: 0 | D26: =IF(Cover!$E$26=2014,((C26/Cover!$D$48)*Cover!$H$48),((C26/Cover!$D$49)*Cover!$I$49)) -> 0 | E26: 11.44162068 | F26: 1 | G26: 0 | H26: 0 | I26: 0 | J26: 11.44162068
B27: Non network general - IT | C27: 0 | D27: =IF(Cover!$E$26=2014,((C27/Cover!$D$48)*Cover!$H$48),((C27/Cover!$D$49)*Cover!$I$49)) -> 0 | E27: 1742.47407 | F27: 1 | G27: 0 | H27: 0 | I27: 0 | J27: 1742.47407
B28: Non network general - other | C28: 0 | D28: =IF(Cover!$E$26=2014,((C28/Cover!$D$48)*Cover!$H$48),((C28/Cover!$D$49)*Cover!$I$49)) -> 0 | E28: 0 | F28: 1 | G28: 0 | H28: 0 | I28: 0 | J28: 0
B29: Metering - Non AMI | C29: 0 | D29: =IF(Cover!$E$26=2014,((C29/Cover!$D$48)*Cover!$H$48),((C29/Cover!$D$49)*Cover!$I$49)) -> 0 | E29: 0 | F29: 1 | G29: 0 | H29: 0 | I29: 0 | J29: 0
B30: Standard Control - Total Capex | C30: =SUM(C25:C29) -> 0 | D30: =SUM(D25:D29) -> 0 | E30: =SUM(E25:E29) -> 2690.121932 | F30: 1 | G30: =SUM(G25:G29) -> 438.867368 | H30: 285.3009059 | I30: 193.4504901 | J30: 1772.503168
B32: Table 2: Material difference explanation
B33: Where the difference between forecast and actual expenditure shown in table 1, column E is greater than ±10 per cent, please explain the main factors driving the difference.
C35: Reason for material difference
B36: Demand Related
B37: Reinforcement
B38: New customer connection
B39: Non Demand Related
B40: Reliability & quality maintained
B41: Environmental, safety & legal
B42: Other
B43: SCADA/Network control
B44: Non network general - IT
B45: Non network general - other
B46: Metering - Non AMI
B48: Table 3 Capex by asset class
B50: Asset class | C50: Forecast | D50: Adjusted Forecast | E50: Actual | F50: Difference (%)
B51: Subtransmission | C51: 0 | D51: =IF(Cover!$E$26=2014,((C51/Cover!$D$48)*Cover!$H$48),((C51/Cover!$D$49)*Cover!$I$49)) -> 0 | E51: 438.867368 | F51: =IF(D51=0,1,((E51-D51)/D51)*1) -> 1
B52: Distribution system assets | C52: 0 | D52: =IF(Cover!$E$26=2014,((C52/Cover!$D$48)*Cover!$H$48),((C52/Cover!$D$49)*Cover!$I$49)) -> 0 | E52: 497.3388736 | F52: 1
B53: Metering | C53: 0 | D53: =IF(Cover!$E$26=2014,((C53/Cover!$D$48)*Cover!$H$48),((C53/Cover!$D$49)*Cover!$I$49)) -> 0 | E53: 0 | F53: 1
B54: Public Lighting | C54: 0 | D54: =IF(Cover!$E$26=2014,((C54/Cover!$D$48)*Cover!$H$48),((C54/Cover!$D$49)*Cover!$I$49)) -> 0 | E54: 0 | F54: 1
B55: SCADA/Network control | C55: 0 | D55: =IF(Cover!$E$26=2014,((C55/Cover!$D$48)*Cover!$H$48),((C55/Cover!$D$49)*Cover!$I$49)) -> 0 | E55: 11.44162068 | F55: 1
B56: Non network - IT | C56: 0 | D56: =IF(Cover!$E$26=2014,((C56/Cover!$D$48)*Cover!$H$48),((C56/Cover!$D$49)*Cover!$I$49)) -> 0 | E56: 1742.47407 | F56: 1
B57: Non network - other | C57: 0 | D57: =IF(Cover!$E$26=2014,((C57/Cover!$D$48)*Cover!$H$48),((C57/Cover!$D$49)*Cover!$I$49)) -> 0 | E57: 0 | F57: 1
B58: Equity Raising Costs | C58: 0 | D58: =IF(Cover!$E$26=2014,((C58/Cover!$D$48)*Cover!$H$48),((C58/Cover!$D$49)*Cover!$I$49)) -> 0 | E58: 0 | F58: 1
B59: AMI | C59: 0 | D59: =IF(Cover!$E$26=2014,((C59/Cover!$D$48)*Cover!$H$48),((C59/Cover!$D$49)*Cover!$I$49)) -> 0 | E59: 213.9007309 | F59: 1
B60: Victorian Bushfires Royal Commission | C60: 0 | D60: =IF(Cover!$E$26=2014,((C60/Cover!$D$48)*Cover!$H$48),((C60/Cover!$D$49)*Cover!$I$49)) -> 0 | E60: 0 | F60: 1
B61: Alternative control fee and quoted services | C61: 0 | D61: =IF(Cover!$E$26=2014,((C61/Cover!$D$48)*Cover!$H$48),((C61/Cover!$D$49)*Cover!$I$49)) -> 0 | E61: 12.64983329 | F61: 1
B62: Negotiated | C62: 0 | D62: =IF(Cover!$E$26=2014,((C62/Cover!$D$48)*Cover!$H$48),((C62/Cover!$D$49)*Cover!$I$49)) -> 0 | E62: 24.76856842 | F62: 1
B63: Unregulated | C63: 0 | D63: =IF(Cover!$E$26=2014,((C63/Cover!$D$48)*Cover!$H$48),((C63/Cover!$D$49)*Cover!$I$49)) -> 0 | E63: 0 | F63: 1
B64: Total (system and non system) | C64: =SUM(C51:C63) -> 0 | D64: =SUM(D51:D63) -> 0 | E64: =SUM(E51:E63) -> 2941.441065 | F64: 1
B66: Table 4 Other Capex
C68: Forecast | D68: Adjusted Forecast | E68: Actual | F68: Difference (%) | G68: Sub-transmission | H68: HV | I68: LV | J68: Other
B69: AMI
B70: Accumulation Meters | C70: 0 | D70: =IF(Cover!$E$26=2014,((C70/Cover!$D$48)*Cover!$H$48),((C70/Cover!$D$49)*Cover!$I$49)) -> 0 | E70: =SUM(G70:J70) -> 0 | F70: =IF(D70=0,1,((E70-D70)/D70)*1) -> 1 | G70: 0 | H70: 0 | I70: 0 | J70: 0
B71: Manually read interval meters | C71: 0 | D71: =IF(Cover!$E$26=2014,((C71/Cover!$D$48)*Cover!$H$48),((C71/Cover!$D$49)*Cover!$I$49)) -> 0 | E71: =SUM(G71:J71) -> 0.1564324061 | F71: 1 | G71: 0 | H71: 0 | I71: 0 | J71: 0.1564324061
B72: Remotely read interval meters & transformers | C72: 0 | D72: =IF(Cover!$E$26=2014,((C72/Cover!$D$48)*Cover!$H$48),((C72/Cover!$D$49)*Cover!$I$49)) -> 0 | E72: 32.64317273 | F72: 1 | G72: 0 | H72: 0 | I72: 0 | J72: 32.64317273
B73: AMI communication | C73: 0 | D73: =IF(Cover!$E$26=2014,((C73/Cover!$D$48)*Cover!$H$48),((C73/Cover!$D$49)*Cover!$I$49)) -> 0 | E73: 2.016175768 | F73: 1 | G73: 0 | H73: 0 | I73: 0 | J73: 2.016175768
B74: Metering data services (IT) | C74: 0 | D74: =IF(Cover!$E$26=2014,((C74/Cover!$D$48)*Cover!$H$48),((C74/Cover!$D$49)*Cover!$I$49)) -> 0 | E74: 179.08495 | F74: 1 | G74: 0 | H74: 0 | I74: 0 | J74: 179.08495
B75: Metering data services (other) | C75: 0 | D75: =IF(Cover!$E$26=2014,((C75/Cover!$D$48)*Cover!$H$48),((C75/Cover!$D$49)*Cover!$I$49)) -> 0 | E75: 0 | F75: 1 | G75: 0 | H75: 0 | I75: 0 | J75: 0
B76: AMI - Total | C76: =SUM(C70:C75) -> 0 | D76: =SUM(D70:D75) -> 0 | E76: 213.9007309 | F76: 1 | G76: =SUM(G70:G75) -> 0 | H76: 0 | I76: 0 | J76: 213.9007309
B77: Alternative Control services
B78: Public lighting - energy efficient | C78: 0 | D78: =IF(Cover!$E$26=2014,((C78/Cover!$D$48)*Cover!$H$48),((C78/Cover!$D$49)*Cover!$I$49)) -> 0 | E78: =SUM(G78:J78) -> 4.110064446 | F78: =IF(D78=0,1,((E78-D78)/D78)*1) -> 1 | G78: 0 | H78: 0 | I78: 0 | J78: 4.110064446
B79: Public lighting - non energy efficient | C79: 0 | D79: =IF(Cover!$E$26=2014,((C79/Cover!$D$48)*Cover!$H$48),((C79/Cover!$D$49)*Cover!$I$49)) -> 0 | E79: 8.539768841 | F79: 1 | G79: 0 | H79: 0 | I79: 0 | J79: 8.539768841
B80: Public Lighting - Total | C80: =SUM(C78:C79) -> 0 | D80: =SUM(D78:D79) -> 0 | E80: 12.64983329 | F80: 1 | G80: =SUM(G78:G79) -> 0 | H80: 0 | I80: 0 | J80: 12.64983329
B81: Other - fee based services | C81: 0 | D81: =IF(Cover!$E$26=2014,((C81/Cover!$D$48)*Cover!$H$48),((C81/Cover!$D$49)*Cover!$I$49)) -> 0 | E81: 0 | F81: 1 | G81: 0 | H81: 0 | I81: 0 | J81: 0
B82: Other - quoted services | C82: 0 | D82: =IF(Cover!$E$26=2014,((C82/Cover!$D$48)*Cover!$H$48),((C82/Cover!$D$49)*Cover!$I$49)) -> 0 | E82: 0 | F82: 1 | G82: 0 | H82: 0 | I82: 0 | J82: 0
B83: Other Alternative Control - Total | C83: =SUM(C81:C82) -> 0 | D83: =SUM(D81:D82) -> 0 | E83: 0 | F83: 1 | G83: =SUM(G81:G82) -> 0 | H83: 0 | I83: 0 | J83: 0
B84: Negotiated services | C84: 0 | D84: =IF(Cover!$E$26=2014,((C84/Cover!$D$48)*Cover!$H$48),((C84/Cover!$D$49)*Cover!$I$49)) -> 0 | E84: 24.76856842 | F84: 1 | G84: 0 | H84: 0 | I84: 0 | J84: 24.76856842
B85: Unregulated services | C85: 0 | D85: =IF(Cover!$E$26=2014,((C85/Cover!$D$48)*Cover!$H$48),((C85/Cover!$D$49)*Cover!$I$49)) -> 0 | E85: 0 | F85: 1 | G85: 0 | H85: 0 | I85: 0 | J85: 0
B86: Total Other capex | C86: =C76+C80+C83+C84+C85 -> 0 | D86: =D76+D80+D83+D84+D85 -> 0 | E86: 251.3191326 | F86: 1 | G86: =G76+G80+G83+G84+G85 -> 0 | H86: 0 | I86: 0 | J86: 251.3191326
B89: Table 5 Customer Contributions by asset class
C91: Forecast | D91: Adjusted Forecast | E91: Actual | F91: Difference (%)
B92: Subtransmission | C92: 0 | D92: =IF(Cover!$E$26=2014,((C92/Cover!$D$48)*Cover!$H$48),((C92/Cover!$D$49)*Cover!$I$49)) -> 0 | E92: 0 | F92: =IF(D92=0,1,((E92-D92)/D92)*1) -> 1
B93: Distribution system assets | C93: 0 | D93: =IF(Cover!$E$26=2014,((C93/Cover!$D$48)*Cover!$H$48),((C93/Cover!$D$49)*Cover!$I$49)) -> 0 | E93: 0 | F93: 1
B94: Metering | C94: 0 | D94: =IF(Cover!$E$26=2014,((C94/Cover!$D$48)*Cover!$H$48),((C94/Cover!$D$49)*Cover!$I$49)) -> 0 | E94: 0 | F94: 1
B95: Public Lighting | C95: 0 | D95: =IF(Cover!$E$26=2014,((C95/Cover!$D$48)*Cover!$H$48),((C95/Cover!$D$49)*Cover!$I$49)) -> 0 | E95: 0 | F95: 1
B96: SCADA/Network control | C96: 0 | D96: =IF(Cover!$E$26=2014,((C96/Cover!$D$48)*Cover!$H$48),((C96/Cover!$D$49)*Cover!$I$49)) -> 0 | E96: 0 | F96: 1
B97: Non network - IT | C97: 0 | D97: =IF(Cover!$E$26=2014,((C97/Cover!$D$48)*Cover!$H$48),((C97/Cover!$D$49)*Cover!$I$49)) -> 0 | E97: 0 | F97: 1
B98: Non network - other | C98: 0 | D98: =IF(Cover!$E$26=2014,((C98/Cover!$D$48)*Cover!$H$48),((C98/Cover!$D$49)*Cover!$I$49)) -> 0 | E98: 0 | F98: 1
B99: Equity Raising Costs | C99: 0 | D99: =IF(Cover!$E$26=2014,((C99/Cover!$D$48)*Cover!$H$48),((C99/Cover!$D$49)*Cover!$I$49)) -> 0 | E99: 0 | F99: 1
B100: AMI | C100: 0 | D100: =IF(Cover!$E$26=2014,((C100/Cover!$D$48)*Cover!$H$48),((C100/Cover!$D$49)*Cover!$I$49)) -> 0 | E100: 0 | F100: 1
B101: Victorian Bushfires Royal Commission | C101: 0 | D101: =IF(Cover!$E$26=2014,((C101/Cover!$D$48)*Cover!$H$48),((C101/Cover!$D$49)*Cover!$I$49)) -> 0 | E101: 0 | F101: 1
B102: Alternative control fee and quoted services | C102: 0 | D102: =IF(Cover!$E$26=2014,((C102/Cover!$D$48)*Cover!$H$48),((C102/Cover!$D$49)*Cover!$I$49)) -> 0 | E102: 0 | F102: 1
B103: Negotiated | C103: 0 | D103: =IF(Cover!$E$26=2014,((C103/Cover!$D$48)*Cover!$H$48),((C103/Cover!$D$49)*Cover!$I$49)) -> 0 | E103: 0 | F103: 1
B104: Unregulated | C104: 0 | D104: =IF(Cover!$E$26=2014,((C104/Cover!$D$48)*Cover!$H$48),((C104/Cover!$D$49)*Cover!$I$49)) -> 0 | E104: 0 | F104: 1
B105: Total Customer Contributions | C105: =SUM(C92:C104) -> 0 | D105: =SUM(D92:D104) -> 0 | E105: =SUM(E92:E104) -> 0 | F105: 1
B107: Table 6 Disposals by asset class
C109: Forecast | D109: Adjusted Forecast | E109: Actual | F109: Difference (%)
B110: Subtransmission | C110: 0 | D110: =IF(Cover!$E$26=2014,((C110/Cover!$D$48)*Cover!$H$48),((C110/Cover!$D$49)*Cover!$I$49)) -> 0 | E110: 0 | F110: =IF(D110=0,1,((E110-D110)/D110)*1) -> 1
B111: Distribution system assets | C111: 0 | D111: =IF(Cover!$E$26=2014,((C111/Cover!$D$48)*Cover!$H$48),((C111/Cover!$D$49)*Cover!$I$49)) -> 0 | E111: 0 | F111: 1
B112: Metering | C112: 0 | D112: =IF(Cover!$E$26=2014,((C112/Cover!$D$48)*Cover!$H$48),((C112/Cover!$D$49)*Cover!$I$49)) -> 0 | E112: 0 | F112: 1
B113: Public Lighting | C113: 0 | D113: =IF(Cover!$E$26=2014,((C113/Cover!$D$48)*Cover!$H$48),((C113/Cover!$D$49)*Cover!$I$49)) -> 0 | E113: 0 | F113: 1
B114: SCADA/Network control | C114: 0 | D114: =IF(Cover!$E$26=2014,((C114/Cover!$D$48)*Cover!$H$48),((C114/Cover!$D$49)*Cover!$I$49)) -> 0 | E114: 0 | F114: 1
B115: Non network - IT | C115: 0 | D115: =IF(Cover!$E$26=2014,((C115/Cover!$D$48)*Cover!$H$48),((C115/Cover!$D$49)*Cover!$I$49)) -> 0 | E115: 0 | F115: 1
B116: Non network - other | C116: 0 | D116: =IF(Cover!$E$26=2014,((C116/Cover!$D$48)*Cover!$H$48),((C116/Cover!$D$49)*Cover!$I$49)) -> 0 | E116: 0 | F116: 1
B117: Equity Raising Costs | C117: 0 | D117: =IF(Cover!$E$26=2014,((C117/Cover!$D$48)*Cover!$H$48),((C117/Cover!$D$49)*Cover!$I$49)) -> 0 | E117: 0 | F117: 1
B118: AMI | C118: 0 | D118: =IF(Cover!$E$26=2014,((C118/Cover!$D$48)*Cover!$H$48),((C118/Cover!$D$49)*Cover!$I$49)) -> 0 | E118: 0 | F118: 1
B119: Victorian Bushfires Royal Commission | C119: 0 | D119: =IF(Cover!$E$26=2014,((C119/Cover!$D$48)*Cover!$H$48),((C119/Cover!$D$49)*Cover!$I$49)) -> 0 | E119: 0 | F119: 1
B120: Alternative control fee and quoted services | C120: 0 | D120: =IF(Cover!$E$26=2014,((C120/Cover!$D$48)*Cover!$H$48),((C120/Cover!$D$49)*Cover!$I$49)) -> 0 | E120: 0 | F120: 1
B121: Negotiated | C121: 0 | D121: =IF(Cover!$E$26=2014,((C121/Cover!$D$48)*Cover!$H$48),((C121/Cover!$D$49)*Cover!$I$49)) -> 0 | E121: 0 | F121: 1
B122: Unregulated | C122: 0 | D122: =IF(Cover!$E$26=2014,((C122/Cover!$D$48)*Cover!$H$48),((C122/Cover!$D$49)*Cover!$I$49)) -> 0 | E122: 0 | F122: 1
B123: Total Disposals | C123: =SUM(C110:C122) -> 0 | D123: =SUM(D110:D122) -> 0 | E123: =SUM(E110:E122) -> 0 | F123: 1

Sheet 5. Capex Tax
B1: =Cover!E22 -> CitiPower Pty Ltd
B2: Capex Tax
B3: =Cover!E26 -> 2015
D4: Colour coding:
B5: Dollar unit used in this sheet | D5: Yellow = Input cells
B6: nominal $'000 | D6: Grey = No inputs required
B8: This information will be used to allow the roll forward of the regulated asset base.
B10: Table 1: Tax standard lives and Capex Additions - Standard control services
B12: Asset class | C12: Tax standard lives | D12: Capex additions
B13: System Assets
B14: Subtransmission | C14: 43 | D14: 54883.05768
B15: Distribution system assets | C15: 49 | D15: 62195.27829
B16: Metering | C16: n/a | D16: 0
B17: Public Lighting | C17: n/a | D17: 0
B18: SCADA/Network control | C18: 10 | D18: 2268.68649
B19: Sub-total | C19: =SUM(C14:C18) -> 102 | D19: =SUM(D14:D18) -> 119347.0225
B20: Non-System Assets
B21: Non network - IT | C21: 4 | D21: 20667.82769
B22: Non network - other | C22: 12 | D22: 486.74252
B23: Equity Raising Costs | C23: n/a | D23: 0
B24: Sub-total | C24: =SUM(C21:C23) -> 16 | D24: =SUM(D21:D23) -> 21154.57021
B25: Total (system and non system) | C25: =C24+C19 -> 118 | D25: =D24+D19 -> 140501.5927
B27: Table 2 Standard Control Services - excl metering
B29: Asset Class | C29: Tax Depreciation - Rate (Post Ralph 10 May 2006 onwards) | D29: Total Additions per Taxation Category Including Related Party Margin | E29: Additions per Taxation Category - Related Party Margin
B30: Demand related capital expenditure | C30: 0.04 | D30: 114828.555 | E30: 627.9703617
B31: Replacement expenditure (Group 1) | C31: 1 | D31: 12005.94243 | E31: 130.8682328
B32: Replacement expenditure (Group 2) | C32: 0.1 | D32: 2383.02694 | E32: 12.85988286
B33: Replacement expenditure (Group 3) | C33: 0.04 | D33: 5349.73607 | E33: 22.78058704
B34: Environment, safety & legal | C34: 0.1 | D34: 8346.471299 | E34: 141.7271772
B35: SCADA/Network control | C35: 0.1 | D35: 2268.68649 | E35: 11.44162068
B36: Non-network general assets - IT | C36: 0.4 | D36: 20667.82769 | E36: 1742.47407
B37: Non-network general assets - Other | C37: 0.1764705882 | D37: 486.74252 | E37: 0
B38: RBPC - Excl Metering - TOTAL ADDITIONS | D38: =SUM(D30:D37) -> 166336.9885 | E38: =SUM(E30:E37) -> 2690.121932
B39: Capitalised Finance Charges | D39: Nil | E39: Nil
B41: Table 3 Metering
B43: Asset Class | C43: Tax Depreciation - Rate (Post Ralph 10 May 2006) | D43: Total Additions per Taxation Category Including Related Party Margin | E43: Additions per Taxation Category - Related Party Margin
B44: Meters and transformers (Group 1) (Unit cost < $1,000) | C44: 0.375 | D44: 2512.891111 | E44: -3.796442738
B45: Meters and transformers (Group 2) (Unit cost ≥ $1,000) | C45: 0.06 | D45: 231.1000494 | E45: 36.59604788
B46: IT | C46: 0.4 | D46: 2428.79341 | E46: 179.08495
B47: Communications | C47: 0.2142857143 | D47: 199.1079652 | E47: 2.016175768
B48: Other | C48: 0.1764705882 | D48: 0 | E48: 0
B49: Metering - TOTAL ADDITIONS | D49: =SUM(D44:D48) -> 5371.892535 | E49: =SUM(E44:E48) -> 213.9007309
B50: Capitalised Finance Charges | D50: Nil | E50: Nil

Sheet 6a. Maintenance - total
B1: CitiPower
B2: Maintenance Costs total
B3: =Cover!E26 -> 2015
E4: Colour coding:
B5: Dollar unit used in this sheet | E5: Yellow = Input cells
B6: nominal $'000 | E6: Grey = No inputs required
B8: This information is necessary for monitoring maintenance expenditure and will be used to inform the AER's assessment of maintenance expenditure and its underlying drivers at the next reset. It will also be used to assist in any comparative analysis undertaken by the AER within the current and future regulatory control periods.
B10: Instructions:
B11: Reported expenditure must INCLUDE any profit margins or management fees paid directly or indirectly to related party contractors (which is not an actual incurred cost of the related party contractor) for the regulatory reporting period.
B12: Forecast expenditure is to be taken from the 2011-15 distribution determination. This forecast is adjusted using the CPI calculations on the cover sheet.
B13: If allocating based on assumptions then provide method.
B14: All adjustments must be explained with supporting documentation attached.
B16: Table 1: Maintenance expenditure
B18: Statutory Account code or reference to account code | C18: Description | D18: Audited Statutory Accounts | E18: Adjustments | F18: Distribution business | G18: Standard Control Services | K18: AMI | L18: Public Lighting - Alternative Control | N18: Other Alternative Control Services | P18: Negotiated Services | Q18: Unregulated Services
G19: Forecast | H19: Adjusted Forecast | I19: Actual | J19: Difference | L19: Energy efficient | M19: Non energy efficient | N19: Fee based service | O19: Quoted service
C20: Routine | D20: 3053.000067 | E20: 0 | F20: 3053.000067 | G20: 6989.833097 | H20: =IF(Cover!$E$26=2014,((G20/Cover!$D$48)*Cover!$H$48),((G20/Cover!$D$49)*Cover!$I$49)) -> 7929.52193 | I20: 3053.000067 | J20: =IF(H20=0,1,((I20-H20)/H20)*1) -> -0.6149830855 | K20: 0 | L20: 0 | M20: 0 | N20: 0 | O20: 0 | P20: 0 | Q20: 0
C21: Condition based | D21: 15709.56006 | E21: 0 | F21: 15709.56006 | G21: 11281.94263 | H21: =IF(Cover!$E$26=2014,((G21/Cover!$D$48)*Cover!$H$48),((G21/Cover!$D$49)*Cover!$I$49)) -> 12798.64773 | I21: 15709.56006 | J21: 0.2274390538 | K21: 0 | L21: 0 | M21: 0 | N21: 0 | O21: 0 | P21: 0 | Q21: 0
C22: Emergency | D22: 4458.993266 | E22: 0 | F22: 4458.993266 | G22: 3834.081473 | H22: =IF(Cover!$E$26=2014,((G22/Cover!$D$48)*Cover!$H$48),((G22/Cover!$D$49)*Cover!$I$49)) -> 4349.522042 | I22: 4458.993266 | J22: 0.02516856397 | K22: 0 | L22: 0 | M22: 0 | N22: 0 | O22: 0 | P22: 0 | Q22: 0
C23: SCADA/Network Control | D23: 172.41062 | E23: 0 | F23: 172.41062 | G23: 33.4461717 | H23: =IF(Cover!$E$26=2014,((G23/Cover!$D$48)*Cover!$H$48),((G23/Cover!$D$49)*Cover!$I$49)) -> 37.94255861 | I23: 172.41062 | J23: 3.543990345 | K23: 0 | L23: 0 | M23: 0 | N23: 0 | O23: 0 | P23: 0 | Q23: 0
C24: Other - Standard Control Services | D24: 2591.611119 | E24: 0 | F24: 2591.611119 | G24: 2153.512795 | H24: =IF(Cover!$E$26=2014,((G24/Cover!$D$48)*Cover!$H$48),((G24/Cover!$D$49)*Cover!$I$49)) -> 2443.02356 | I24: 2591.611119 | J24: 0.06082117287 | K24: 0 | L24: 0 | M24: 0 | N24: 0 | O24: 0 | P24: 0 | Q24: 0
C25: AMI | D25: 928.726 | E25: 0 | F25: 928.726 | G25: 0 | H25: =IF(Cover!$E$26=2014,((G25/Cover!$D$48)*Cover!$H$48),((G25/Cover!$D$49)*Cover!$I$49)) -> 0 | I25: 0 | J25: 1 | K25: 928.726 | L25: 0 | M25: 0 | N25: 0 | O25: 0 | P25: 0 | Q25: 0
C26: Public Lighting | D26: 2173.436631 | E26: 0 | F26: 2173.436631 | G26: 0 | H26: =IF(Cover!$E$26=2014,((G26/Cover!$D$48)*Cover!$H$48),((G26/Cover!$D$49)*Cover!$I$49)) -> 0 | I26: 1.221245327e-15 | J26: 1 | K26: 0 | L26: 922.4360928 | M26: 1251.000538 | N26: 0 | O26: 0 | P26: 0 | Q26: 0
C27: Alternative control -other | D27: 3296.866923 | E27: 0 | F27: 3296.866923 | G27: 0 | H27: =IF(Cover!$E$26=2014,((G27/Cover!$D$48)*Cover!$H$48),((G27/Cover!$D$49)*Cover!$I$49)) -> 0 | I27: 0 | J27: 1 | K27: 0 | L27: 0 | M27: 0 | N27: 1502.431558 | O27: 1794.435365 | P27: 0 | Q27: 0
C28: Negotiated services | D28: 0 | E28: 0 | F28: 0 | G28: 0 | H28: =IF(Cover!$E$26=2014,((G28/Cover!$D$48)*Cover!$H$48),((G28/Cover!$D$49)*Cover!$I$49)) -> 0 | I28: 0 | J28: 1 | K28: 0 | L28: 0 | M28: 0 | N28: 0 | O28: 0 | P28: 0 | Q28: 0
C29: Sub Total | D29: =SUM(D20:D28) -> 32384.60468 | E29: 0 | F29: 32384.60468 | G29: =SUM(G20:G28) -> 24292.81616 | H29: =SUM(H20:H28) -> 27558.65782 | I29: =SUM(I20:I28) -> 25985.57513 | J29: -0.05708125197 | K29: =SUM(K20:K28) -> 928.726 | L29: 922.4360928 | M29: 1251.000538 | N29: 1502.431558 | O29: 1794.435365 | P29: 0 | Q29: 0
C30: Unregulated services | D30: 0 | E30: 0 | F30: 0 | G30: 0 | H30: =IF(Cover!$E$26=2014,((G30/Cover!$D$48)*Cover!$H$48),((G30/Cover!$D$49)*Cover!$I$49)) -> 0 | I30: 0 | J30: 1 | K30: 0 | L30: 0 | M30: 0 | N30: 0 | O30: 0 | P30: 0 | Q30: 0
C31: Total | D31: =D29+D30 -> 32384.60468 | E31: 0 | F31: 32384.60468 | G31: =G29+G30 -> 24292.81616 | H31: =H29+H30 -> 27558.65782 | I31: =I29+I30 -> 25985.57513 | J31: -0.05708125197 | K31: =SUM(K29:K30) -> 928.726 | L31: 922.4360928 | M31: 1251.000538 | N31: 1502.431558 | O31: 1794.435365 | P31: 0 | Q31: 0
B34: Table 2: Explanation of material difference
B36: Where the difference between forecast and actual expenditure shown in table 1, column J is greater than ±10 per cent, please explain the main factors driving the difference.
B38: Category | C38: Explanation
B39: Routine | C39: See Schedule 1
B40: Condition based | C40: See Schedule 1
B41: SCADA/Network Control | C41: The absolute expenditure variance is not material.
B45: Table 3: Other network maintenance costs
B47: Note: List any items included in "other - standard control services' which are more than 5 per cent of the total standard control services maintenance costs
B49: Statutory account code or reference to account code | C49: Description | D49: Audited statutory accounts | E49: Adjustments | F49: Distribution business
C50: Underground cable locations | D50: 2591.611119 | E50: 0 | F50: 2591.611119
C51: 0 | D51: 0 | E51: 0 | F51: 0
C52: 0 | D52: 0 | E52: 0 | F52: 0
C53: 0 | D53: 0 | E53: 0 | F53: 0
C54: 0 | D54: 0 | E54: 0 | F54: 0
C55: 0 | D55: 0 | E55: 0 | F55: 0
B58: Definitions
B59: Maintenance categories are as defined in the 2011-15 Distribution determination
B60: Forecast | C60: The forecast expenditure derived for the 2011-2015 Distribution determination.
B61: Adjusted Forecast | C61: The forecast adjusted to be in equivalent dollar terms to the actual expenditure for the relevant regulatory year
B62: Actual | C62: The expenditure reported for the relevant regulatory year.
B63: ABS CPI | C63: ABS CPI (Pub No: 6401.0, All groups, 8 Capital Cities, September)

Sheet 6b. Maintenance - margin
B1: CitiPower
B2: Maintenance Costs - Margin
B3: =Cover!E26 -> 2015
E4: Colour coding:
B5: Dollar unit used in this sheet | E5: Yellow = Input cells
B6: nominal $'000 | E6: Grey = No inputs required
B8: This information is necessary for monitoring maintenance expenditure and will be used to inform the AER's assessment of maintenance expenditure and its underlying drivers at the next reset. It will also be used to assist in any comparative analysis undertaken by the AER within the current and future regulatory control periods.
B10: Instructions:
B11: Reported expenditure must ONLY INCLUDE profit margins or management fees paid directly or indirectly to related party contractors (which is not an actual incurred cost of the related party contractor) for the regulatory reporting period.
B12: Forecast expenditure is to be taken from the 2011-15 distribution determination. This forecast is adjusted using the CPI calculations on the cover sheet.
B13: If allocating based on assumptions then provide method.
B14: All adjustments must be explained with supporting documentation attached.
B16: Table 1: Maintenance expenditure
B18: Statutory Account code or reference to account code | C18: Description | D18: Audited Statutory Accounts | E18: Adjustments | F18: Distribution business | G18: Standard Control Services | K18: AMI | L18: Public Lighting - Alternative Control | N18: Other Alternative Control Services | P18: Negotiated Services | Q18: Unregulated Services
G19: Forecast | H19: Adjusted Forecast | I19: Actual | J19: Difference | L19: Energy efficient | M19: Non energy efficient | N19: Fee based service | O19: Quoted service
C20: Routine | D20: -36.38045292 | E20: 0 | F20: -36.38045292 | G20: 0 | H20: =IF(Cover!$E$26=2014,((G20/Cover!$D$48)*Cover!$H$48),((G20/Cover!$D$49)*Cover!$I$49)) -> 0 | I20: -36.38045292 | J20: =IF(H20=0,1,((I20-H20)/H20)*1) -> 1 | K20: 0 | L20: 0 | M20: 0 | N20: 0 | O20: 0 | P20: 0 | Q20: 0
C21: Condition based | D21: 25.77022303 | E21: 0 | F21: 25.77022303 | G21: 0 | H21: =IF(Cover!$E$26=2014,((G21/Cover!$D$48)*Cover!$H$48),((G21/Cover!$D$49)*Cover!$I$49)) -> 0 | I21: 25.77022303 | J21: 1 | K21: 0 | L21: 0 | M21: 0 | N21: 0 | O21: 0 | P21: 0 | Q21: 0
C22: Emergency | D22: 60.38229348 | E22: 0 | F22: 60.38229348 | G22: 0 | H22: =IF(Cover!$E$26=2014,((G22/Cover!$D$48)*Cover!$H$48),((G22/Cover!$D$49)*Cover!$I$49)) -> 0 | I22: 60.38229348 | J22: 1 | K22: 0 | L22: 0 | M22: 0 | N22: 0 | O22: 0 | P22: 0 | Q22: 0
C23: SCADA/Network Control | D23: 2.239387983 | E23: 0 | F23: 2.239387983 | G23: 0 | H23: =IF(Cover!$E$26=2014,((G23/Cover!$D$48)*Cover!$H$48),((G23/Cover!$D$49)*Cover!$I$49)) -> 0 | I23: 2.239387983 | J23: 1 | K23: 0 | L23: 0 | M23: 0 | N23: 0 | O23: 0 | P23: 0 | Q23: 0
C24: Other - Standard Control Services | D24: 20.14973275 | E24: 0 | F24: 20.14973275 | G24: 0 | H24: =IF(Cover!$E$26=2014,((G24/Cover!$D$48)*Cover!$H$48),((G24/Cover!$D$49)*Cover!$I$49)) -> 0 | I24: 20.14973275 | J24: 1 | K24: 0 | L24: 0 | M24: 0 | N24: 0 | O24: 0 | P24: 0 | Q24: 0
C25: AMI | D25: 9.85867591 | E25: 0 | F25: 9.85867591 | G25: 0 | H25: =IF(Cover!$E$26=2014,((G25/Cover!$D$48)*Cover!$H$48),((G25/Cover!$D$49)*Cover!$I$49)) -> 0 | I25: 0 | J25: 1 | K25: 9.85867591 | L25: 0 | M25: 0 | N25: 0 | O25: 0 | P25: 0 | Q25: 0
C26: Public Lighting | D26: -3.784863415 | E26: 0 | F26: -3.784863415 | G26: 0 | H26: =IF(Cover!$E$26=2014,((G26/Cover!$D$48)*Cover!$H$48),((G26/Cover!$D$49)*Cover!$I$49)) -> 0 | I26: 0 | J26: 1 | K26: 0 | L26: -1.606347556 | M26: -2.178515859 | N26: 0 | O26: 0 | P26: 0 | Q26: 0
C27: Alternative control -other | D27: 30.8355357 | E27: 0 | F27: 30.8355357 | G27: 0 | H27: =IF(Cover!$E$26=2014,((G27/Cover!$D$48)*Cover!$H$48),((G27/Cover!$D$49)*Cover!$I$49)) -> 0 | I27: 0 | J27: 1 | K27: 0 | L27: 0 | M27: 0 | N27: 14.40460594 | O27: 16.43092976 | P27: 0 | Q27: 0
C28: Negotiated services | D28: 0 | E28: 0 | F28: 0 | G28: 0 | H28: =IF(Cover!$E$26=2014,((G28/Cover!$D$48)*Cover!$H$48),((G28/Cover!$D$49)*Cover!$I$49)) -> 0 | I28: 0 | J28: 1 | K28: 0 | L28: 0 | M28: 0 | N28: 0 | O28: 0 | P28: 0 | Q28: 0
C29: Sub Total | D29: =SUM(D20:D28) -> 109.0705325 | E29: 0 | F29: 109.0705325 | G29: =SUM(G20:G28) -> 0 | H29: =SUM(H20:H28) -> 0 | I29: =SUM(I20:I28) -> 72.16118432 | J29: 1 | K29: =SUM(K20:K28) -> 9.85867591 | L29: -1.606347556 | M29: -2.178515859 | N29: 14.40460594 | O29: 16.43092976 | P29: 0 | Q29: 0
C30: Unregulated services | D30: 0 | E30: 0 | F30: 0 | G30: 0 | H30: =IF(Cover!$E$26=2014,((G30/Cover!$D$48)*Cover!$H$48),((G30/Cover!$D$49)*Cover!$I$49)) -> 0 | I30: 0 | J30: 1 | K30: 0 | L30: 0 | M30: 0 | N30: 0 | O30: 0 | P30: 0 | Q30: 0
C31: Total | D31: =D29+D30 -> 109.0705325 | E31: 0 | F31: 109.0705325 | G31: =G29+G30 -> 0 | H31: =H29+H30 -> 0 | I31: =I29+I30 -> 72.16118432 | J31: 1 | K31: =SUM(K29:K30) -> 9.85867591 | L31: -1.606347556 | M31: -2.178515859 | N31: 14.40460594 | O31: 16.43092976 | P31: 0 | Q31: 0
B34: Table 2: Explanation of material difference
B36: Where the difference between forecast and actual expenditure shown in table 1, column J is greater than ±10 per cent, please explain the main factors driving the difference.
B38: Category | C38: Explanation
B39: 0 | C39: 0
B40: 0 | C40: 0
B41: 0 | C41: 0
B42: 0 | C42: 0
B44: Table 3: Other network maintenance costs
B46: Note: List any items included in "other - standard control services' which are more than 5 per cent of the total standard control services maintenance costs
B48: Statutory account code or reference to account code | C48: Description | D48: Audited statutory accounts | E48: Adjustments | F48: Distribution business
C49: Underground cable locations | D49: 20.14973275 | E49: 0 | F49: 20.14973275
B56: Definitions
B57: Maintenance categories are as defined in the 2011-15 Distribution determination

Sheet 8a. Operating Activities (T)
B1: =Cover!E22 -> CitiPower Pty Ltd
B2: Operating Activities - total
B3: =Cover!E26 -> 2015
E4: Colour coding:
B5: Dollar unit used in this sheet | E5: Yellow = Input cells
B6: nominal $'000 | E6: Grey = No inputs required
B8: This information is necessary for monitoring operating activities, and will be used to inform the AER’s assessment of operating costs and its underlying drivers at the next reset. It will also be used to assist in any comparative analysis undertaken by the AER within the current and future regulatory control periods.
B10: Instructions:
B11: Reported operating charges and costs must INCLUDE any profit margins or management fees paid directly or indirectly to related party contractors (which is not an actual incurred cost of the related party contractor) for the regulatory reporting period.
B12: Forecast expenditure is to be taken from the 2011-15 distribution determination. This forecast is adjusted using the CPI calculations on the cover sheet.
B13: If allocating based on assumptions then provide method.
B14: All adjustments must be explained with supporting documentation attached.
B16: Table 1 Operating charges and costs
B18: Account code or reference to account code | C18: Description | D18: Audited Statutory Accounts | E18: Adjustments | F18: Distribution Business | G18: Standard Control Services | K18: AMI | L18: Public Lighting - Alternative Control | N18: Other Alternative Control Services | P18: Negotiated Services | Q18: Unregulated Services
C19: Designated Pricing Proposal Charges: | G19: Forecast | H19: Adjusted Forecast | I19: Actual | J19: Difference | L19: Energy efficient | M19: Non-energy efficient | N19: Fee based service | O19: Quoted service
C20: Transmission Connection Fee | D20: 11435.27147 | E20: -11435.27147 | F20: 0 | G20: 0 | H20: =IF(Cover!$E$26=2014,((G20/Cover!$D$48)*Cover!$H$48),((G20/Cover!$D$49)*Cover!$I$49)) -> 0 | I20: 0 | J20: =IF(H20=0,1,((I20-H20)/H20)*1) -> 1 | K20: 0 | L20: 0 | M20: 0 | N20: 0 | O20: 0 | P20: 0 | Q20: 0
C21: Avoided TUoS charges/transmission costs | D21: 96126.69665 | E21: -96126.69665 | F21: 0 | G21: 0 | H21: =IF(Cover!$E$26=2014,((G21/Cover!$D$48)*Cover!$H$48),((G21/Cover!$D$49)*Cover!$I$49)) -> 0 | I21: 0 | J21: 1 | K21: 0 | L21: 0 | M21: 0 | N21: 0 | O21: 0 | P21: 0 | Q21: 0
C22: AEMO shared TUOS Charges | D22: 0 | E22: 0 | F22: 0 | G22: 0 | H22: =IF(Cover!$E$26=2014,((G22/Cover!$D$48)*Cover!$H$48),((G22/Cover!$D$49)*Cover!$I$49)) -> 0 | I22: 0 | J22: 1 | K22: 0 | L22: 0 | M22: 0 | N22: 0 | O22: 0 | P22: 0 | Q22: 0
C23: Net Cross Boundary Network Charges | D23: 3810.89484 | E23: -3810.89484 | F23: 0 | G23: 0 | H23: =IF(Cover!$E$26=2014,((G23/Cover!$D$48)*Cover!$H$48),((G23/Cover!$D$49)*Cover!$I$49)) -> 0 | I23: 0 | J23: 1 | K23: 0 | L23: 0 | M23: 0 | N23: 0 | O23: 0 | P23: 0 | Q23: 0
C24: Jurisdictional Scheme Amounts:
C25: Premium Feed In Tariff | D25: 4010.41661 | E25: -4010.41661 | F25: 0 | G25: 0 | H25: =IF(Cover!$E$26=2014,((G25/Cover!$D$48)*Cover!$H$48),((G25/Cover!$D$49)*Cover!$I$49)) -> 0 | I25: 0 | J25: =IF(H25=0,1,((I25-H25)/H25)*1) -> 1 | K25: 0 | L25: 0 | M25: 0 | N25: 0 | O25: 0 | P25: 0 | Q25: 0
C26: Transitional Feed In Tariff | D26: 0 | E26: 0 | F26: 0 | G26: 0 | H26: =IF(Cover!$E$26=2014,((G26/Cover!$D$48)*Cover!$H$48),((G26/Cover!$D$49)*Cover!$I$49)) -> 0 | I26: 0 | J26: 1 | K26: 0 | L26: 0 | M26: 0 | N26: 0 | O26: 0 | P26: 0 | Q26: 0
C27: <insert future jurisdictional scheme payment> | H27: =IF(Cover!$E$26=2014,((G27/Cover!$D$48)*Cover!$H$48),((G27/Cover!$D$49)*Cover!$I$49)) -> 0 | J27: 1 | K27: 0 | L27: 0 | M27: 0 | N27: 0 | O27: 0 | P27: 0 | Q27: 0
C28: Sub Total | D28: =SUM(D20:D27) -> 115383.2796 | E28: -115383.2796 | F28: 0 | G28: =SUM(G20:G27) -> 0 | H28: =SUM(H20:H27) -> 0 | I28: 0 | J28: 1 | K28: 0 | L28: 0 | M28: 0 | N28: 0 | O28: 0 | P28: 0 | Q28: 0
C29: Operating Costs
C30: Network Operating Costs | D30: 18169.87799 | E30: -254.79341 | F30: 17915.08458 | G30: 12978.01399 | H30: =IF(Cover!$E$26=2014,((G30/Cover!$D$48)*Cover!$H$48),((G30/Cover!$D$49)*Cover!$I$49)) -> 14722.73302 | I30: 17915.08458 | J30: =IF(H30=0,1,((I30-H30)/H30)*1) -> 0.2168314508 | K30: 0 | L30: 0 | M30: 0 | N30: 0 | O30: 0 | P30: 0 | Q30: 0
C31: Billing & Revenue Collection | D31: 4985.72412 | E31: -1341.884 | F31: 3643.84012 | G31: 2180.846772 | H31: =IF(Cover!$E$26=2014,((G31/Cover!$D$48)*Cover!$H$48),((G31/Cover!$D$49)*Cover!$I$49)) -> 2474.032222 | I31: 3643.84012 | J31: 0.4728345443 | K31: 0 | L31: 0 | M31: 0 | N31: 0 | O31: 0 | P31: 0 | Q31: 0
C32: Advertising/Marketing | D32: 5.845876901 | E32: 0 | F32: 5.845876901 | G32: 71.72764306 | H32: =IF(Cover!$E$26=2014,((G32/Cover!$D$48)*Cover!$H$48),((G32/Cover!$D$49)*Cover!$I$49)) -> 81.37045775 | I32: 5.845876901 | J32: -0.9281572568 | K32: 0 | L32: 0 | M32: 0 | N32: 0 | O32: 0 | P32: 0 | Q32: 0
C33: Customer Service | D33: 2991.96441 | E33: 0 | F33: 2991.96441 | G33: 2159.316718 | H33: =IF(Cover!$E$26=2014,((G33/Cover!$D$48)*Cover!$H$48),((G33/Cover!$D$49)*Cover!$I$49)) -> 2449.607742 | I33: 2991.96441 | J33: 0.221405517 | K33: 0 | L33: 0 | M33: 0 | N33: 0 | O33: 0 | P33: 0 | Q33: 0
C34: Regulatory | D34: 0 | E34: 0 | F34: 0 | G34: 0 | H34: =IF(Cover!$E$26=2014,((G34/Cover!$D$48)*Cover!$H$48),((G34/Cover!$D$49)*Cover!$I$49)) -> 0 | I34: 0 | J34: 1 | K34: 0 | L34: 0 | M34: 0 | N34: 0 | O34: 0 | P34: 0 | Q34: 0
C35: Regulatory Reset | D35: -0.00817 | E35: 621.1531588 | F35: 621.1449888 | G35: 824.7480398 | H35: =IF(Cover!$E$26=2014,((G35/Cover!$D$48)*Cover!$H$48),((G35/Cover!$D$49)*Cover!$I$49)) -> 935.6242957 | I35: 621.1449888 | J35: -0.3361170807 | K35: 0 | L35: 0 | M35: 0 | N35: 0 | O35: 0 | P35: 0 | Q35: 0
C36: IT | D36: 0 | E36: 0 | F36: 0 | G36: 0 | H36: =IF(Cover!$E$26=2014,((G36/Cover!$D$48)*Cover!$H$48),((G36/Cover!$D$49)*Cover!$I$49)) -> 0 | I36: 0 | J36: 1 | K36: 0 | L36: 0 | M36: 0 | N36: 0 | O36: 0 | P36: 0 | Q36: 0
C37: Licence fee | D37: 36.475 | E37: 0 | F37: 36.475 | G37: 0 | H37: =IF(Cover!$E$26=2014,((G37/Cover!$D$48)*Cover!$H$48),((G37/Cover!$D$49)*Cover!$I$49)) -> 0 | I37: 36.475 | J37: 1 | K37: 0 | L37: 0 | M37: 0 | N37: 0 | O37: 0 | P37: 0 | Q37: 0
C38: GSL payments | D38: 38.151 | E38: 0 | F38: 38.151 | G38: 13.62339424 | H38: =IF(Cover!$E$26=2014,((G38/Cover!$D$48)*Cover!$H$48),((G38/Cover!$D$49)*Cover!$I$49)) -> 15.45487594 | I38: 38.151 | J38: 1.468541329 | K38: 0 | L38: 0 | M38: 0 | N38: 0 | O38: 0 | P38: 0 | Q38: 0
C39: Non-network alternatives costs | D39: 0 | E39: 0 | F39: 0 | G39: 0 | H39: =IF(Cover!$E$26=2014,((G39/Cover!$D$48)*Cover!$H$48),((G39/Cover!$D$49)*Cover!$I$49)) -> 0 | I39: 0 | J39: 1 | K39: 0 | L39: 0 | M39: 0 | N39: 0 | O39: 0 | P39: 0 | Q39: 0
C40: Debt raising costs | D40: 0 | E40: 0 | F40: 0 | G40: 876.9610983 | H40: =IF(Cover!$E$26=2014,((G40/Cover!$D$48)*Cover!$H$48),((G40/Cover!$D$49)*Cover!$I$49)) -> 994.856696 | I40: 0 | J40: -1 | K40: 0 | L40: 0 | M40: 0 | N40: 0 | O40: 0 | P40: 0 | Q40: 0
C41: Other - Standard Control Services | D41: 29892.13386 | E41: -25116.24242 | F41: 4775.891436 | G41: 5085.750571 | H41: =IF(Cover!$E$26=2014,((G41/Cover!$D$48)*Cover!$H$48),((G41/Cover!$D$49)*Cover!$I$49)) -> 5769.461177 | I41: 4775.891436 | J41: -0.1722118775 | K41: 0 | L41: 0 | M41: 0 | N41: 0 | O41: 0 | P41: 0 | Q41: 0
C42: AMI | D42: 6067.90067 | E42: 0 | F42: 6067.90067 | G42: 0 | H42: =IF(Cover!$E$26=2014,((G42/Cover!$D$48)*Cover!$H$48),((G42/Cover!$D$49)*Cover!$I$49)) -> 0 | I42: 0 | J42: 1 | K42: 6067.90067 | L42: 0 | M42: 0 | N42: 0 | O42: 0 | P42: 0 | Q42: 0
C43: Public Lighting | D43: 63.86855093 | E43: 0 | F43: 63.86855093 | G43: 0 | H43: =IF(Cover!$E$26=2014,((G43/Cover!$D$48)*Cover!$H$48),((G43/Cover!$D$49)*Cover!$I$49)) -> 0 | I43: 0 | J43: 1 | K43: 0 | L43: 27.10668245 | M43: 36.76186848 | N43: 0 | O43: 0 | P43: 0 | Q43: 0
C44: Alternative control -other | D44: 4013.745771 | E44: 2207.375825 | F44: 6221.121595 | G44: 0 | H44: =IF(Cover!$E$26=2014,((G44/Cover!$D$48)*Cover!$H$48),((G44/Cover!$D$49)*Cover!$I$49)) -> 0 | I44: 0 | J44: 1 | K44: 0 | L44: 0 | M44: 0 | N44: 3130.616915 | O44: 3090.50468 | P44: 0 | Q44: 0
C45: Negotiated services | D45: 0 | E45: 0 | F45: 0 | G45: 0 | H45: =IF(Cover!$E$26=2014,((G45/Cover!$D$48)*Cover!$H$48),((G45/Cover!$D$49)*Cover!$I$49)) -> 0 | I45: 0 | J45: 1 | K45: 0 | L45: 0 | M45: 0 | N45: 0 | O45: 0 | P45: 0 | Q45: 0
C46: Sub Total | D46: =SUM(D30:D45) -> 66265.67907 | E46: -23884.39085 | F46: 42381.28823 | G46: =SUM(G30:G45) -> 24190.98823 | H46: =SUM(H30:H45) -> 27443.14049 | I46: =SUM(I30:I45) -> 30028.39741 | J46: 0.09420412095 | K46: 6067.90067 | L46: 27.10668245 | M46: 36.76186848 | N46: 3130.616915 | O46: 3090.50468 | P46: 0 | Q46: 0
C47: Unregulated services | D47: 0 | E47: 0 | F47: 0 | G47: 0 | H47: =IF(Cover!$E$26=2014,((G47/Cover!$D$48)*Cover!$H$48),((G47/Cover!$D$49)*Cover!$I$49)) -> 0 | I47: 0 | J47: 1 | K47: 0 | L47: 0 | M47: 0 | N47: 0 | O47: 0 | P47: 0 | Q47: 0
C48: Total | D48: =SUM(D28, D46:D47) -> 181648.9586 | E48: -139267.6704 | F48: 42381.28823 | G48: 24190.98823 | H48: 27443.14049 | I48: 30028.39741 | J48: 0.09420412095 | K48: =SUM(K28, K46:K47) -> 6067.90067 | L48: 27.10668245 | M48: 36.76186848 | N48: 3130.616915 | O48: 3090.50468 | P48: 0 | Q48: 0
B50: Table 2: Explanation of material difference
B52: Where the difference between forecast and actual expenditure shown in table 1, column J is greater than ±10 per cent, please explain the main factors driving the difference.
B54: Category | C54: Explanation
B55: Network Operating Costs | C55: Higher number of cancelled projects | D55: 0 | E55: 0 | F55: 0
B56: Billing & Revenue Collection | C56: Impact of internal mapping of expenditure. Sum of Billing & Revenue, Advertising, Customer Service & Other - Standard Control Services is in line with forecast. | D56: 0 | E56: 0 | F56: 0
B57: Advertising/Marketing | C57: Impact of internal mapping of expenditure. Sum of Billing & Revenue, Advertising, Customer Service & Other - Standard Control Services is in line with forecast. | D57: 0 | E57: 0 | F57: 0
B58: Customer Service | C58: Impact of internal mapping of expenditure. Sum of Billing & Revenue, Advertising, Customer Service & Other - Standard Control Services is in line with forecast. | D58: 0 | E58: 0 | F58: 0
B59: Regulatory Reset | C59: See Schedule 1 | D59: 0 | E59: 0 | F59: 0
B60: GSL payments | C60: The absolute expenditure variance is not material. | D60: 0 | E60: 0 | F60: 0
B61: Debt raising costs | C61: See Schedule 1 | D61: 0 | E61: 0 | F61: 0
B62: Other - Standard Control Services | C62: Impact of internal mapping of expenditure. Sum of Billing & Revenue, Advertising, Customer Service & Other - Standard Control Services is in line with forecast. | D62: 0 | E62: 0 | F62: 0
B64: Table 3: Other network operating costs
B66: Note: List any items included in "other - standard control services' which are more than 5 per cent of the total standard control services operating costs.
B68: Statutory Account code or reference to account code | C68: Description | D68: Audited statutory accounts | E68: Adjustments | F68: Distribution business | G68: Standard Control Services
B76: Table 4 Operating Expenditure - Non-Recurrent Network Operating Costs
B78: Note: List any items that are more than 5 per cent of the total standard control services operating costs.
B80: Statutory Account code or reference to account code | C80: Description | D80: Audited Statutory Financial Statements | E80: Adjustments | F80: Distribution business | G80: Standard Control Services
B81: 0 | C81: 0 | D81: 0 | E81: 0 | F81: 0 | G81: 0
B82: 0 | C82: 0 | D82: 0 | E82: 0 | F82: 0 | G82: 0
B83: 0 | C83: 0 | D83: 0 | E83: 0 | F83: 0 | G83: 0
B84: 0 | C84: 0 | D84: 0 | E84: 0 | F84: 0 | G84: 0
B85: 0 | C85: 0 | D85: 0 | E85: 0 | F85: 0 | G85: 0
B88: Definitions
B89: Operating expenditure categories are as defined in the 2011-15 Distribution determination
B90: Forecast | C90: The forecast expenditure derived for the 2011-2015 Distribution determination.
B91: Adjusted Forecast | C91: The forecast adjusted to be in equivalent dollar terms to the actual expenditure for the relevant regulatory year
B92: Actual | C92: The expenditure reported for the relevant regulatory year.
B93: ABS CPI | C93: ABS CPI (Pub No: 6401.0, All groups, 8 Capital Cities, September)

Sheet 8b. Operating Activities (M)
B1: =Cover!E22 -> CitiPower Pty Ltd
B2: Operating Activities - margin
B3: =Cover!E26 -> 2015
E4: Colour coding:
B5: Dollar unit used in this sheet | E5: Yellow = Input cells
B6: nominal $'000 | E6: Grey = No inputs required
B8: This information is necessary for monitoring operating activities, and will be used to inform the AER’s assessment of operating costs and its underlying drivers at the next reset. It will also be used to assist in any comparative analysis undertaken by the AER within the current and future regulatory control periods.
B10: Instructions:
B11: Reported expenditure must ONLY INCLUDE profit margins or management fees paid directly or indirectly to related party contractors (which is not an actual incurred cost of the related party contractor) for the regulatory reporting period.
B12: Forecast expenditure is to be taken from the 2011-15 distribution determination. This forecast is adjusted using the CPI calculations on the cover sheet.
B13: If allocating based on assumptions then provide method.
B14: All adjustments must be explained with supporting documentation attached.
B16: Table 1 Operating charges and costs
B18: Account code or reference to account code | C18: Description | D18: Audited Statutory Accounts | E18: Adjustments | F18: Distribution Business | G18: Standard Control Services | K18: AMI | L18: Public Lighting - Alternative Control | N18: Other Alternative Control Services | P18: Negotiated Services | Q18: Unregulated Services
C19: Designated Pricing Proposal Charges: | G19: Forecast | H19: Adjusted Forecast | I19: Actual | J19: Difference | L19: Energy efficient | M19: Non efficient | N19: Fee based service | O19: Quoted service
C20: Transmission Connection Fee | D20: 0 | E20: 0 | F20: 0 | G20: 0 | H20: =IF(Cover!$E$26=2014,((G20/Cover!$D$48)*Cover!$H$48),((G20/Cover!$D$49)*Cover!$I$49)) -> 0 | I20: 0 | J20: =IF(H20=0,1,((I20-H20)/H20)*1) -> 1 | K20: 0 | L20: 0 | M20: 0 | N20: 0 | O20: 0 | P20: 0 | Q20: 0
C21: Avoided TUoS charges/transmission costs | D21: 0 | E21: 0 | F21: 0 | G21: 0 | H21: =IF(Cover!$E$26=2014,((G21/Cover!$D$48)*Cover!$H$48),((G21/Cover!$D$49)*Cover!$I$49)) -> 0 | I21: 0 | J21: 1 | K21: 0 | L21: 0 | M21: 0 | N21: 0 | O21: 0 | P21: 0 | Q21: 0
C22: AEMO shared TUOS Charges | D22: 0 | E22: 0 | F22: 0 | G22: 0 | H22: =IF(Cover!$E$26=2014,((G22/Cover!$D$48)*Cover!$H$48),((G22/Cover!$D$49)*Cover!$I$49)) -> 0 | I22: 0 | J22: 1 | K22: 0 | L22: 0 | M22: 0 | N22: 0 | O22: 0 | P22: 0 | Q22: 0
C23: Net Cross Boundary Network Charges | D23: 0 | E23: 0 | F23: 0 | G23: 0 | H23: =IF(Cover!$E$26=2014,((G23/Cover!$D$48)*Cover!$H$48),((G23/Cover!$D$49)*Cover!$I$49)) -> 0 | I23: 0 | J23: 1 | K23: 0 | L23: 0 | M23: 0 | N23: 0 | O23: 0 | P23: 0 | Q23: 0
C24: Jurisdictional Scheme Amounts:
C25: Premium Feed In Tariff | D25: 0 | E25: 0 | F25: 0 | G25: 0 | H25: =IF(Cover!$E$26=2014,((G25/Cover!$D$48)*Cover!$H$48),((G25/Cover!$D$49)*Cover!$I$49)) -> 0 | I25: 0 | J25: =IF(H25=0,1,((I25-H25)/H25)*1) -> 1 | K25: 0 | L25: 0 | M25: 0 | N25: 0 | O25: 0 | P25: 0 | Q25: 0
C26: Transitional Feed In Tariff | D26: 0 | E26: 0 | F26: 0 | G26: 0 | H26: =IF(Cover!$E$26=2014,((G26/Cover!$D$48)*Cover!$H$48),((G26/Cover!$D$49)*Cover!$I$49)) -> 0 | I26: 0 | J26: 1 | K26: 0 | L26: 0 | M26: 0 | N26: 0 | O26: 0 | P26: 0 | Q26: 0
C27: <insert future jurisdictional scheme payment> | H27: =IF(Cover!$E$26=2014,((G27/Cover!$D$48)*Cover!$H$48),((G27/Cover!$D$49)*Cover!$I$49)) -> 0 | J27: =IF(H27=0,1,((I27-H27)/H27)*1) -> 1
C28: Sub Total | D28: =SUM(D20:D27) -> 0 | E28: 0 | F28: 0 | G28: 0 | H28: =SUM(H20:H27) -> 0 | I28: 0 | J28: 1 | K28: 0 | L28: 0 | M28: 0 | N28: 0 | O28: 0 | P28: 0 | Q28: 0
C29: Operating Costs
C30: Network Operating Costs | D30: 0 | E30: 51.02898762 | F30: 51.02898762 | G30: 0 | H30: =IF(Cover!$E$26=2014,((G30/Cover!$D$48)*Cover!$H$48),((G30/Cover!$D$49)*Cover!$I$49)) -> 0 | I30: 51.02898762 | J30: =IF(H30=0,1,((I30-H30)/H30)*1) -> 1 | K30: 0 | L30: 0 | M30: 0 | N30: 0 | O30: 0 | P30: 0 | Q30: 0
C31: Billing & Revenue Collection | D31: 0 | E31: 1040.570554 | F31: 1040.570554 | G31: 0 | H31: =IF(Cover!$E$26=2014,((G31/Cover!$D$48)*Cover!$H$48),((G31/Cover!$D$49)*Cover!$I$49)) -> 0 | I31: 1040.570554 | J31: 1 | K31: 0 | L31: 0 | M31: 0 | N31: 0 | O31: 0 | P31: 0 | Q31: 0
C32: Advertising/Marketing | D32: 0 | E32: -2.421216443 | F32: -2.421216443 | G32: 0 | H32: =IF(Cover!$E$26=2014,((G32/Cover!$D$48)*Cover!$H$48),((G32/Cover!$D$49)*Cover!$I$49)) -> 0 | I32: -2.421216443 | J32: 1 | K32: 0 | L32: 0 | M32: 0 | N32: 0 | O32: 0 | P32: 0 | Q32: 0
C33: Customer Service | D33: 0 | E33: 832.8006211 | F33: 832.8006211 | G33: 0 | H33: =IF(Cover!$E$26=2014,((G33/Cover!$D$48)*Cover!$H$48),((G33/Cover!$D$49)*Cover!$I$49)) -> 0 | I33: 832.8006211 | J33: 1 | K33: 0 | L33: 0 | M33: 0 | N33: 0 | O33: 0 | P33: 0 | Q33: 0
C34: Regulatory | D34: 0 | E34: 0 | F34: 0 | G34: 0 | H34: =IF(Cover!$E$26=2014,((G34/Cover!$D$48)*Cover!$H$48),((G34/Cover!$D$49)*Cover!$I$49)) -> 0 | I34: 0 | J34: 1 | K34: 0 | L34: 0 | M34: 0 | N34: 0 | O34: 0 | P34: 0 | Q34: 0
C35: Regulatory Reset | D35: 0 | E35: 0 | F35: 0 | G35: 0 | H35: =IF(Cover!$E$26=2014,((G35/Cover!$D$48)*Cover!$H$48),((G35/Cover!$D$49)*Cover!$I$49)) -> 0 | I35: 0 | J35: 1 | K35: 0 | L35: 0 | M35: 0 | N35: 0 | O35: 0 | P35: 0 | Q35: 0
C36: IT | D36: 0 | E36: 0 | F36: 0 | G36: 0 | H36: =IF(Cover!$E$26=2014,((G36/Cover!$D$48)*Cover!$H$48),((G36/Cover!$D$49)*Cover!$I$49)) -> 0 | I36: 0 | J36: 1 | K36: 0 | L36: 0 | M36: 0 | N36: 0 | O36: 0 | P36: 0 | Q36: 0
C37: Licence fee | D37: 0 | E37: 0 | F37: 0 | G37: 0 | H37: =IF(Cover!$E$26=2014,((G37/Cover!$D$48)*Cover!$H$48),((G37/Cover!$D$49)*Cover!$I$49)) -> 0 | I37: 0 | J37: 1 | K37: 0 | L37: 0 | M37: 0 | N37: 0 | O37: 0 | P37: 0 | Q37: 0
C38: GSL payments | D38: 0 | E38: 0 | F38: 0 | G38: 0 | H38: =IF(Cover!$E$26=2014,((G38/Cover!$D$48)*Cover!$H$48),((G38/Cover!$D$49)*Cover!$I$49)) -> 0 | I38: 0 | J38: 1 | K38: 0 | L38: 0 | M38: 0 | N38: 0 | O38: 0 | P38: 0 | Q38: 0
C39: Non-network alternatives costs | D39: 0 | E39: 0 | F39: 0 | G39: 0 | H39: =IF(Cover!$E$26=2014,((G39/Cover!$D$48)*Cover!$H$48),((G39/Cover!$D$49)*Cover!$I$49)) -> 0 | I39: 0 | J39: 1 | K39: 0 | L39: 0 | M39: 0 | N39: 0 | O39: 0 | P39: 0 | Q39: 0
C40: Debt raising costs | D40: 0 | E40: 0 | F40: 0 | G40: 0 | H40: =IF(Cover!$E$26=2014,((G40/Cover!$D$48)*Cover!$H$48),((G40/Cover!$D$49)*Cover!$I$49)) -> 0 | I40: 0 | J40: 1 | K40: 0 | L40: 0 | M40: 0 | N40: 0 | O40: 0 | P40: 0 | Q40: 0
C41: Other - Standard Control Services (a,b) | D41: 0 | E41: 218.0796153 | F41: 218.0796153 | G41: 0 | H41: =IF(Cover!$E$26=2014,((G41/Cover!$D$48)*Cover!$H$48),((G41/Cover!$D$49)*Cover!$I$49)) -> 0 | I41: 218.0796153 | J41: 1 | K41: 0 | L41: 0 | M41: 0 | N41: 0 | O41: 0 | P41: 0 | Q41: 0
C42: AMI | D42: 0 | E42: 982.1652472 | F42: 982.1652472 | G42: 0 | H42: =IF(Cover!$E$26=2014,((G42/Cover!$D$48)*Cover!$H$48),((G42/Cover!$D$49)*Cover!$I$49)) -> 0 | I42: 0 | J42: 1 | K42: 982.1652472 | L42: 0 | M42: 0 | N42: 0 | O42: 0 | P42: 0 | Q42: 0
C43: Public Lighting | D43: 0 | E43: 18.48101618 | F43: 18.48101618 | G43: 0 | H43: =IF(Cover!$E$26=2014,((G43/Cover!$D$48)*Cover!$H$48),((G43/Cover!$D$49)*Cover!$I$49)) -> 0 | I43: 0 | J43: 1 | K43: 0 | L43: 7.843594844 | M43: 10.63742133 | N43: 0 | O43: 0 | P43: 0 | Q43: 0
C44: Alternative control -other | D44: 0 | E44: 249.2029516 | F44: 249.2029516 | G44: 0 | H44: =IF(Cover!$E$26=2014,((G44/Cover!$D$48)*Cover!$H$48),((G44/Cover!$D$49)*Cover!$I$49)) -> 0 | I44: 0 | J44: 1 | K44: 0 | L44: 0 | M44: 0 | N44: 203.1176323 | O44: 46.08531928 | P44: 0 | Q44: 0
C45: Negotiated services | D45: 0 | E45: 0 | F45: 0 | G45: 0 | H45: =IF(Cover!$E$26=2014,((G45/Cover!$D$48)*Cover!$H$48),((G45/Cover!$D$49)*Cover!$I$49)) -> 0 | I45: 0 | J45: 1 | K45: 0 | L45: 0 | M45: 0 | N45: 0 | O45: 0 | P45: 0 | Q45: 0
C46: Sub Total | D46: =SUM(D30:D45) -> 0 | E46: 3389.907776 | F46: 3389.907776 | G46: 0 | H46: =SUM(H30:H45) -> 0 | I46: =SUM(I30:I45) -> 2140.058561 | J46: =IF(H46=0,1,((I46-H46)/H46)*1) -> 1 | K46: =SUM(K30:K45) -> 982.1652472 | L46: 7.843594844 | M46: 10.63742133 | N46: 203.1176323 | O46: 46.08531928 | P46: 0 | Q46: 0
C47: Unregulated services | D47: 0 | E47: 0 | F47: 0 | G47: 0 | H47: =IF(Cover!$E$26=2014,((G47/Cover!$D$48)*Cover!$H$48),((G47/Cover!$D$49)*Cover!$I$49)) -> 0 | I47: 0 | J47: 1 | K47: 0 | L47: 0 | M47: 0 | N47: 0 | O47: 0 | P47: 0 | Q47: 0
C48: Total | D48: =SUM(D28, D46:D47) -> 0 | E48: 3389.907776 | F48: 3389.907776 | G48: 0 | H48: 0 | I48: 2140.058561 | J48: 1 | K48: =SUM(K28, K46:K47) -> 982.1652472 | L48: 7.843594844 | M48: 10.63742133 | N48: 203.1176323 | O48: 46.08531928 | P48: 0 | Q48: 0
B50: Table 2: Explanation of material difference
B52: Where the difference between forecast and actual expenditure shown in table 1, column J is greater than ±10 per cent, please explain the main factors driving the difference.
B54: Category | C54: Explanation
B55: 0 | C55: 0 | D55: 0 | E55: 0 | F55: 0
B56: 0 | C56: 0 | D56: 0 | E56: 0 | F56: 0
B57: 0 | C57: 0 | D57: 0 | E57: 0 | F57: 0
B59: Table 3 Operating costs - Other standard control services
B61: Note: List any items included in "other - standard control services' which are more than 5 per cent of the total standard control services operating costs
B63: Statutory Account code or reference to account code | C63: Description | D63: Audited Statutory Accounts | E63: Adjustments | F63: Distribution Business | G63: Standard Control Services
B64: 0 | C64: 0 | D64: 0 | E64: 0 | F64: 0 | G64: 0
B65: 0 | C65: 0 | D65: 0 | E65: 0 | F65: 0 | G65: 0
B66: 0 | C66: 0 | D66: 0 | E66: 0 | F66: 0 | G66: 0
B67: 0 | C67: 0 | D67: 0 | E67: 0 | F67: 0 | G67: 0
B68: 0 | C68: 0 | D68: 0 | E68: 0 | F68: 0 | G68: 0
B69: 0 | C69: 0 | D69: 0 | E69: 0 | F69: 0 | G69: 0
B70: 0 | C70: 0 | D70: 0 | E70: 0 | F70: 0 | G70: 0
B72: Table 3 Operating Expenditure - Non-Recurrent Network Operating Costs
B74: Note: List any non-recurrent cost items included in "network operating costs" that are more than 5 per cent of the total standard control services operating costs.
B76: Statutory Account code or reference to account code | C76: Description | D76: Audited Statutory Accounts | E76: Adjustments | F76: Distribution Business | G76: Standard Control Services
B77: 0 | C77: 0 | D77: 0 | E77: 0 | F77: 0 | G77: 0
B78: 0 | C78: 0 | D78: 0 | E78: 0 | F78: 0 | G78: 0
B79: 0 | C79: 0 | D79: 0 | E79: 0 | F79: 0 | G79: 0
B80: 0 | C80: 0 | D80: 0 | E80: 0 | F80: 0 | G80: 0
B81: 0 | C81: 0 | D81: 0 | E81: 0 | F81: 0 | G81: 0
B82: 0 | C82: 0 | D82: 0 | E82: 0 | F82: 0 | G82: 0
B83: 0 | C83: 0 | D83: 0 | E83: 0 | F83: 0 | G83: 0
B85: Definitions
B86: Operating activities are as defined in Appndix G of the RIN, or the 2011-15 distribution determination

Sheet 13. Avoided Cost Payments
B1: =Cover!E22 -> CitiPower Pty Ltd | D1: Colour coding:
B2: Avoided Cost Payments | D2: Yellow = Input cells
B3: =Cover!E26 -> 2015 | D3: Grey = No inputs required
B5: Dollar unit used in this sheet
B6: nominal $'000
B8: This information is necessary for monitoring avoided cost payments, and will be used to inform the AER’s assessment of expenditure and its underlying drivers at the next reset. It will also be used to assist in any comparative analysis undertaken by the AER within the current and future regulatory control periods.
B10: Statutory Account code or reference to account code | C10: Description | D10: Avoided Cost Payment | E10: Number of Projects
C11: Deferral of Augmentation to Transmission Networks
C12: Embedded generators | D12: 0 | E12: 0
C13: Related party embedded generators | D13: 0 | E13: 0
C14: Customers | D14: 0 | E14: 0
C15: Avoided TUOS | D15: 0 | E15: 0
C16: Sub Total | D16: =SUM(D12:D15) -> 0 | E16: =SUM(E12:E15) -> 0
C17: Deferral of Augmentation to Distribution Networks
C18: Embedded generators | D18: 0 | E18: 0
C19: Related party embedded generators | D19: 0 | E19: 0
C20: Customers | D20: 0 | E20: 0
C21: Sub Total | D21: =SUM(D18:D20) -> 0 | E21: =SUM(E18:E20) -> 0
C22: TOTAL | D22: =D21+D16 -> 0 | E22: =E21+E16 -> 0
B24: Definition
B25: Avoided cost payments | C25: The payments made by CitiPower to represent costs that CitiPower would have incurred in the provision of distribution services, but for the actions of another party, which may include a Related Party, embedded generator, third party or customer.
B26: Embedded generators | C26: A person that owns, controls or operates an embedded generating unit.
B27: Related party embedded generators | C27: A related party that owns, controls or operates an embedded generating unit.
B28: Customers | C28: A Distribution Customer (with active and/or inactive accounts) with an active National Metering Identifier (NMI).
B29: Avoided TUOS | C29: Cost of using another distribution network service provider’s distribution network.

Sheet 14. Alt Control&Others
B1: =Cover!E22 -> CitiPower Pty Ltd | E1: Colour coding:
B2: Alternative Control Services and Other Services | E2: Yellow = Input cells
B3: =Cover!E26 -> 2015 | E3: Grey = No inputs required
B4: Dollar unit used in this sheet
B5: nominal $'000
B7: This information is necessary for monitoring Alternative control & other services, and will be used to inform the AER’s assessment of expenditure and its underlying drivers at the next reset. It will also be used to assist in any comparative analysis undertaken by the AER within the current and future regulatory control periods.
B10: Statutory Account code or reference to account code | C10: Description | D10: Direct O&M Costs | E10: Indirect O&M costs | F10: Direct Capex | G10: Indirect Capex | H10: Total expenditure | I10: Revenue
C11: Alternative Control Services - Fee Based
C12: Meter investigation | D12: 74.0905124 | E12: 14.17170276 | F12: 0 | G12: 0 | H12: =SUM(D12:G12) -> 88.26221516 | I12: -19.98753
C13: Meter Testing | D13: 63.6258576 | E13: 12.17007026 | F13: 0 | G13: 0 | H13: =SUM(D13:G13) -> 75.79592786 | I13: -21.29914
C14: De-energisation of existing connections | D14: 353.4380357 | E14: 11.47819254 | F14: 0 | G14: 0 | H14: 364.9162283 | I14: -389.9528359
C15: Energisation of existing connections | D15: 626.3000696 | E15: 20.33961277 | F15: 0 | G15: 0 | H15: 646.6396824 | I15: -691.0051086
C16: Special meter reading | D16: 13.17140638 | E16: 0.4277523161 | F16: 0 | G16: 0 | H16: 13.59915869 | I16: -14.53218599
C17: Re-test of type 5 and 6 metering installations for first tier customers with annual consumption greater than 160 MWh | D17: 0 | E17: 0 | F17: 0 | G17: 0 | H17: 0 | I17: 0
C18: Operation, repair, replacement and maintenance of DNSP public lighting assets | D18: 2076.802458 | E18: 160.5027234 | F18: 1263.200915 | G18: 171.5922337 | H18: 3672.098331 | I18: -4342.76767
C19: Fault response - not DNSP fault | D19: 0 | E19: 0 | F19: 0 | G19: 0 | H19: 0 | I19: 0
C20: Temporary disconnect/reconnect services | D20: 0 | E20: 0 | F20: 0 | G20: 0 | H20: 0 | I20: 0
C21: Wasted attendance - not DNSP fault | D21: 252.2365 | E21: 47.76270455 | F21: 0 | G21: 0 | H21: 299.9992046 | I21: -9.9934
C22: Service truck visits | D22: 905.4721097 | E22: 173.8911332 | F22: 0 | G22: 0 | H22: 1079.363243 | I22: -836.09088
C23: Reserve feeder | D23: 211.4016113 | E23: 6.865442175 | F23: 0 | G23: 0 | H23: 218.2670534 | I23: -202.4739
C24: PV installation | D24: 177.08848 | E24: 5.751094857 | F24: 0 | G24: 0 | H24: 182.8395749 | I24: -327.29157
C25: Routine connections - customers below 100 amps | D25: 1396.241905 | E25: 267.1242803 | F25: 0 | G25: 0 | H25: 1663.366185 | I25: -2915.74595
C26: Temporary supply services | D26: 0 | E26: 0 | F26: 0 | G26: 0 | H26: 0 | I26: 0
C27: Remote meter re-configuration | D27: 0 | E27: 0 | F27: 0 | G27: 0 | H27: 0 | I27: 0
C28: Remote de-energisation | D28: 0 | E28: 0 | F28: 0 | G28: 0 | H28: 0 | I28: 0
C29: Remote re-energisation | D29: 0 | E29: 0 | F29: 0 | G29: 0 | H29: 0 | I29: 0
C30: Total fee based alternative control services | D30: =SUM(D12:D29) -> 6149.868946 | E30: 720.4847091 | F30: 1263.200915 | G30: 171.5922337 | H30: 8305.146804 | I30: -9771.140171
C31: Alternative Control Services - Quoted
C32: Rearrangement of network assets at customer request, excluding alteration and relocation of existing public lighting assets | D32: 0 | E32: 0 | F32: 0 | G32: 0 | H32: =SUM(D32:G32) -> 0 | I32: 0
C33: Supply enhancement at customer request | D33: 0 | E33: 0 | F33: 0 | G33: 0 | H33: 0 | I33: 0
C34: Supply abolishment | D34: 676.8311555 | E34: 129.9106595 | F34: 0 | G34: 0 | H34: 806.741815 | I34: -346.72657
C35: Emergency recoverable works (that is, emergency works where customer is at fault and immediate action needs to be taken by the DNSP) | D35: 598.27419 | E35: 105.7458461 | F35: 0 | G35: 0 | H35: 704.0200361 | I35: -892.48102
C36: Auditing of design and construction | D36: 12.54252244 | E36: 2.00488693 | F36: 0 | G36: 0 | H36: 14.54740937 | I36: 0
C37: Specification and design enquiry fees | D37: 1999.589438 | E37: 319.6287469 | F37: 0 | G37: 0 | H37: 2319.218184 | I37: -1962.65839
C38: Elective underground service where an existing overhead service exists | D38: 0 | E38: 0 | F38: 0 | G38: 0 | H38: 0 | I38: 0
C39: Damage to overhead service cables pulled down by high load vehicles | D39: 0 | E39: 0 | F39: 0 | G39: 0 | H39: 0 | I39: 0
C40: High load escorts—lifting overhead lines | D40: 0 | E40: 0 | F40: 0 | G40: 0 | H40: 0 | I40: -1.94128
C41: Covering of low voltage mains for safety reasons | D41: 893.0413845 | E41: 126.9477491 | F41: 0 | G41: 0 | H41: 1019.989134 | I41: -1218.65867
C42: Routine connections, for customers > 100amps | D42: 0 | E42: 0 | F42: 0 | G42: 0 | H42: 0 | I42: 0
C43: After hours truck by appointment | D43: 17.16114025 | E43: 3.262326125 | F43: 0 | G43: 0 | H43: 20.42346637 | I43: -31.12284
C44: Total quoted alternative control services | D44: =SUM(D32:D43) -> 4197.43983 | E44: =SUM(E32:E43) -> 687.5002146 | F44: =SUM(F32:F43) -> 0 | G44: 0 | H44: 4884.940045 | I44: -4453.58877
C45: Other Activities - Non Regulated
C46: Pole, Duct, Fibre & Property Rental | D46: 0 | E46: 0 | F46: 0 | G46: 0 | H46: =SUM(D46:G46) -> 0 | I46: -2819.5666
D47: 0 | E47: 0 | F47: 0 | G47: 0 | H47: =SUM(D47:G47) -> 0 | I47: 0
C48: Total non - regulated | D48: =SUM(D46:D47) -> 0 | E48: =SUM(E46:E47) -> 0 | F48: 0 | G48: 0 | H48: =SUM(D48:G48) -> 0 | I48: =SUM(I46:I47) -> -2819.5666
C49: TOTAL | D49: =SUM(D30,D44,D48) -> 10347.30878 | E49: =SUM(E30,E44,E48) -> 1407.984924 | F49: 1263.200915 | G49: 171.5922337 | H49: 13190.08685 | I49: -17044.29554
C50: Public Lighting (amounts also included above)
C51: Efficient luminaires | D51: 881.4232346 | E51: 68.1195407 | F51: 410.4273197 | G51: 55.75212913 | H51: =SUM(D51:G51) -> 1415.722224 | I51: -2147.456393
C52: Non-energy efficient luminaires | D52: 1195.379224 | E52: 92.38318267 | F52: 852.7735957 | G52: 115.8401046 | H52: =SUM(D52:G52) -> 2256.376107 | I52: -2195.311277
C53: Total public lighting | D53: =SUM(D51:D52) -> 2076.802458 | E53: =SUM(E51:E52) -> 160.5027234 | F53: =SUM(F51:F52) -> 1263.200915 | G53: =SUM(G51:G52) -> 171.5922337 | H53: =SUM(D53:G53) -> 3672.098331 | I53: =SUM(I51:I52) -> -4342.76767
B57: Definitions
B58: Alternative control services are as defined in Citipower's approved CAM.

Sheet 15. EBSS
B1: =Cover!E22 -> CitiPower Pty Ltd
B2: Efficiency Benefits Sharing Schemes
B3: =Cover!E26 -> 2015
D4: Colour coding:
B5: Dollar unit used in this sheet | D5: Yellow = Input cells
B6: nominal $'000 | D6: Grey = No inputs required
B8: EBSS information is used by the AER to monitor EBSS scheme throughout the regulatory control period.
B11: Table 1 Opex for EBSS Purposes
B13: Note: a) Only superannuation costs related to defined benefit schemes are to be reported
B14: b) Only self insurance cost categories approved in the AER's determination are to be reported
B16: Total Actual Opex | C16: ='6a. Maintenance - total '!I31+'8a. Operating Activities (T)'!I48 -> 56013.97254
B17: Debt raising costs | C17: 0
B18: Self insurance | C18: 0
B19: Superannuation defined benefit schemes | C19: 1839
B20: Non network alternatives costs | C20: 0
B21: DMIA costs | C21: 130.39536
B22: Pass through event costs | C22: 0
B23: GSL payments | C23: 38.151
B24: Total opex adjustment for EBSS purposes | C24: =SUM(C17:C23) -> 2007.54636
B25: Total opex for EBSS purposes | C25: =C16-C24 -> 54006.42618
B27: Note: Total opex for EBSS purposes has not been adjusted for movement in provisions
B29: Table 2 Explanation of Capitalisation Policy Changes
B31: Note: This should include a description of any items that have previously been considered as opex items, but are now being considered capex items.
B33: Capitalisation Policy Change | C33: Impact on forecast opex | D33: Description
B34: 0 | C34: 0 | D34: 0 | E34: 0 | F34: 0 | G34: 0 | H34: 0 | I34: 0 | J34: 0 | K34: 0
B35: 0 | C35: 0 | D35: 0 | E35: 0 | F35: 0 | G35: 0 | H35: 0 | I35: 0 | J35: 0 | K35: 0
B36: 0 | C36: 0 | D36: 0 | E36: 0 | F36: 0 | G36: 0 | H36: 0 | I36: 0 | J36: 0 | K36: 0
B37: 0 | C37: 0 | D37: 0 | E37: 0 | F37: 0 | G37: 0 | H37: 0 | I37: 0 | J37: 0 | K37: 0
B38: Total | C38: =SUM(C34:C37) -> 0
B41: Definitions
B42: EBSS exclusions have the meaning used in the 2011-15 Distribution determination

Sheet 16. Juris Scheme
B1: =Cover!E22 -> CitiPower Pty Ltd
B2: Jurisdictional Scheme Payments
B3: =Cover!E26 -> 2015
D5: Colour coding:
B6: Dollar unit used in this sheet | D6: Yellow = Input cells
B7: nominal $'000 | D7: Grey = No inputs required
B9: Jurisdictional scheme information is used by the AER to monitor approved Jurisdictional schemes throughout the regulatory control period.
B12: Scheme Payment Name | C12: Description | D12: Date DNSP Became Subject to Scheme | E12: Description of Cost Recovery Method | F12: Total Scheme Payments
B13: Premium Solar Feed-in Tariff & Transitional feed-in tariff payments | C13: Credit per kWh paid for excess electricity fed back into the grid | D13: 1 November 2009 | E13: Appendix F3 of the Final Decision Distribution determination 2011-2015 | F13: 2997.59573
D17: Total jurisdictional scheme payments | F17: =SUM(F13:F16) -> 2997.59573
B19: Definitions
B20: Jurisdictional Scheme Payment | C20: In respect of a Jurisdictional Scheme, the amounts a DNSP is required under the Jurisdictional Scheme obligations to: (a) pay to a person (b) pay into a fund established under an Act of a participating jurisdiction (c) credit against charges payable by a person (d) reimburse a person less any amounts recovered by the DNSP from any person in respect of those amounts other than under the NER.
B21: Jurisdictional Scheme | C21: Jurisdictional scheme has the meaning given in clause 6.18.7A(d) of the NER.

Sheet 17.DMIS-DMIA
B1: =Cover!E22 -> CitiPower Pty Ltd
B2: Demand management incentive scheme
B3: =Cover!E26 -> 2015
D5: Colour coding:
B6: Dollar unit used in this sheet | D6: Yellow = Input cells
B7: nominal $'000 | D7: Grey = No inputs required
B10: This information will form the basis of the AER’s assessment of the DNSP’s compliance with the DMIS, and its entitlement to recover expenditure under the DMIS. The information will also assist the AER in assessing proposals for demand management expenditure in opex and capex forecasts submitted in a DNSP’s regulatory proposals, and in the development and implementation of DMEGCIS, in future regulatory control periods.
B13: Table 1 DMIA expenditure in the regulatory reporting year
B15: Name of project | C15: =B3 -> 2015
C16: Operating expenditure | D16: Capital expenditure | E16: Total expenditure
B17: Storage Investment Framework Design and Analysis | C17: 130.39536 | D17: 0 | E17: =SUM(C17:D17) -> 130.39536
B18: Residential Storage Project | C18: 0 | D18: 468.65192 | E18: 468.65192
B19: 0 | C19: 0 | D19: 0 | E19: 0
B20: 0 | C20: 0 | D20: 0 | E20: 0
B21: 0 | C21: 0 | D21: 0 | E21: 0
B22: 0 | C22: 0 | D22: 0 | E22: 0
B23: Total | C23: =SUM(C17:C22) -> 130.39536 | D23: =SUM(D17:D22) -> 468.65192 | E23: =SUM(E17:E22) -> 599.04728
B25: Table 2 DMIA expenditure in the previous reporting year
B27: Name of project | C27: =B3-1 -> 2014
C28: Operating expenditure | D28: Capital expenditure | E28: Total expenditure
B29: DMIA JACOBS Scope #1 | C29: 95.804 | D29: 0 | E29: =SUM(C29:D29) -> 95.804
B30: AEMO Data Provision [Supports Scope #1] | C30: 1.9 | D30: 0 | E30: =SUM(C30:D30) -> 1.9
B31: DMIA JACOBS Scope #2 | C31: 138.9 | D31: 0 | E31: =SUM(C31:D31) -> 138.9
B32: Network Support WMTS 2014 | C32: 105 | D32: 0 | E32: =SUM(C32:D32) -> 105
B33: Storage Investment Framework Design and Analysis | C33: 62.32631056 | D33: 0 | E33: 62.32631056
B34: Total | C34: =SUM(C29:C33) -> 403.9303106 | D34: =SUM(D29:D33) -> 0 | E34: =SUM(E29:E33) -> 403.9303106
B36: Table 3 Foregone revenue in the regulatory reporting year
B38: Name of project | C38: =B3 -> 2015
C39: Forecast quantity | D39: Actual quantity | E39: Forgone quantity | F39: Price
B40: 0 | C40: 0 | D40: 0 | E40: =C40-D40 -> 0 | F40: 0
B41: 0 | C41: 0 | D41: 0 | E41: =C41-D41 -> 0 | F41: 0
B42: 0 | C42: 0 | D42: 0 | E42: 0 | F42: 0
B43: 0 | C43: 0 | D43: 0 | E43: 0 | F43: 0
B44: 0 | C44: 0 | D44: 0 | E44: 0 | F44: 0
B45: 0 | C45: 0 | D45: 0 | E45: 0 | F45: 0
B46: Total | C46: =SUM(C40:C45) -> 0 | D46: =SUM(D40:D45) -> 0 | E46: 0
B49: Definitions
B50: Demand management incentive scheme | C50: The AER’s Demand Management Incentive Scheme – CitiPower, Powercor, Jemena, SP AusNet and United Energy 2011–15: Part A – Demand Management Innovation Allowance, dated April 2009.
B51: The terms used in this template have the same meaning as in the Demand management incentive scheme

Sheet 18. Self Insurance
B1: =Cover!E22 -> CitiPower Pty Ltd
B2: Self Insurance
B3: =Cover!E26 -> 2015
D4: Colour coding:
B5: Dollar unit used in this sheet | D5: Yellow = Input cells
B6: nominal $'000 | D6: Grey = No inputs required
B8: Information on actual, audited costs incurred by DNSPs on self insurance events (collected annually) will assist the AER with determining an appropriate self insurance allowance for DNSPs at the next regulatory reset. The information is required to be reported annually so that DNSPs can clearly demonstrate (to the AER) that their business processes and reporting systems properly account for self insurance events. This includes correctly accounting for the risks insured and costs to the DNSP.
B11: Table 1 Self Insurance Events with an Incurred Cost of Greater than $100 000 per Event.
B13: Type of Self Insurance Event | C13: Date of Event | D13: Description of Event | H13: Cost of the Event that Relates to Regulated Assets | J13: Other Costs (eg Costs Related to Non-regulated Assets) | L13: Total Cost of Self Insurance Event | N13: Costs Covered by External Funding | P13: Costs to be passed through | R13: Is information held that verifies the event?
B14: [eg. Liability, fire etc]
D22: Total actual cost of self insurance | H22: =SUM(H14:I21) -> 0 | J22: =SUM(J14:K21) -> 0 | L22: =SUM(L14:M21) -> 0 | N22: =SUM(N14:O21) -> 0 | P22: =SUM(P14:Q21) -> 0
B24: Table 2 Self insurance events with an incurred cost of less than $100 000 per event
B26: Number of events | C26: Costs of the events that relate to regulated assets | F26: Costs covered by external funding | I26: Costs that do not relate to regulated assets
B30: Table 3 Total self insurance that relate to regulated assets
B32: Total self insurance | D32: =H22+C27+C28 -> 0
B34: Note: This section is not intended to reconcile with EBSS data
B36: Definition
B37: Self Insurance event | C37: Meaning is the same as used in the 2011-15 Distribution Determination

Sheet 19. CHAP
B1: =Cover!E22 -> CitiPower Pty Ltd | D1: Colour coding:
B2: Change of Accounting Policy | D2: Yellow = Input cells
B3: =Cover!E26 -> 2015 | D3: Grey = No inputs required
B5: Dollar unit used in this sheet
B6: nominal $'000
B8: This information is required by the AER to assess forecast expenditure proposed by DNSPs at their next reset. It captures changes in accounting policies made from year to year and the effect on the Financial Statements. This information will increase transparency and accountability to stakeholders.
B10: Note: a) Only list those items where the adjustment amount for the item meets the materiality threshold applied in the statutory financial accounts b) Tables 1 and 2 capture both the changes in the application of accounting standards and changes in the accounting standards themselves.
B12: Table 1 The aggregate effect of the change in accounting policy on the balance sheet and income statements
B14: Statutory Account code or reference to account code | C14: CitiPower Category | D14: Previously Stated | E14: Adjustment | F14: Restated
C15: Balance Sheet
C16: <Item> | E16: =F16-D16 -> 0
C17: <Item> | E17: =F17-D17 -> 0
C18: <Item> | E18: =F18-D18 -> 0
C19: Income Statement
C20: <Item> | E20: 0
C21: <Item> | E21: 0
C22: <Item> | E22: 0
B24: Table 2: Description and reason for the change in accounting policy
B26: Statutory account code or reference to account code | C26: Description of change | D26: Reason for the change of accounting policy | G26: Items impacted
G27: <Item>
G28: <Item>
G29: <Item>
G30: <Item>

Sheet 20. Related Party
B1: =Cover!E22 -> CitiPower Pty Ltd | D1: Colour coding:
B2: Related Party Transactions | D2: Yellow = Input cells
B3: =Cover!E26 -> 2015 | D3: Grey = No inputs required
B4: Dollar unit used in this sheet
B5: nominal $'000
B7: The AER will use information on related party transactions to understand of the financial impacts of the such transactions on the costs of the DNSP and will be used to inform the AER’s assessment of expenditure and its underlying drivers at the next reset.
B10: Table 1. Payments made by CitiPower to Related Party under CONTROL or INFLUENCING Ownership
B11: Note: for transactions with a Related Party that is related to the provision of standard control services, alternative control services, Advanced Metering Infrastructure or negotiated distribution services and greater than $500,000
B13: Name of related party | C13: Services Provided | D13: Contract Charge | F13: Actual Cost | H13: Margin | J13: Description of how this transaction amount was determined | K13: Description of how this amount is reflected in the Regulatory Accounting Statements, including the asset class or cost category | L13: Where the related party costs have been allocated to different asset classes or cost categories, the description of the basis of allocation and the quantum of the allocator
D14: Capex | E14: Opex | F14: Capex | G14: Opex | H14: Capex | I14: Opex
B15: CHED Services | C15: Corporate Services - management, administration, back office and other business functions | J15: The services fee amount is based on an arms length negotiated price. The actual incurred cost of the individual services was determined by the related party. | K15: The contract price / actual cost is included in operating expenses, maintenance and capital expenditure, allocated between Standard Control and AMI | L15: Refer to the Services Fee Allocation workpaper for details of the amount and the method of its allocation.
B16: CHED Services | C16: Infill Insurance Premium | J16: The fee amount is in accordance with external assessment and advice for these services. | K16: The contract price / actual cost is included in Operating Expenses as a directly attributable cost to Standard Control | L16: No costs are allocated
B17: CHED Services | C17: AMI Project Services | J17: The actual incurred cost was determined by the related party. | K17: The contract price actual cost has been directly attributed to AMI capital and operating expenses | L17: No costs are allocated
B18: CHED Services | C18: Metering and Servicing Activities | J18: The fee amount is based on an arms length negotiated price. The actual incurred cost was determined by the related party. | K18: The contract price / actual cost is included in operating, maintenance and capital expenditure as a directly attributable cost to AMI and ACS. | L18: No costs are allocated
B19: CHED Services | C19: IT AMI Support Services | J19: The fee amount is based on an arms length negotiated price. The actual incurred cost was determined by the related party | K19: The contract price / actual cost is included in operating expenses as an ACS. | L19: No costs are allocated
B20: Powercor Network Services | C20: Network Services - construction, maintenance, faults, emergency and related services | J20: The fee amount is based on an arms length negotiated price and the actual cost incurred was determined by the related party. | K20: The contract price /actual cost is directly attributable to Standard Control, AMI and ACS capital, maintenance and operating expenditure. | L20: No costs are allocated
B21: CHED Services | C21: IT System Enhancements | J21: The fee amount is based on an arms length negotiated price. The actual incurred cost was determined by the related party | K21: The contract price / actual cost is included in capital expenses and is allocated directly to Standard Control and AMI | L21: No costs are allocated
B23: Table 2. Composition of margins in relation to table 1.
B25: Name of related party | C25: Services Provided | D25: Margins | H25: Total
D26: Overhead | F26: Residual
B27: CHED Services | C27: Corporate Services - management, administration, back office and other business functions
B28: CHED Services | C28: Infill Insurance Premium
B29: CHED Services | C29: AMI Project Services
B30: CHED Services | C30: Metering and Servicing Activities
B31: CHED Services | C31: IT AMI Support Services
B32: Powercor Network Services | C32: Network Services - construction, maintenance, faults, emergency and related services
B33: CHED Services | C33: IT System Enhancements
B35: Note: Provide, if separately identifiable the proportion of margins related to overhead costs and the proportion if any, that is related to assets used but not in the Distribution Businesses regulatory asset base.
B37: Definition
B38: Related Party Transaction | C38: Any transaction between the related party and the regulated distribution business.
B39: Related Party Transaction - Actual Cost | C39: The actual cost of the related party transaction
B40: Related Party Transaction - Contract Charge | C40: The charge specified in the contract for the related party transaction
B41: Related party | C41: In relation to the provision of distribution services by CitiPower, any other Entity that, at any time during each Relevant Regulatory Year: (a) has control or significant influence over CitiPower; (b) is subject to control or significant influence by CitiPower; (c) is controlled by the same Entity that controls or which has common control over, CitiPower; (d) is controlled by the same Entity that significantly influences CitiPower; (e) is significantly influenced by the same Entity that controls CitiPower; or (f) has been novated or assigned a contract or arrangement by CitiPower with any of the Entities identified in subparagraphs (a)–(e), and includes: (i) CKI/HEI Electricity Distribution Holdings (Australia) Pty Ltd (ACN 101 392161); (ii) CHED Services Pty Ltd (ACN 112 304 622); (iii) Powercor Network Services Pty Ltd (ACN 123 230 240); (iv) CKI/HEI Electricity Distribution Pty Ltd (ACN 093 830 632) and each of its subsidiaries; (v) CKI/HEI Electricity Distribution Two Pty Ltd (ACN 101 064 304) and each of its subsidiaries including the trustees of The CitiPower Trust; and but excludes any other where the relationship arises solely from normal dealings with the following Entities: (a) financial institutions; (b) authorised trustee corporations; (c) fund managers; (d) trade unions; (e) statutory authorities; (f) government departments; or (g) local governments

Sheet 21. AMI
B1: =Cover!E22 -> CitiPower Pty Ltd | D1: Colour coding:
B2: Advanced Metering Infrastructure | D2: Yellow = Input cells
B3: =Cover!E26 -> 2015 | D3: Grey = No inputs required
B4: Dollar unit used in this sheet
B5: nominal $'000
B7: AMI information is used by the AER to monitor AMI throughout the regulatory control period.
B10: Table 1 Standard control asset base - metering
C12: Opening value | D12: Actual capital expenditure – as incurred | E12: Actual asset disposals – as incurred | F12: Actual capital contributions – as incurred | G12: Actual net capital expenditure – as incurred
B13: Accumulation meters | C13: 0 | D13: 0 | E13: 0 | F13: 0 | G13: =D13-E13-F13 -> 0
B14: Manually read interval meters | C14: 0 | D14: 14.25353 | E14: 0 | F14: 0 | G14: 14.25353
B15: Remotely read interval meters and transformers | C15: 0 | D15: 2729.73763 | E15: 0 | F15: 0 | G15: 2729.73763
B16: IT | C16: 0 | D16: 2428.79341 | E16: 0 | F16: 0 | G16: 2428.79341
B17: Communications | C17: 0 | D17: 199.1079652 | E17: 0 | F17: 0 | G17: 199.1079652
B18: Other | C18: 0 | D18: 0 | E18: 0 | F18: 0 | G18: 0
B19: Total | C19: =SUM(C13:C18) -> 0 | D19: =SUM(D13:D18) -> 5371.892535 | E19: =SUM(E13:E18) -> 0 | F19: =SUM(F13:F18) -> 0 | G19: 5371.892535
B21: Table 2a Number of meters installed
C22: =$B$3 -> 2015 | D22: =$B$3-1 -> 2014
B23: Accumulation meters
B24: Single phase non off peak | C24: 0 | D24: 0
B25: Single phase off peak | C25: 0 | D25: 0
B26: Multi phase direct connect | C26: 0 | D26: 0
B27: Multi phase current transformers | C27: 0 | D27: 0
B28: Total accumulation meters installed | C28: =SUM(C24:C27) -> 0 | D28: =SUM(D24:D27) -> 0
B29: MRIM meters
B30: Single phase non off peak | C30: 0 | D30: 0
B31: Single phase off peak | C31: 0 | D31: 0
B32: Multi phase direct connect | C32: 0 | D32: 0
B33: Multi phase current transformers | C33: 0 | D33: 0
B34: Total MRIM meters installed | C34: =SUM(C30:C33) -> 0 | D34: =SUM(D30:D33) -> 0
B35: AMI meters
B36: Single phase single element | C36: 4068 | D36: 5060
B37: Single phase single element with contactor | C37: 42 | D37: 173
B38: Single phase two element with contactor | C38: 366 | D38: 274
B39: Three phase | C39: 2043 | D39: 2754
B40: Three phase direct connected meter | C40: 111 | D40: 98
B41: Three phase direct connected meter with contactor | C41: 0 | D41: 0
B42: Three phase Current transformer connected meter | C42: 332 | D42: 253
B43: Total AMI meters installed | C43: =SUM(C36:C42) -> 6962 | D43: =SUM(D36:D42) -> 8612
B45: Total meters installed | C45: =SUM(C28,C34,C43) -> 6962 | D45: =SUM(D28,D34,D43) -> 8612
B47: Table 2b Cumulative number of meters
C48: =$B$3 -> 2015 | D48: =$B$3-1 -> 2014
B49: Accumulation meters
B50: Single phase non off peak | C50: 4518 | D50: 5041
B51: Single phase off peak | C51: 2012 | D51: 2286
B52: Multi phase direct connect | C52: 3715 | D52: 3919
B53: Multi phase current transformers | C53: 219 | D53: 68
B54: Total accumulation meters | C54: =SUM(C50:C53) -> 10464 | D54: =SUM(D50:D53) -> 11314
B55: MRIM meters
B56: Single phase non off peak | C56: 204 | D56: 277
B57: Single phase off peak | C57: 50 | D57: 128
B58: Multi phase direct connect | C58: 104 | D58: 126
B59: Multi phase current transformers | C59: 114 | D59: 64
B60: Total MRIM meters | C60: =SUM(C56:C59) -> 472 | D60: =SUM(D56:D59) -> 595
B61: AMI meters
B62: Single phase single element | C62: 223585 | D62: 221292
B63: Single phase single element with contactor | C63: 7640 | D63: 7695
B64: Single phase two element with contactor | C64: 33190 | D64: 33102
B65: Three phase | C65: 59002 | D65: 57594
B66: Three phase direct connected meter | C66: 1475 | D66: 1492
B67: Three phase direct connected meter with contactor | C67: 0 | D67: 0
B68: Three phase Current transformer connected meter | C68: 2594 | D68: 2433
B69: Total AMI meters | C69: =SUM(C62:C68) -> 327486 | D69: =SUM(D62:D68) -> 323608
B71: Total meters | C71: =SUM(C54,C60,C69) -> 338422 | D71: =SUM(D54,D60,D69) -> 335517
B73: Table 3 AMI meter reconciliation
C74: =$B$3 -> 2015 | D74: =$B$3-1 -> 2014
B75: Opening number of meters | C75: 323608 | D75: 318370
B76: Installs | C76: =C43 -> 6962 | D76: =D43 -> 8612
B77: Abolishments | C77: 2316 | D77: 2145
B78: AMI meter for AMI meter replacements | C78: 768 | D78: 1227
B79: Closing number of meters | C79: =(C75+C76)-(C77+C78) -> 327486 | D79: =(D75+D76)-(D77+D78) -> 323610
B82: Table 4 Number of meter read quantity - end of year
C83: =$B$3 -> 2015
B84: Number of meters read monthly - accumulation | C84: 3140
B85: Number of meters read quarterly - accumulation | C85: 7506
B86: Number of meters read monthly - interval | C86: 729
B87: Number of meters read quarterly - interval | C87: 1531
B88: Number of meters read remotely | C88: 325516
B89: Total | C89: =SUM(C84:C88) -> 338422
B92: Definitions
B93: AMI services and assets are as defined in Citipower's approved CAM.

Sheet 22. Safety and Bushfire
B1: CitiPower
B2: Safety and Bushfire Related Expenditure | C2: Colour coding:
B3: =Cover!E26 -> 2015 | C3: Yellow = Input cells
C4: Grey = No inputs required
B7: Bushfire and safety related expenditure information is used by the AER to monitor the expenditures throughout the regulatory control period.
B9: Instructions
B10: Please populate table 1 where the asset categories definitions differ from the "Asset Installation"' worksheet.
B11: The definitions in table 1 are not limited or restricted. Please include additional definitions where necessary.
B12: Median unit costs should be used. Where unit costs are not recorded at the asset category level - provide the best estimates of the unit cost using the cost allocation method outlined in table 1. As a transitional measure, the unit cost may be based on a statistically significant annual sample of actual work orders at a 5 per cent or better confidence interval.
B13: Provide basis of allocation where applicable
B14: AER expected expenditure ($2010) means ESL and non ESL, ESMS related expected expenditure as approved under the AER Determination for 2011-15
B15: AER expected expenditure ($2010) means bushfire related expenditure as approved under the pass through application
B16: AER expected volumes means the bushfire related expenditure volumes approved under pass through applications.
B17: AER expected volumes means the ESL and non ESL and ESMS related volumes as approved under the AER Determination for 2011-15
B18: Replacement information to be reported concern the asset that has replaced an existing asset for bushfire and safety purposes.
B19: CPI applied to convert expenditure in real $2010 to nominal based on lagged September CPI index | C19: 1.134436519
B21: Table 1 Asset groups: Definitions, cost-allocation basis and methodology
B23: Asset group | C23: Category i.e., bushfire, ESMS, ESL or non-ESL | D23: Definitions | H23: Basis for allocation of cost to asset group or category
B24: Pole replacements (FC148) - subtransmission | C24: ESL | H24: Actual costs are captured at a composite project level including these and other physicals. Costs are allocated to function codes for settlement based on allocation rules. Allocation to voltages for poles is based on actual physicals completed.
B25: Pole replacements (FC148) - HV | C25: ESL
B26: Pole replacements (FC148) - LV | C26: ESL
B27: Pole replacements (FC148) - pole and stay | C27: ESL
B28: Pole replacements (FC149) - staked | C28: ESL
B29: Crossarm replacements (FC155) | C29: ESL
B30: HV overhead conductor replacements | C30: ESL | H30: Actual costs are captured at a function code level. Allocation to voltages is based on value of asset additions to various voltages
B31: LV overhead conductor replacements | C31: ESL
B32: Replacement of SWER with ABC/underground cabling | C32: 0
B33: Replacement of 22kV distribution feeders with ABC/underground cabling | C33: 0
B34: <DNSP to input as appropriate>
B37: Table 2 Bushfire-related expenditure - approved under pass-through applications (volumes)
B39: Asset group | C39: Units | D39: As approved under pass through applications | E39: Actual Units | F39: Difference | G39: Reasons for difference
B40: Pole replacements (FC148) - subtransmission | C40: no. of poles | F40: =E40-D40 -> 0
B41: Pole replacements (FC148) - HV | C41: no. of poles | F41: 0
B42: Pole replacements (FC148) - LV | C42: no. of poles | F42: 0
B43: Pole replacements (FC148) - pole and stay | C43: no. of poles | F43: 0
B44: Pole replacements (FC149) - staked | C44: no. of poles | F44: 0
B45: Crossarm replacements (FC155) | C45: no. of crossarms | F45: 0
B46: HV overhead conductor replacements | C46: no. of km | F46: 0
B47: LV overhead conductor replacements | C47: no. of km | F47: 0
B48: Replacement of SWER with ABC/underground cabling | C48: no. of km | F48: 0
B49: Replacement of 22kV distribution feeders with ABC/underground cabling | C49: no. of feeders | F49: 0
B50: <DNSP to input as appropriate> | C50: <DNSP to input as appropriate> | F50: 0
B53: Table 3 Safety related other - ESL, non ESL and ESMS (volumes) - approved under AER determination for 2011-15
B55: Asset group | C55: Units | D55: AER expected volumes | E55: Actual Units | F55: Difference | G55: Reasons for difference
B56: Pole replacements (FC148) - subtransmission | C56: no. of poles | D56: 11.7 | E56: 8 | F56: =E56-D56 -> -3.7 | G56: Actuals driven by the Asset Inspection Program - EPDR values are estimates only
B57: Pole replacements (FC148) - HV | C57: no. of poles | D57: 48.75 | E57: 17 | F57: =E57-D57 -> -31.75 | G57: Actuals driven by the Asset Inspection Program - EPDR values are estimates only
B58: Pole replacements (FC148) - LV | C58: no. of poles | D58: 120.9 | E58: 55 | F58: -65.9 | G58: Actuals driven by the Asset Inspection Program - EPDR values are estimates only
B59: Pole replacements (FC148) - pole and stay | C59: no. of poles | D59: 13.65 | E59: 1 | F59: -12.65 | G59: Actuals driven by the Asset Inspection Program - EPDR values are estimates only
B60: Pole replacements (FC149) - staked | C60: no. of poles | D60: 275 | E60: 221 | F60: -54 | G60: Actuals driven by the Asset Inspection Program - EPDR values are estimates only
B61: Crossarm replacements (FC155) | C61: no. of crossarms | D61: 800 | E61: 423 | F61: -377 | G61: Actuals driven by the Asset Inspection Program - EPDR values are estimates only. Reduction in crossarm replacements due to change in policy relating to burnt and twisted crossarms
B62: HV overhead conductor replacements | C62: no. of km | D62: 2.5 | E62: 0 | F62: -2.5 | G62: Actual units not available from corporate systems - units taken from project files
B63: LV overhead conductor replacements | C63: no. of km | D63: 0.5 | E63: 0.23 | F63: -0.27 | G63: Actual units not available from corporate systems - units taken from project files
B64: Replacement of SWER with ABC/underground cabling | C64: no. of km | D64: 0 | E64: 0 | F64: 0 | G64: Not Applicable
B65: Replacement of 22kV distribution feeders with ABC/underground cabling | C65: no. of feeders | D65: 0 | E65: 0 | F65: 0 | G65: Not Applicable
B66: <DNSP to input as appropriate> | C66: <DNSP to input as appropriate> | F66: 0
B69: Table 4 Bushfire-related expenditure pass-through applications ($ nominal - excluding margins and overheads)
B71: Asset group | C71: As approved under pass through applications | D71: Actual | E71: Difference | F71: Reasons for difference
B72: Pole replacements (FC148) - subtransmission | E72: =C72-D72 -> 0
B73: Pole replacements (FC148) - HV | E73: =C73-D73 -> 0
B74: Pole replacements (FC148) - LV | E74: 0
B75: Pole replacements (FC148) - pole and stay | E75: 0
B76: Pole replacements (FC149) - staked | E76: 0
B77: Crossarm replacements (FC155) | E77: 0
B78: HV overhead conductor replacements | E78: 0
B79: LV overhead conductor replacements | E79: 0
B80: Replacement of SWER with ABC/underground cabling | E80: 0
B81: Replacement of 22kV distribution feeders with ABC/underground cabling | E81: 0
B82: <DNSP to input as appropriate> | E82: 0
B84: Note - Reported expenditure is to be entered EXCLUDING any overheads, profit margins or management fees paid directly or indirectly to related party contractors for the report period.
B86: Table 5 Safety related other - ESL, non ESL and ESMS ($ nominal - excluding margins and overheads)
B88: Asset group | C88: Category i.e., ESMS, ESL or non-ESL | D88: AER expected expenditure ($'000 2010) | E88: Actual | F88: Difference | G88: Reasons for difference
B89: Pole replacements (FC148) - subtransmission | C89: ESL | D89: 106.8052331 | E89: 242.0371044 | F89: =D89*$C$19-E89 -> -120.8733474 | G89: As per reasons provided in Tables 3 and 9
B90: Pole replacements (FC148) - HV | C90: ESL | D90: 445.0218047 | E90: 514.3288468 | F90: =D90*$C$19-E90 -> -9.47985958 | G90: As per reasons provided in Tables 3 and 9
B91: Pole replacements (FC148) - LV | C91: ESL | D91: 1103.654076 | E91: 1664.005093 | F91: -411.9796043 | G91: As per reasons provided in Tables 3 and 9
B92: Pole replacements (FC148) - pole and stay | C92: ESL | D92: 124.6061053 | E92: 30.25463805 | F92: 111.1030784 | G92: As per reasons provided in Tables 3 and 9
B93: Pole replacements (FC149) - staked | C93: ESL | D93: 342.3752827 | E93: 285.8490992 | F93: 102.5539249 | G93: As per reasons provided in Tables 3 and 9
B94: Crossarm replacements (FC155) | C94: ESL | D94: 2327.875935 | E94: 2315.818799 | F94: 325.0086739 | G94: As per reasons provided in Tables 3 and 9
B95: HV overhead conductor replacements | C95: ESL | D95: 773.8800199 | E95: 13.94095645 | F95: 863.9767998 | G95: Actuals driven by the Asset Inspection Program - EPDR values are estimates only
B96: LV overhead conductor replacements | C96: ESL | D96: 154.776004 | E96: 9.452773551 | F96: 166.1307777 | G96: Actuals driven by the Asset Inspection Program - EPDR values are estimates only
B97: Replacement of SWER with ABC/underground cabling | C97: 0 | D97: 0 | E97: 0 | F97: 0 | G97: Not Applicable
B98: Replacement of 22kV distribution feeders with ABC/underground cabling | C98: 0 | D98: 0 | E98: 0 | F98: 0 | G98: Not Applicable
B99: <DNSP to input as appropriate> | C99: <DNSP to input as appropriate> | F99: 0
B101: Note - Reported expenditure is to be entered EXCLUDING any overheads, profit margins or management fees paid directly or indirectly to related party contractors for the report period.
B103: Table 6 Bushfire-related expenditure pass-through applications ($ nominal - margins and overheads)
B105: Asset group | C105: As approved under pass through applications | D105: Actual | E105: Difference | F105: Reasons for difference
B106: Pole replacements (FC148) - subtransmission | E106: =C106-D106 -> 0
B107: Pole replacements (FC148) - HV | E107: =C107-D107 -> 0
B108: Pole replacements (FC148) - LV | E108: 0
B109: Pole replacements (FC148) - pole and stay | E109: 0
B110: Pole replacements (FC149) - staked | E110: 0
B111: Crossarm replacements (FC155) | E111: 0
B112: HV overhead conductor replacements | E112: 0
B113: LV overhead conductor replacements | E113: 0
B114: Replacement of SWER with ABC/underground cabling | E114: 0
B115: Replacement of 22kV distribution feeders with ABC/underground cabling | E115: 0
B116: <DNSP to input as appropriate> | E116: 0
B118: Note -Reported expenditure to be entered is the sum of overheads, profit margins or management fees paid directly or indirectly to related party contractors for the report period.
B120: Table 7 Safety related other - ESL, non ESL and ESMS ($ nominal - margins and overheads)
B122: Asset group | C122: Category i.e., ESMS, ESL or non-ESL | D122: AER expected expenditure ($ 2010) | E122: Actual | F122: Difference | G122: Reasons for difference
B123: Pole replacements (FC148) - subtransmission | C123: ESL | D123: 22.66094268 | E123: 68.02320895 | F123: =D123*$C$19-E123 -> -42.31580801 | G123: As per reasons provided in Tables 3 and 9
B124: Pole replacements (FC148) - HV | C124: ESL | D124: 94.42059451 | E124: 144.549319 | F124: =D124*$C$19-E124 -> -37.43514842 | G124: As per reasons provided in Tables 3 and 9
B125: Pole replacements (FC148) - LV | C125: ESL | D125: 234.1630744 | E125: 467.6595615 | F125: -202.0164184 | G125: As per reasons provided in Tables 3 and 9
B126: Pole replacements (FC148) - pole and stay | C126: ESL | D126: 26.43776646 | E126: 8.502901119 | F126: 21.48906665 | G126: As per reasons provided in Tables 3 and 9
B127: Pole replacements (FC149) - staked | C127: ESL | D127: 76.13360588 | E127: 78.00590457 | F127: 8.362838297 | G127: As per reasons provided in Tables 3 and 9
B128: Crossarm replacements (FC155) | C128: ESL | D128: 505.6738714 | E128: 674.7278632 | F128: -101.0729565 | G128: As per reasons provided in Tables 3 and 9
B129: HV overhead conductor replacements | C129: ESL | D129: 184.3026636 | E129: 4.085288485 | F129: 204.9943838 | G129: Actuals driven by the Asset Inspection Program - EPDR values are estimates only
B130: LV overhead conductor replacements | C130: ESL | D130: 36.86053273 | E130: 2.770061515 | F130: 39.04587294 | G130: Actuals driven by the Asset Inspection Program - EPDR values are estimates only
B131: Replacement of SWER with ABC/underground cabling | C131: 0 | D131: 0 | E131: 0 | F131: 0 | G131: Not Applicable
B132: Replacement of 22kV distribution feeders with ABC/underground cabling | C132: 0 | D132: 0 | E132: 0 | F132: 0 | G132: Not Applicable
B133: <DNSP to input as appropriate> | C133: <DNSP to input as appropriate> | F133: 0
B135: Note -Reported expenditure to be entered is the sum of overheads, profit margins or management fees paid directly or indirectly to related party contractors for the report period.
B137: Table 8 Bushfire-related expenditure including approved pass-through applications ($ unit cost)
B139: Asset group | C139: As approved under pass through applications | D139: Actual | E139: Difference | F139: Reasons for difference
B140: Pole replacements (FC148) - subtransmission | E140: =C140-D140 -> 0
B141: Pole replacements (FC148) - HV | E141: =C141-D141 -> 0
B142: Pole replacements (FC148) - LV | E142: 0
B143: Pole replacements (FC148) - pole and stay | E143: 0
B144: Pole replacements (FC149) - staked | E144: 0
B145: Crossarm replacements (FC155) | E145: 0
B146: HV overhead conductor replacements | E146: 0
B147: LV overhead conductor replacements | E147: 0
B148: Replacement of SWER with ABC/underground cabling | E148: 0
B149: Replacement of 22kV distribution feeders with ABC/underground cabling | E149: 0
B150: <DNSP to input as appropriate> | E150: 0
B152: Note - Where applicable, provide allocation assumptions and methods.
B153: Table 9 Safety related other - ESL, non ESL and ESMS ($ unit cost)
B155: Asset group | C155: Category i.e., ESMS, ESL or non-ESL | D155: AER expected expenditure ($'000 2010) | E155: Actual | F155: Difference | G155: Reasons for difference
B156: Pole replacements (FC148) - subtransmission | C156: ESL | D156: 9.128652404 | E156: 30.25463805 | F156: =D156*$C$19-E156 -> -19.89876139 | G156: Average actual cost is derived from settlment rules applied to actual costs of composite maintenance packages including items in addition to poles. Average cost varies with mix of pole types, locations and acess conditions.
B157: Pole replacements (FC148) - HV | C157: ESL | D157: 9.128652404 | E157: 30.25463805 | F157: -19.89876139
B158: Pole replacements (FC148) - LV | C158: ESL | D158: 9.128652404 | E158: 30.25463805 | F158: -19.89876139
B159: Pole replacements (FC148) - pole and stay | C159: ESL | D159: 9.128652404 | E159: 30.25463805 | F159: -19.89876139
B160: Pole replacements (FC149) - staked | C160: ESL | D160: 1.245001028 | E160: 1.293434838 | F160: 0.1189397949 | G160: No material variance
B161: Crossarm replacements (FC155) | C161: ESL | D161: 2.909844918 | E161: 5.474748934 | F161: -2.173714593 | G161: Average actual cost is derived from settlment rules applied to actual costs of composite maintenance packages including items in addition to cross arms Average cost varies with mix of cross arm types, locations and acess conditions.
B162: HV overhead conductor replacements | C162: ESL | D162: 309.552008 | E162: 0 | F162: 351.1671025 | G162: Refer comments in table 3
B163: LV overhead conductor replacements | C163: ESL | D163: 309.552008 | E163: 0 | F163: 351.1671025 | G163: Refer comments in table 3
B164: Replacement of SWER with ABC/underground cabling | C164: 0 | D164: 0 | E164: 0 | F164: 0 | G164: Not Applicable
B165: Replacement of 22kV distribution feeders with ABC/underground cabling | C165: 0 | D165: 0 | E165: 0 | F165: 0 | G165: Not Applicable
B166: <DNSP to input as appropriate> | C166: <DNSP to input as appropriate> | F166: 0
B168: Definitions
B169: f-factor scheme | C169: The AER's Final determinations and explanatory statement, F-factor scheme determinations 2012-15 for Victorian electricity distribution network service providers, 22 December 2011
B170: All terms have the meaning used in the AER's f-factor scheme

Sheet 23. Shared asset
B1: =Cover!E22 -> CitiPower Pty Ltd
B2: Shared assets
B3: =Cover!E26 -> 2015
D4: Colour coding:
B5: Dollar unit used in this sheet | D5: Yellow = Input cells
B6: nominal $'000 | D6: Grey = No inputs required
B8: This information is used to monitor outcomes compared to forecasts used to determine customer benefits under the AER's Shared Asset Guideline.
B10: Table 1: Total unregulated revenue earned with shared assets
B12: Total shared asset unregulated revenue | C12: 2819.5666
B14: Table 2: Shared asset unregulated services and apportioned revenue
B16: Note: All services for which an unregulated revenue is earned must be listed in column B. Apportioned revenue and Apportionment methodology are only required where a "Yes" response is returned in column C.
B18: Name of shared asset unregulated service | C18: Were the revenues for this service derived using apportionment? | D18: Apportioned revenue | E18: Apportionment methodology
B19: Joint use of Poles | C19: No
B20: Optical Fibre Lease | C20: No
B21: Duct Rentals | C21: No
B22: Property Rentals | C22: No
B28: Definitions
B29: Shared assets | C29: Assets used to provide both standard control services and unregulated services.
B30: Shared asset unregulated services | C30: Unregulated services provided, in part or in whole, by use of shared assets.
B31: Shared asset unregulated revenue | C31: Revenue earned by charging for unregulated services provided with shared assets. In some circumstances this may reflect revenue apportionment in line with the AER’s Shared Asset Guideline.
B32: Apportionment | C32: The allocation of unregulated revenues reflecting the proportionate use of the shared asset, in line with the AER's Shared Asset Guideline.

Sheet 24. Unmetered supply
B1: =Cover!E22 -> CitiPower Pty Ltd
B2: Unmetered Supply Tariff Quantity Data Template (Actual t-2)
B3: =Cover!E26 -> 2015
B5: Templates 24 to 29 collect data required for annual pricing proposals. T-2 requires actual information for the reporting year.
D9: Qt-2
D10: NMIs | E10: Meters | F10: Lights
B11: Proposed tariff | D11: ActVolComp1 | E11: ActVolComp2 | F11: ActVolComp3
B12: metering data services - unmetered supplies | F12: 65073
B15: Definitions
B16: All information must be reported consistent the terms used in the DNSPs pricing proposal

Sheet 25. Actual t-2 Distr Tariff
B1: =Cover!E22 -> CitiPower Pty Ltd
B2: Tariff Quantity Data Template (Actual t-2) Distribution Tariff Revenue
B3: =Cover!E26 -> 2015
B4: Templates 24 to 29 collect data required for annual pricing proposals. T-2 requires actual information for the reporting year.
D5: Distribution Tariffs (Pt-2) | Z5: Actual Quantities (Qt-2) | AW5: Actual Revenue (P-2)*(Qt-2)
B6: Tariffs t-2 | D6: (t-2)Tar Fixed | E6: (t-2)Tar PkBlk1 | F6: (t-2)Tar PkBlk2 | G6: (t-2)Tar PkBlk3 | H6: (t-2)Tar PkBlk4 | I6: (t-2)Tar OPkBlk1 | J6: (t-2)Tar OPkBlk2 | K6: (t-2)Tar OPkBlk3 | L6: (t-2)Tar OPkBlk4 | M6: (t-2)Tar DemBlk1 | N6: (t-2)Tar DemBlk2 | O6: (t-2)Tar DemBlk3 | P6: (t-2)Tar DemBlk4 | Q6: (t-2)Tar SumBlk1 | R6: (t-2)Tar SumBlk2 | S6: (t-2)Tar SumBlk3 | T6: (t-2)Tar SumBlk4 | U6: (t-2)Tar WtrBlk1 | V6: (t-2)Tar WtrBlk2 | W6: (t-2)Tar WtrBlk3 | X6: (t-2)Tar WtrBlk4 | Z6: ActVol Fixed | AA6: ActVol PkBlk1 | AB6: ActVol PkBlk2 | AC6: ActVol PkBlk3 | AD6: ActVol PkBlk4 | AE6: ActVol OPkBlk1 | AF6: ActVol OPkBlk2 | AG6: ActVol OPkBlk3 | AH6: ActVol OPkBlk4 | AI6: ActVol DemBlk1 | AJ6: ActVol DemBlk2 | AK6: ActVol DemBlk3 | AL6: ActVol DemBlk4 | AM6: (t-2)Tar SumBlk1 | AN6: (t-2)Tar SumBlk2 | AO6: (t-2)Tar SumBlk3 | AP6: (t-2)Tar SumBlk4 | AQ6: (t-2)Tar WtrBlk1 | AR6: (t-2)Tar WtrBlk2 | AS6: (t-2)Tar WtrBlk3 | AT6: (t-2)Tar WtrBlk4 | AW6: ActRev Fixed | AX6: ActRev PkBlk1 | AY6: ActRev PkBlk2 | AZ6: ActRev PkBlk3 | BA6: ActRev PkBlk4 | BB6: ActRev OPkBlk1 | BC6: ActRev OPkBlk2 | BD6: ActRev OPkBlk3 | BE6: ActRev OPkBlk4 | BF6: ActRev DemBlk1 | BG6: ActRev DemBlk2 | BH6: ActRev DemBlk3 | BI6: ActRev DemBlk4 | BJ6: (t-2)Tar SumBlk1 | BK6: (t-2)Tar SumBlk2 | BL6: (t-2)Tar SumBlk3 | BM6: (t-2)Tar SumBlk4 | BN6: (t-2)Tar WtrBlk1 | BO6: (t-2)Tar WtrBlk2 | BP6: (t-2)Tar WtrBlk3 | BQ6: (t-2)Tar WtrBlk4 | BR6: ActRev Total
BR7: =SUM(AW7:BQ7) -> 0
B8: Residential Single Rate | D8: 53.6367 | E8: 5.0475 | F8: 5.2475 | G8: 0 | H8: 0 | I8: 0 | J8: 0 | K8: 0 | L8: 0 | M8: 0 | N8: 0 | O8: 0 | P8: 0 | Q8: 0 | R8: 0 | S8: 0 | T8: 0 | U8: 0 | V8: 0 | W8: 0 | X8: 0 | Z8: 198643.75 | AA8: 555364942 | AB8: 274827929.8 | AC8: 0 | AD8: 0 | AE8: 0 | AF8: 0 | AG8: 0 | AH8: 0 | AI8: 0 | AJ8: 0 | AK8: 0 | AL8: 0 | AM8: 0 | AN8: 0 | AO8: 0 | AP8: 0 | AQ8: 0 | AR8: 0 | AS8: 0 | AT8: 0 | AW8: 10673713.22 | AX8: 28036706.92 | AY8: 14419671.08 | AZ8: 0 | BA8: 0 | BB8: 0 | BC8: 0 | BD8: 0 | BE8: 0 | BF8: 0 | BG8: 0 | BH8: 0 | BI8: 0 | BJ8: 0 | BK8: 0 | BL8: 0 | BM8: 0 | BN8: 0 | BO8: 0 | BP8: 0 | BQ8: 0 | BR8: =SUM(AW8:BQ8) -> 53130091.22
B9: Residential Single Rate - Bulk | D9: 47.3151 | E9: 3.0651 | F9: 3.3108 | G9: 0 | H9: 0 | I9: 0 | J9: 0 | K9: 0 | L9: 0 | M9: 0 | N9: 0 | O9: 0 | P9: 0 | Q9: 0 | R9: 0 | S9: 0 | T9: 0 | U9: 0 | V9: 0 | W9: 0 | X9: 0 | Z9: 30651.91667 | AA9: 78012277.23 | AB9: 27161863.93 | AC9: 0 | AD9: 0 | AE9: 0 | AF9: 0 | AG9: 0 | AH9: 0 | AI9: 0 | AJ9: 0 | AK9: 0 | AL9: 0 | AM9: 0 | AN9: 0 | AO9: 0 | AP9: 0 | AQ9: 0 | AR9: 0 | AS9: 0 | AT9: 0 | AW9: 1453519.323 | AX9: 2391062.93 | AY9: 898670.725 | AZ9: 0 | BA9: 0 | BB9: 0 | BC9: 0 | BD9: 0 | BE9: 0 | BF9: 0 | BG9: 0 | BH9: 0 | BI9: 0 | BJ9: 0 | BK9: 0 | BL9: 0 | BM9: 0 | BN9: 0 | BO9: 0 | BP9: 0 | BQ9: 0 | BR9: 4743252.978
B10: Residential - flexible pricing | D10: 74.6125 | E10: 0 | F10: 0 | G10: 0 | H10: 0 | I10: 0 | J10: 0 | K10: 0 | L10: 0 | M10: 0 | N10: 0 | O10: 0 | P10: 0 | Q10: 12.4891 | R10: 7.3245 | S10: 1.9368 | T10: 0 | U10: 12.4891 | V10: 7.3245 | W10: 1.9368 | X10: 0 | Z10: 625.75 | AA10: 0 | AB10: 0 | AC10: 0 | AD10: 0 | AE10: 132.789871 | AF10: 0 | AG10: 0 | AH10: 0 | AI10: 0 | AJ10: 0 | AK10: 0 | AL10: 0 | AM10: 283627.6805 | AN10: 618987.3646 | AO10: 424744.5757 | AP10: 0 | AQ10: 476066.7547 | AR10: 961728.1596 | AS10: 668934.713 | AT10: 0 | AW10: 46276.82224 | AX10: 0 | AY10: 0 | AZ10: 0 | BA10: 0 | BB10: 2.523406 | BC10: 0 | BD10: 0 | BE10: 0 | BF10: 0 | BG10: 0 | BH10: 0 | BI10: 0 | BJ10: 35454.4882 | BK10: 45399.74043 | BL10: 8237.006676 | BM10: 0 | BN10: 59904.78252 | BO10: 70763.98659 | BP10: 13062.54987 | BQ10: 0 | BR10: 279101.8999
B11: Residential - flexible pricing bulk | D11: 61.7206 | E11: 0 | F11: 0 | G11: 0 | H11: 0 | I11: 0 | J11: 0 | K11: 0 | L11: 0 | M11: 0 | N11: 0 | O11: 0 | P11: 0 | Q11: 12.1511 | R11: 7.098 | S11: 1.8066 | T11: 0 | U11: 12.1511 | V11: 7.098 | W11: 1.8066 | X11: 0 | Z11: 85 | AA11: 0 | AB11: 0 | AC11: 0 | AD11: 0 | AE11: 0 | AF11: 0 | AG11: 0 | AH11: 0 | AI11: 0 | AJ11: 0 | AK11: 0 | AL11: 0 | AM11: 24571.02123 | AN11: 60425.92773 | AO11: 39401.55041 | AP11: 0 | AQ11: 38567.7171 | AR11: 87284.98452 | AS11: 58163.12284 | AT11: 0 | AW11: 5203.358 | AX11: 0 | AY11: 0 | AZ11: 0 | BA11: 0 | BB11: 0 | BC11: 0 | BD11: 0 | BE11: 0 | BF11: 0 | BG11: 0 | BH11: 0 | BI11: 0 | BJ11: 2988.204282 | BK11: 4295.813097 | BL11: 713.0204466 | BM11: 0 | BN11: 4750.754436 | BO11: 6245.718412 | BP11: 1062.65597 | BQ11: 0 | BR11: 25259.52464
B12: Residential Two Rate 5d | D12: 122.5819 | E12: 8.1922 | F12: 8.1922 | G12: 0 | H12: 0 | I12: 2.1591 | J12: 0 | K12: 0 | L12: 0 | M12: 0 | N12: 0 | O12: 0 | P12: 0 | Q12: 0 | R12: 0 | S12: 0 | T12: 0 | U12: 0 | V12: 0 | W12: 0 | X12: 0 | Z12: 11068.58333 | AA12: 24290178.82 | AB12: 13019369.91 | AC12: 0 | AD12: 0 | AE12: 32412476.83 | AF12: 0 | AG12: 0 | AH12: 0 | AI12: 0 | AJ12: 0 | AK12: 0 | AL12: 0 | AM12: 0 | AN12: 0 | AO12: 0 | AP12: 0 | AQ12: 0 | AR12: 0 | AS12: 0 | AT12: 0 | AW12: 1357154.22 | AX12: 1990147.117 | AY12: 1066573.443 | AZ12: 0 | BA12: 0 | BB12: 700812.2595 | BC12: 0 | BD12: 0 | BE12: 0 | BF12: 0 | BG12: 0 | BH12: 0 | BI12: 0 | BJ12: 0 | BK12: 0 | BL12: 0 | BM12: 0 | BN12: 0 | BO12: 0 | BP12: 0 | BQ12: 0 | BR12: 5114687.04
B13: Residential Two Rate 5d - Bulk | D13: 120.5202 | E13: 9.7159 | F13: 9.7159 | G13: 0 | H13: 0 | I13: 1.4334 | J13: 0 | K13: 0 | L13: 0 | M13: 0 | N13: 0 | O13: 0 | P13: 0 | Q13: 0 | R13: 0 | S13: 0 | T13: 0 | U13: 0 | V13: 0 | W13: 0 | X13: 0 | Z13: 4382.916667 | AA13: 8459189.757 | AB13: 4249647.846 | AC13: 0 | AD13: 0 | AE13: 10886420.22 | AF13: 0 | AG13: 0 | AH13: 0 | AI13: 0 | AJ13: 0 | AK13: 0 | AL13: 0 | AM13: 0 | AN13: 0 | AO13: 0 | AP13: 0 | AQ13: 0 | AR13: 0 | AS13: 0 | AT13: 0 | AW13: 529606.0909 | AX13: 821999.2251 | AY13: 412930.2137 | AZ13: 0 | BA13: 0 | BB13: 155857.346 | BC13: 0 | BD13: 0 | BE13: 0 | BF13: 0 | BG13: 0 | BH13: 0 | BI13: 0 | BJ13: 0 | BK13: 0 | BL13: 0 | BM13: 0 | BN13: 0 | BO13: 0 | BP13: 0 | BQ13: 0 | BR13: 1920392.876
B14: Residential Interval | D14: 122.5819 | E14: 8.1922 | F14: 8.1922 | G14: 0 | H14: 0 | I14: 2.1591 | J14: 0 | K14: 0 | L14: 0 | M14: 0 | N14: 0 | O14: 0 | P14: 0 | Q14: 0 | R14: 0 | S14: 0 | T14: 0 | U14: 0 | V14: 0 | W14: 0 | X14: 0 | Z14: 17380.5 | AA14: 40849562.59 | AB14: 21895274.86 | AC14: 0 | AD14: 0 | AE14: 54646075.27 | AF14: 0 | AG14: 0 | AH14: 0 | AI14: 0 | AJ14: 0 | AK14: 0 | AL14: 0 | AM14: 0 | AN14: 0 | AO14: 0 | AP14: 0 | AQ14: 0 | AR14: 0 | AS14: 0 | AT14: 0 | AW14: 2134310.996 | AX14: 3346463.038 | AY14: 1796716.071 | AZ14: 0 | BA14: 0 | BB14: 1180267.447 | BC14: 0 | BD14: 0 | BE14: 0 | BF14: 0 | BG14: 0 | BH14: 0 | BI14: 0 | BJ14: 0 | BK14: 0 | BL14: 0 | BM14: 0 | BN14: 0 | BO14: 0 | BP14: 0 | BQ14: 0 | BR14: 8457757.552
B15: Residential Interval - Bulk | D15: 120.5202 | E15: 9.7159 | F15: 9.7159 | G15: 0 | H15: 0 | I15: 1.4334 | J15: 0 | K15: 0 | L15: 0 | M15: 0 | N15: 0 | O15: 0 | P15: 0 | Q15: 0 | R15: 0 | S15: 0 | T15: 0 | U15: 0 | V15: 0 | W15: 0 | X15: 0 | Z15: 9012.25 | AA15: 13442952.73 | AB15: 2219000.817 | AC15: 0 | AD15: 0 | AE15: 14647615.31 | AF15: 0 | AG15: 0 | AH15: 0 | AI15: 0 | AJ15: 0 | AK15: 0 | AL15: 0 | AM15: 0 | AN15: 0 | AO15: 0 | AP15: 0 | AQ15: 0 | AR15: 0 | AS15: 0 | AT15: 0 | AW15: 1088770.111 | AX15: 1310074.649 | AY15: 215573.8366 | AZ15: 0 | BA15: 0 | BB15: 209829.8229 | BC15: 0 | BD15: 0 | BE15: 0 | BF15: 0 | BG15: 0 | BH15: 0 | BI15: 0 | BJ15: 0 | BK15: 0 | BL15: 0 | BM15: 0 | BN15: 0 | BO15: 0 | BP15: 0 | BQ15: 0 | BR15: 2824248.419
B16: Residential Two Rate 5d - Controlled Load | D16: 0 | E16: 0 | F16: 0 | G16: 0 | H16: 0 | I16: 2.1591 | J16: 0 | K16: 0 | L16: 0 | M16: 0 | N16: 0 | O16: 0 | P16: 0 | Q16: 0 | R16: 0 | S16: 0 | T16: 0 | U16: 0 | V16: 0 | W16: 0 | X16: 0 | Z16: 9590.583333 | AA16: 0 | AB16: 0 | AC16: 0 | AD16: 0 | AE16: 20039463.58 | AF16: 0 | AG16: 0 | AH16: 0 | AI16: 0 | AJ16: 0 | AK16: 0 | AL16: 0 | AM16: 0 | AN16: 0 | AO16: 0 | AP16: 0 | AQ16: 0 | AR16: 0 | AS16: -1805.636 | AT16: 0 | AW16: 0 | AX16: 0 | AY16: 0 | AZ16: 0 | BA16: 0 | BB16: 433796.6911 | BC16: 0 | BD16: 0 | BE16: 0 | BF16: 0 | BG16: 0 | BH16: 0 | BI16: 0 | BJ16: 0 | BK16: 0 | BL16: 0 | BM16: 0 | BN16: 0 | BO16: 0 | BP16: -34.31 | BQ16: 0 | BR16: 433762.3811
B17: Residential Two Rate 5d - Bulk - Controlled Load | D17: 0 | E17: 0 | F17: 0 | G17: 0 | H17: 0 | I17: 1.4334 | J17: 0 | K17: 0 | L17: 0 | M17: 0 | N17: 0 | O17: 0 | P17: 0 | Q17: 0 | R17: 0 | S17: 0 | T17: 0 | U17: 0 | V17: 0 | W17: 0 | X17: 0 | Z17: 3682.166667 | AA17: 0 | AB17: 0 | AC17: 0 | AD17: 0 | AE17: 7359912.331 | AF17: 0 | AG17: 0 | AH17: 0 | AI17: 0 | AJ17: 0 | AK17: 0 | AL17: 0 | AM17: 0 | AN17: 0 | AO17: 0 | AP17: 0 | AQ17: 0 | AR17: 0 | AS17: -499.677 | AT17: 0 | AW17: 0 | AX17: 0 | AY17: 0 | AZ17: 0 | BA17: 0 | BB17: 105295.2709 | BC17: 0 | BD17: 0 | BE17: 0 | BF17: 0 | BG17: 0 | BH17: 0 | BI17: 0 | BJ17: 0 | BK17: 0 | BL17: 0 | BM17: 0 | BN17: 0 | BO17: 0 | BP17: -7.8 | BQ17: 0 | BR17: 105287.4709
B18: Dedicated Circuit | D18: 0 | E18: 0 | F18: 0 | G18: 0 | H18: 0 | I18: 1.8213 | J18: 0 | K18: 0 | L18: 0 | M18: 0 | N18: 0 | O18: 0 | P18: 0 | Q18: 0 | R18: 0 | S18: 0 | T18: 0 | U18: 0 | V18: 0 | W18: 0 | X18: 0 | Z18: 24190.5 | AA18: 0 | AB18: 0 | AC18: 0 | AD18: 0 | AE18: 39326842.37 | AF18: 0 | AG18: 0 | AH18: 0 | AI18: 0 | AJ18: 0 | AK18: 0 | AL18: 0 | AM18: 0 | AN18: 0 | AO18: 0 | AP18: 0 | AQ18: 0 | AR18: 0 | AS18: -3371.396 | AT18: 0 | AW18: 0 | AX18: 0 | AY18: 0 | AZ18: 0 | BA18: 0 | BB18: 716607.1943 | BC18: 0 | BD18: 0 | BE18: 0 | BF18: 0 | BG18: 0 | BH18: 0 | BI18: 0 | BJ18: 0 | BK18: 0 | BL18: 0 | BM18: 0 | BN18: 0 | BO18: 0 | BP18: -63.016 | BQ18: 0 | BR18: 716544.1783
B19: Dedicated Circuit - Bulk | D19: 0 | E19: 0 | F19: 0 | G19: 0 | H19: 0 | I19: 1.5967 | J19: 0 | K19: 0 | L19: 0 | M19: 0 | N19: 0 | O19: 0 | P19: 0 | Q19: 0 | R19: 0 | S19: 0 | T19: 0 | U19: 0 | V19: 0 | W19: 0 | X19: 0 | Z19: 1167.666667 | AA19: 0 | AB19: 0 | AC19: 0 | AD19: 0 | AE19: 2601721.167 | AF19: 0 | AG19: 0 | AH19: 0 | AI19: 0 | AJ19: 0 | AK19: 0 | AL19: 0 | AM19: 0 | AN19: 0 | AO19: 0 | AP19: 0 | AQ19: 0 | AR19: 0 | AS19: -55.5782 | AT19: 0 | AW19: 0 | AX19: 0 | AY19: 0 | AZ19: 0 | BA19: 0 | BB19: 41534.86611 | BC19: 0 | BD19: 0 | BE19: 0 | BF19: 0 | BG19: 0 | BH19: 0 | BI19: 0 | BJ19: 0 | BK19: 0 | BL19: 0 | BM19: 0 | BN19: 0 | BO19: 0 | BP19: -0.96 | BQ19: 0 | BR19: 41533.90611
B20: Non-Residential Single Rate | D20: 121.9691 | E20: 8.4816 | F20: 8.4816 | G20: 0 | H20: 0 | I20: 0 | J20: 0 | K20: 0 | L20: 0 | M20: 0 | N20: 0 | O20: 0 | P20: 0 | Q20: 0 | R20: 0 | S20: 0 | T20: 0 | U20: 0 | V20: 0 | W20: 0 | X20: 0 | Z20: 19695.25 | AA20: 62979582.61 | AB20: 260104343.6 | AC20: 0 | AD20: 0 | AE20: 1583.494249 | AF20: 0 | AG20: 0 | AH20: 0 | AI20: 0 | AJ20: 0 | AK20: 0 | AL20: 0 | AM20: 0 | AN20: 0 | AO20: 0 | AP20: 0 | AQ20: 0 | AR20: 0 | AS20: 0 | AT20: 0 | AW20: 2386583.056 | AX20: 5362701.678 | AY20: 22081925.26 | AZ20: 0 | BA20: 0 | BB20: 29.5955076 | BC20: 0 | BD20: 0 | BE20: 0 | BF20: 0 | BG20: 0 | BH20: 0 | BI20: 0 | BJ20: 0 | BK20: 0 | BL20: 0 | BM20: 0 | BN20: 0 | BO20: 0 | BP20: 0 | BQ20: 0 | BR20: 29831239.59
B21: Non-Residential Single Rate - Bulk | D21: 103.8154 | E21: 6.8859 | F21: 6.8859 | G21: 0 | H21: 0 | I21: 0 | J21: 0 | K21: 0 | L21: 0 | M21: 0 | N21: 0 | O21: 0 | P21: 0 | Q21: 0 | R21: 0 | S21: 0 | T21: 0 | U21: 0 | V21: 0 | W21: 0 | X21: 0 | Z21: 5873.5 | AA21: 18904571.96 | AB21: 110368834.3 | AC21: 0 | AD21: 0 | AE21: 3700.931513 | AF21: 0 | AG21: 0 | AH21: 0 | AI21: 0 | AJ21: 0 | AK21: 0 | AL21: 0 | AM21: 0 | AN21: 0 | AO21: 0 | AP21: 0 | AQ21: 0 | AR21: 0 | AS21: 0 | AT21: 0 | AW21: 610241.7573 | AX21: 1303581.678 | AY21: 7608379.323 | AZ21: 0 | BA21: 0 | BB21: 87.800899 | BC21: 0 | BD21: 0 | BE21: 0 | BF21: 0 | BG21: 0 | BH21: 0 | BI21: 0 | BJ21: 0 | BK21: 0 | BL21: 0 | BM21: 0 | BN21: 0 | BO21: 0 | BP21: 0 | BQ21: 0 | BR21: 9522290.559
B22: Non-Residential Two Rate 5d | D22: 303.8651 | E22: 7.3744 | F22: 7.3744 | G22: 0 | H22: 0 | I22: 2.667 | J22: 0 | K22: 0 | L22: 0 | M22: 0 | N22: 0 | O22: 0 | P22: 0 | Q22: 0 | R22: 0 | S22: 0 | T22: 0 | U22: 0 | V22: 0 | W22: 0 | X22: 0 | Z22: 11612.58333 | AA22: 35309917.45 | AB22: 278153650.5 | AC22: 0 | AD22: 0 | AE22: 222313618.3 | AF22: 0 | AG22: 0 | AH22: 0 | AI22: 0 | AJ22: 0 | AK22: 0 | AL22: 0 | AM22: 0 | AN22: 0 | AO22: 0 | AP22: 0 | AQ22: 0 | AR22: 0 | AS22: 0 | AT22: 0 | AW22: 3395663.881 | AX22: 2677330.507 | AY22: 20513689.93 | AZ22: 0 | BA22: 0 | BB22: 5945973.36 | BC22: 0 | BD22: 0 | BE22: 0 | BF22: 0 | BG22: 0 | BH22: 0 | BI22: 0 | BJ22: 0 | BK22: 0 | BL22: 0 | BM22: 0 | BN22: 0 | BO22: 0 | BP22: 0 | BQ22: 0 | BR22: 32532657.68
B23: Non-Residential Two Rate 5d - Bulk | D23: 287.3352 | E23: 3.9457 | F23: 3.9457 | G23: 0 | H23: 0 | I23: 0.7657 | J23: 0 | K23: 0 | L23: 0 | M23: 0 | N23: 0 | O23: 0 | P23: 0 | Q23: 0 | R23: 0 | S23: 0 | T23: 0 | U23: 0 | V23: 0 | W23: 0 | X23: 0 | Z23: 1950.916667 | AA23: 7168695.236 | AB23: 92776486.8 | AC23: 0 | AD23: 0 | AE23: 65978262.38 | AF23: 0 | AG23: 0 | AH23: 0 | AI23: 0 | AJ23: 0 | AK23: 0 | AL23: 0 | AM23: 0 | AN23: 0 | AO23: 0 | AP23: 0 | AQ23: 0 | AR23: 0 | AS23: 0 | AT23: 0 | AW23: 561488.2868 | AX23: 282251.6724 | AY23: 3660610.809 | AZ23: 0 | BA23: 0 | BB23: 505158.985 | BC23: 0 | BD23: 0 | BE23: 0 | BF23: 0 | BG23: 0 | BH23: 0 | BI23: 0 | BJ23: 0 | BK23: 0 | BL23: 0 | BM23: 0 | BN23: 0 | BO23: 0 | BP23: 0 | BQ23: 0 | BR23: 5009509.753
B24: Non-Residential Interval | D24: 303.8651 | E24: 7.3744 | F24: 7.3744 | G24: 0 | H24: 0 | I24: 2.667 | J24: 0 | K24: 0 | L24: 0 | M24: 0 | N24: 0 | O24: 0 | P24: 0 | Q24: 0 | R24: 0 | S24: 0 | T24: 0 | U24: 0 | V24: 0 | W24: 0 | X24: 0 | Z24: 5092.75 | AA24: 16903514.17 | AB24: 102232177.2 | AC24: 0 | AD24: 0 | AE24: 76114184.6 | AF24: 0 | AG24: 0 | AH24: 0 | AI24: 0 | AJ24: 0 | AK24: 0 | AL24: 0 | AM24: 0 | AN24: 0 | AO24: 0 | AP24: 0 | AQ24: 0 | AR24: 0 | AS24: 0 | AT24: 0 | AW24: 1548719.098 | AX24: 1246639.899 | AY24: 7540862.966 | AZ24: 0 | BA24: 0 | BB24: 2032212.551 | BC24: 0 | BD24: 0 | BE24: 0 | BF24: 0 | BG24: 0 | BH24: 0 | BI24: 0 | BJ24: 0 | BK24: 0 | BL24: 0 | BM24: 0 | BN24: 0 | BO24: 0 | BP24: 0 | BQ24: 0 | BR24: 12368434.51
B25: Non-Residential Interval - Bulk | D25: 287.3352 | E25: 3.9457 | F25: 3.9457 | G25: 0 | H25: 0 | I25: 0.7657 | J25: 0 | K25: 0 | L25: 0 | M25: 0 | N25: 0 | O25: 0 | P25: 0 | Q25: 0 | R25: 0 | S25: 0 | T25: 0 | U25: 0 | V25: 0 | W25: 0 | X25: 0 | Z25: 3112.166667 | AA25: 11314281.09 | AB25: 168916131.3 | AC25: 0 | AD25: 0 | AE25: 115478858.6 | AF25: 0 | AG25: 0 | AH25: 0 | AI25: 0 | AJ25: 0 | AK25: 0 | AL25: 0 | AM25: 0 | AN25: 0 | AO25: 0 | AP25: 0 | AQ25: 0 | AR25: 0 | AS25: 0 | AT25: 0 | AW25: 895025.5079 | AX25: 446489.118 | AY25: 6663694.265 | AZ25: 0 | BA25: 0 | BB25: 884119.8965 | BC25: 0 | BD25: 0 | BE25: 0 | BF25: 0 | BG25: 0 | BH25: 0 | BI25: 0 | BJ25: 0 | BK25: 0 | BL25: 0 | BM25: 0 | BN25: 0 | BO25: 0 | BP25: 0 | BQ25: 0 | BR25: 8889328.788
B26: Non-Residential | D26: 116.6662 | E26: 0 | F26: 0 | G26: 0 | H26: 0 | I26: 0 | J26: 0 | K26: 0 | L26: 0 | M26: 0 | N26: 0 | O26: 0 | P26: 0 | Q26: 5.0551 | R26: 2.4977 | S26: 0.7108 | T26: 0 | U26: 5.0551 | V26: 2.4977 | W26: 0.7108 | X26: 0 | Z26: 34.83333333 | AA26: 0 | AB26: 0 | AC26: 0 | AD26: 0 | AE26: 0 | AF26: 0 | AG26: 0 | AH26: 0 | AI26: 0 | AJ26: 0 | AK26: 0 | AL26: 0 | AM26: 414071.035 | AN26: 130871.1991 | AO26: 380028.9461 | AP26: 0 | AQ26: 411075.2931 | AR26: 125100.6512 | AS26: 362350.7348 | AT26: 0 | AW26: 4027.30628 | AX26: 0 | AY26: 0 | AZ26: 0 | BA26: 0 | BB26: 0 | BC26: 0 | BD26: 0 | BE26: 0 | BF26: 0 | BG26: 0 | BH26: 0 | BI26: 0 | BJ26: 20942.17037 | BK26: 3265.956765 | BL26: 2701.521997 | BM26: 0 | BN26: 20924.25371 | BO26: 3149.597275 | BP26: 2607.149965 | BQ26: 0 | BR26: 57617.95637
B27: Non-Residential - Bulk | D27: 99.5051 | E27: 0 | F27: 0 | G27: 0 | H27: 0 | I27: 0 | J27: 0 | K27: 0 | L27: 0 | M27: 0 | N27: 0 | O27: 0 | P27: 0 | Q27: 2.5834 | R27: 1.2766 | S27: 0.4043 | T27: 0 | U27: 2.5834 | V27: 1.2766 | W27: 0.4043 | X27: 0 | Z27: 22 | AA27: 0 | AB27: 0 | AC27: 0 | AD27: 0 | AE27: 0 | AF27: 0 | AG27: 0 | AH27: 0 | AI27: 0 | AJ27: 0 | AK27: 0 | AL27: 0 | AM27: 506022.62 | AN27: 105006.8313 | AO27: 388929.0758 | AP27: 0 | AQ27: 526994.1697 | AR27: 97779.82981 | AS27: 372261.1932 | AT27: 0 | AW27: 2189.83676 | AX27: 0 | AY27: 0 | AZ27: 0 | BA27: 0 | BB27: 0 | BC27: 0 | BD27: 0 | BE27: 0 | BF27: 0 | BG27: 0 | BH27: 0 | BI27: 0 | BJ27: 13078.65841 | BK27: 1341.192133 | BL27: 1573.187381 | BM27: 0 | BN27: 13638.83479 | BO27: 1252.462711 | BP27: 1509.308522 | BQ27: 0 | BR27: 34583.48071
B28: Non-Residential Two Rate 7d | D28: 263.0719 | E28: 8.5353 | F28: 8.5353 | G28: 0 | H28: 0 | I28: 2.5023 | J28: 0 | K28: 0 | L28: 0 | M28: 0 | N28: 0 | O28: 0 | P28: 0 | Q28: 0 | R28: 0 | S28: 0 | T28: 0 | U28: 0 | V28: 0 | W28: 0 | X28: 0 | Z28: 3106.416667 | AA28: 11163249.89 | AB28: 88428695.13 | AC28: 0 | AD28: 0 | AE28: 25258082.47 | AF28: 0 | AG28: 0 | AH28: 0 | AI28: 0 | AJ28: 0 | AK28: 0 | AL28: 0 | AM28: 0 | AN28: 0 | AO28: 0 | AP28: 0 | AQ28: 0 | AR28: 0 | AS28: 0 | AT28: 0 | AW28: 818501.9374 | AX28: 953449.9786 | AY28: 7558643.602 | AZ28: 0 | BA28: 0 | BB28: 633092.1245 | BC28: 0 | BD28: 0 | BE28: 0 | BF28: 0 | BG28: 0 | BH28: 0 | BI28: 0 | BJ28: 0 | BK28: 0 | BL28: 0 | BM28: 0 | BN28: 0 | BO28: 0 | BP28: 0 | BQ28: 0 | BR28: 9963687.643
B29: Non-Residential Two Rate 7d - Bulk | D29: 241.4714 | E29: 6.7981 | F29: 6.7981 | G29: 0 | H29: 0 | I29: 1.9834 | J29: 0 | K29: 0 | L29: 0 | M29: 0 | N29: 0 | O29: 0 | P29: 0 | Q29: 0 | R29: 0 | S29: 0 | T29: 0 | U29: 0 | V29: 0 | W29: 0 | X29: 0 | Z29: 447.25 | AA29: 1677577.677 | AB29: 23414677.48 | AC29: 0 | AD29: 0 | AE29: 6829569.278 | AF29: 0 | AG29: 0 | AH29: 0 | AI29: 0 | AJ29: 0 | AK29: 0 | AL29: 0 | AM29: 0 | AN29: 0 | AO29: 0 | AP29: 0 | AQ29: 0 | AR29: 0 | AS29: 0 | AT29: 0 | AW29: 108247.5908 | AX29: 114101.5558 | AY29: 1593112.218 | AZ29: 0 | BA29: 0 | BB29: 135467.2867 | BC29: 0 | BD29: 0 | BE29: 0 | BF29: 0 | BG29: 0 | BH29: 0 | BI29: 0 | BJ29: 0 | BK29: 0 | BL29: 0 | BM29: 0 | BN29: 0 | BO29: 0 | BP29: 0 | BQ29: 0 | BR29: 1950928.651
B30: Unmetered Supplies / Public Lighting | D30: 0 | E30: 9.587 | F30: 9.587 | G30: 0 | H30: 0 | I30: 1.2694 | J30: 0 | K30: 0 | L30: 0 | M30: 0 | N30: 0 | O30: 0 | P30: 0 | Q30: 0 | R30: 0 | S30: 0 | T30: 0 | U30: 0 | V30: 0 | W30: 0 | X30: 0 | Z30: 1146.833333 | AA30: 1576335.839 | AB30: 8438871.683 | AC30: 0 | AD30: 0 | AE30: 24908035.17 | AF30: 0 | AG30: 0 | AH30: 0 | AI30: 0 | AJ30: 0 | AK30: 0 | AL30: 0 | AM30: 0 | AN30: 0 | AO30: 0 | AP30: 0 | AQ30: 0 | AR30: 0 | AS30: 0 | AT30: 0 | AW30: 0 | AX30: -10431.81359 | AY30: 808874.6952 | AZ30: 0 | BA30: 0 | BB30: 344277.4522 | BC30: 0 | BD30: 0 | BE30: 0 | BF30: 0 | BG30: 0 | BH30: 0 | BI30: 0 | BJ30: 0 | BK30: 0 | BL30: 0 | BM30: 0 | BN30: 0 | BO30: 0 | BP30: 0 | BQ30: 0 | BR30: 1142720.334
B31: Large Two Rate 7d | D31: 111.7472 | E31: 3.2784 | F31: 3.2784 | G31: 0 | H31: 0 | I31: 0.9538 | J31: 0 | K31: 0 | L31: 0 | M31: 0 | N31: 0 | O31: 0 | P31: 0 | Q31: 0 | R31: 0 | S31: 0 | T31: 0 | U31: 0 | V31: 0 | W31: 0 | X31: 0 | Z31: 41.75 | AA31: 170044.3453 | AB31: 14179340.16 | AC31: 0 | AD31: 0 | AE31: 3510649.018 | AF31: 0 | AG31: 0 | AH31: 0 | AI31: 0 | AJ31: 0 | AK31: 0 | AL31: 0 | AM31: 0 | AN31: 0 | AO31: 0 | AP31: 0 | AQ31: 0 | AR31: 0 | AS31: 0 | AT31: 0 | AW31: 4660.24815 | AX31: 5577.41494 | AY31: 465785.8993 | AZ31: 0 | BA31: 0 | BB31: 33532.32751 | BC31: 0 | BD31: 0 | BE31: 0 | BF31: 0 | BG31: 0 | BH31: 0 | BI31: 0 | BJ31: 0 | BK31: 0 | BL31: 0 | BM31: 0 | BN31: 0 | BO31: 0 | BP31: 0 | BQ31: 0 | BR31: 509555.8899
B32: Large Low Voltage Demand | D32: 0 | E32: 3.0906 | F32: 3.0906 | G32: 0 | H32: 0 | I32: 0.9944 | J32: 0 | K32: 0 | L32: 0 | M32: 106.8094 | N32: 0 | O32: 0 | P32: 0 | Q32: 0 | R32: 0 | S32: 0 | T32: 0 | U32: 0 | V32: 0 | W32: 0 | X32: 0 | Z32: 242.1666667 | AA32: 981933.5151 | AB32: 89364793.97 | AC32: 0 | AD32: 0 | AE32: 69956158.91 | AF32: 0 | AG32: 0 | AH32: 0 | AI32: 59720.20835 | AJ32: 0 | AK32: 0 | AL32: 0 | AM32: 0 | AN32: 0 | AO32: 0 | AP32: 0 | AQ32: 0 | AR32: 0 | AS32: 0 | AT32: 0 | AW32: 0 | AX32: 30337.2207 | AY32: 2762176.092 | AZ32: 0 | BA32: 0 | BB32: 695544.4156 | BC32: 0 | BD32: 0 | BE32: 0 | BF32: 6267220.401 | BG32: 0 | BH32: 0 | BI32: 0 | BJ32: 0 | BK32: 0 | BL32: 0 | BM32: 0 | BN32: 0 | BO32: 0 | BP32: 0 | BQ32: 0 | BR32: 9755278.13
B33: Large Low Voltage Demand - Bulk | D33: 0 | E33: 0.5848 | F33: 0.5848 | G33: 0 | H33: 0 | I33: 0.8868 | J33: 0 | K33: 0 | L33: 0 | M33: 81.5967 | N33: 0 | O33: 0 | P33: 0 | Q33: 0 | R33: 0 | S33: 0 | T33: 0 | U33: 0 | V33: 0 | W33: 0 | X33: 0 | Z33: 1291.833333 | AA33: 5235330.067 | AB33: 1000343670 | AC33: 0 | AD33: 0 | AE33: 735773250.4 | AF33: 0 | AG33: 0 | AH33: 0 | AI33: 636736.4812 | AJ33: 0 | AK33: 0 | AL33: 0 | AM33: 0 | AN33: 0 | AO33: 0 | AP33: 0 | AQ33: 0 | AR33: 0 | AS33: 0 | AT33: 0 | AW33: 0 | AX33: 30621.23768 | AY33: 5843277.643 | AZ33: 0 | BA33: 0 | BB33: 6517748.178 | BC33: 0 | BD33: 0 | BE33: 0 | BF33: 50994587.25 | BG33: 0 | BH33: 0 | BI33: 0 | BJ33: 0 | BK33: 0 | BL33: 0 | BM33: 0 | BN33: 0 | BO33: 0 | BP33: 0 | BQ33: 0 | BR33: 63386234.31
B34: Large Low Voltage Demand R | D34: 0 | E34: 1.6968 | F34: 1.6968 | G34: 0 | H34: 0 | I34: 1.6579 | J34: 0 | K34: 0 | L34: 0 | M34: 86.9573 | N34: 0 | O34: 0 | P34: 0 | Q34: 0 | R34: 0 | S34: 0 | T34: 0 | U34: 0 | V34: 0 | W34: 0 | X34: 0 | Z34: 7.25 | AA34: 37462.63157 | AB34: 1730012.765 | AC34: 0 | AD34: 0 | AE34: 2563351.268 | AF34: 0 | AG34: 0 | AH34: 0 | AI34: 2723.286667 | AJ34: 0 | AK34: 0 | AL34: 0 | AM34: 0 | AN34: 0 | AO34: 0 | AP34: 0 | AQ34: 0 | AR34: 0 | AS34: 0 | AT34: 0 | AW34: 0 | AX34: 634.5460949 | AY34: 29347.26716 | AZ34: 0 | BA34: 0 | BB34: 42491.3182 | BC34: 0 | BD34: 0 | BE34: 0 | BF34: 232751.8857 | BG34: 0 | BH34: 0 | BI34: 0 | BJ34: 0 | BK34: 0 | BL34: 0 | BM34: 0 | BN34: 0 | BO34: 0 | BP34: 0 | BQ34: 0 | BR34: 305225.0171
B35: Large Low Voltage Demand G | D35: 0 | E35: 1.0794 | F35: 1.0794 | G35: 0 | H35: 0 | I35: 2.6398 | J35: 0 | K35: 0 | L35: 0 | M35: 113.9343 | N35: 0 | O35: 0 | P35: 0 | Q35: 0 | R35: 0 | S35: 0 | T35: 0 | U35: 0 | V35: 0 | W35: 0 | X35: 0 | Z35: 2.083333333 | AA35: -8371.605256 | AB35: -2536563.689 | AC35: 0 | AD35: 0 | AE35: -2360785.328 | AF35: 0 | AG35: 0 | AH35: 0 | AI35: -1360.391914 | AJ35: 0 | AK35: 0 | AL35: 0 | AM35: 0 | AN35: 0 | AO35: 0 | AP35: 0 | AQ35: 0 | AR35: 0 | AS35: 0 | AT35: 0 | AW35: 0 | AX35: 27.51068573 | AY35: 384.4051703 | AZ35: 0 | BA35: 0 | BB35: -46065.33479 | BC35: 0 | BD35: 0 | BE35: 0 | BF35: -109588.5412 | BG35: 0 | BH35: 0 | BI35: 0 | BJ35: 0 | BK35: 0 | BL35: 0 | BM35: 0 | BN35: 0 | BO35: 0 | BP35: 0 | BQ35: 0 | BR35: -155241.9602
B36: Large Low Voltage Demand - Bulk R | D36: 0 | E36: 0.9831 | F36: 0.9831 | G36: 0 | H36: 0 | I36: 1.5224 | J36: 0 | K36: 0 | L36: 0 | M36: 79.5538 | N36: 0 | O36: 0 | P36: 0 | Q36: 0 | R36: 0 | S36: 0 | T36: 0 | U36: 0 | V36: 0 | W36: 0 | X36: 0 | Z36: 127.1666667 | AA36: 612582.6915 | AB36: 56124969.95 | AC36: 0 | AD36: 0 | AE36: 49549953.49 | AF36: 0 | AG36: 0 | AH36: 0 | AI36: 35830.11192 | AJ36: 0 | AK36: 0 | AL36: 0 | AM36: 0 | AN36: 0 | AO36: 0 | AP36: 0 | AQ36: 0 | AR36: 0 | AS36: 0 | AT36: 0 | AW36: 0 | AX36: 5998.70504 | AY36: 547495.2076 | AZ36: 0 | BA36: 0 | BB36: 748691.8064 | BC36: 0 | BD36: 0 | BE36: 0 | BF36: 2713602.537 | BG36: 0 | BH36: 0 | BI36: 0 | BJ36: 0 | BK36: 0 | BL36: 0 | BM36: 0 | BN36: 0 | BO36: 0 | BP36: 0 | BQ36: 0 | BR36: 4015788.256
B37: Large Low Voltage Demand - Bulk G | D37: 0 | E37: 1.863 | F37: 1.863 | G37: 0 | H37: 0 | I37: 2.4798 | J37: 0 | K37: 0 | L37: 0 | M37: 105.3669 | N37: 0 | O37: 0 | P37: 0 | Q37: 0 | R37: 0 | S37: 0 | T37: 0 | U37: 0 | V37: 0 | W37: 0 | X37: 0 | Z37: 79.91666667 | AA37: 270176.0229 | AB37: 68858670.77 | AC37: 0 | AD37: 0 | AE37: 47135924.69 | AF37: 0 | AG37: 0 | AH37: 0 | AI37: 35302.11205 | AJ37: 0 | AK37: 0 | AL37: 0 | AM37: 0 | AN37: 0 | AO37: 0 | AP37: 0 | AQ37: 0 | AR37: 0 | AS37: 0 | AT37: 0 | AW37: 0 | AX37: 5027.948956 | AY37: 1284857.318 | AZ37: 0 | BA37: 0 | BB37: 1169168.163 | BC37: 0 | BD37: 0 | BE37: 0 | BF37: 3663931.964 | BG37: 0 | BH37: 0 | BI37: 0 | BJ37: 0 | BK37: 0 | BL37: 0 | BM37: 0 | BN37: 0 | BO37: 0 | BP37: 0 | BQ37: 0 | BR37: 6122985.394
B38: High Voltage Demand | D38: 0 | E38: 0.7679 | F38: 0.7679 | G38: 0 | H38: 0 | I38: 1.3309 | J38: 0 | K38: 0 | L38: 0 | M38: 39.1639 | N38: 0 | O38: 0 | P38: 0 | Q38: 0 | R38: 0 | S38: 0 | T38: 0 | U38: 0 | V38: 0 | W38: 0 | X38: 0 | Z38: 80.08333333 | AA38: 309473.4153 | AB38: 312105861.3 | AC38: 0 | AD38: 0 | AE38: 289721545 | AF38: 0 | AG38: 0 | AH38: 0 | AI38: 193537.455 | AJ38: 0 | AK38: 0 | AL38: 0 | AM38: 0 | AN38: 0 | AO38: 0 | AP38: 0 | AQ38: 0 | AR38: 0 | AS38: 0 | AT38: 0 | AW38: 0 | AX38: 2372.558326 | AY38: 2406569.119 | AZ38: 0 | BA38: 0 | BB38: 3859109.397 | BC38: 0 | BD38: 0 | BE38: 0 | BF38: 7319173.219 | BG38: 0 | BH38: 0 | BI38: 0 | BJ38: 0 | BK38: 0 | BL38: 0 | BM38: 0 | BN38: 0 | BO38: 0 | BP38: 0 | BQ38: 0 | BR38: 13587224.29
B39: High Voltage Demand D1 | D39: 0 | E39: 0.101 | F39: 0.101 | G39: 0 | H39: 0 | I39: 0.1094 | J39: 0 | K39: 0 | L39: 0 | M39: 33.0922 | N39: 0 | O39: 0 | P39: 0 | Q39: 0 | R39: 0 | S39: 0 | T39: 0 | U39: 0 | V39: 0 | W39: 0 | X39: 0 | Z39: 0 | AA39: 0 | AB39: 0 | AC39: 0 | AD39: 0 | AE39: 0 | AF39: 0 | AG39: 0 | AH39: 0 | AI39: 0 | AJ39: 0 | AK39: 0 | AL39: 0 | AM39: 0 | AN39: 0 | AO39: 0 | AP39: 0 | AQ39: 0 | AR39: 0 | AS39: 0 | AT39: 0 | AW39: 0 | AX39: 0 | AY39: 0 | AZ39: 0 | BA39: 0 | BB39: 0 | BC39: 0 | BD39: 0 | BE39: 0 | BF39: 0 | BG39: 0 | BH39: 0 | BI39: 0 | BJ39: 0 | BK39: 0 | BL39: 0 | BM39: 0 | BN39: 0 | BO39: 0 | BP39: 0 | BQ39: 0 | BR39: 0
B40: High Voltage Demand R | D40: 0 | E40: 0.4369 | F40: 0.4369 | G40: 0 | H40: 0 | I40: 0.7744 | J40: 0 | K40: 0 | L40: 0 | M40: 56.5071 | N40: 0 | O40: 0 | P40: 0 | Q40: 0 | R40: 0 | S40: 0 | T40: 0 | U40: 0 | V40: 0 | W40: 0 | X40: 0 | Z40: 0.1666666667 | AA40: 0 | AB40: 0 | AC40: 0 | AD40: 0 | AE40: 0 | AF40: 0 | AG40: 0 | AH40: 0 | AI40: 0 | AJ40: 0 | AK40: 0 | AL40: 0 | AM40: 0 | AN40: 0 | AO40: 0 | AP40: 0 | AQ40: 0 | AR40: 0 | AS40: 0 | AT40: 0 | AW40: 0 | AX40: 0 | AY40: 0 | AZ40: 0 | BA40: 0 | BB40: 0 | BC40: 0 | BD40: 0 | BE40: 0 | BF40: 0 | BG40: 0 | BH40: 0 | BI40: 0 | BJ40: 0 | BK40: 0 | BL40: 0 | BM40: 0 | BN40: 0 | BO40: 0 | BP40: 0 | BQ40: 0 | BR40: 0
B41: High Voltage Demand G | D41: 0 | E41: 0.278 | F41: 0.278 | G41: 0 | H41: 0 | I41: 0.4926 | J41: 0 | K41: 0 | L41: 0 | M41: 76.1096 | N41: 0 | O41: 0 | P41: 0 | Q41: 0 | R41: 0 | S41: 0 | T41: 0 | U41: 0 | V41: 0 | W41: 0 | X41: 0 | Z41: 1 | AA41: 4080 | AB41: 5503603.16 | AC41: 0 | AD41: 0 | AE41: 2653616.26 | AF41: 0 | AG41: 0 | AH41: 0 | AI41: 2997.710667 | AJ41: 0 | AK41: 0 | AL41: 0 | AM41: 0 | AN41: 0 | AO41: 0 | AP41: 0 | AQ41: 0 | AR41: 0 | AS41: 0 | AT41: 0 | AW41: 0 | AX41: 11.32718 | AY41: 15476.84086 | AZ41: 0 | BA41: 0 | BB41: 13079.41876 | BC41: 0 | BD41: 0 | BE41: 0 | BF41: 228154.3514 | BG41: 0 | BH41: 0 | BI41: 0 | BJ41: 0 | BK41: 0 | BL41: 0 | BM41: 0 | BN41: 0 | BO41: 0 | BP41: 0 | BQ41: 0 | BR41: 256721.9382
B42: Subtransmission Demand | D42: 0 | E42: 0.1 | F42: 0.1 | G42: 0 | H42: 0 | I42: 0.1165 | J42: 0 | K42: 0 | L42: 0 | M42: 13.028 | N42: 0 | O42: 0 | P42: 0 | Q42: 0 | R42: 0 | S42: 0 | T42: 0 | U42: 0 | V42: 0 | W42: 0 | X42: 0 | Z42: 7 | AA42: 28560 | AB42: 65635692.63 | AC42: 0 | AD42: 0 | AE42: 36730474.27 | AF42: 0 | AG42: 0 | AH42: 0 | AI42: 71617 | AJ42: 0 | AK42: 0 | AL42: 0 | AM42: 0 | AN42: 0 | AO42: 0 | AP42: 0 | AQ42: 0 | AR42: 0 | AS42: 0 | AT42: 0 | AW42: 0 | AX42: 28.34972 | AY42: 65727.9886 | AZ42: 0 | BA42: 0 | BB42: 42764.54777 | BC42: 0 | BD42: 0 | BE42: 0 | BF42: 743407.5393 | BG42: 0 | BH42: 0 | BI42: 0 | BJ42: 0 | BK42: 0 | BL42: 0 | BM42: 0 | BN42: 0 | BO42: 0 | BP42: 0 | BQ42: 0 | BR42: 851928.4254
AW43: 0 | AX43: 0 | AY43: 0 | AZ43: 0 | BA43: 0 | BB43: 0 | BC43: 0 | BD43: 0 | BE43: 0 | BF43: 0 | BG43: 0 | BH43: 0 | BI43: 0 | BJ43: 0 | BK43: 0 | BL43: 0 | BM43: 0 | BN43: 0 | BO43: 0 | BP43: 0 | BQ43: 0 | BR43: 0
AW44: 0 | AX44: 0 | AY44: 0 | AZ44: 0 | BA44: 0 | BB44: 0 | BC44: 0 | BD44: 0 | BE44: 0 | BF44: 0 | BG44: 0 | BH44: 0 | BI44: 0 | BJ44: 0 | BK44: 0 | BL44: 0 | BM44: 0 | BN44: 0 | BO44: 0 | BP44: 0 | BQ44: 0 | BR44: 0
AW45: 0 | AX45: 0 | AY45: 0 | AZ45: 0 | BA45: 0 | BB45: 0 | BC45: 0 | BD45: 0 | BE45: 0 | BF45: 0 | BG45: 0 | BH45: 0 | BI45: 0 | BJ45: 0 | BK45: 0 | BL45: 0 | BM45: 0 | BN45: 0 | BO45: 0 | BP45: 0 | BQ45: 0 | BR45: 0
AW46: 0 | AX46: 0 | AY46: 0 | AZ46: 0 | BA46: 0 | BB46: 0 | BC46: 0 | BD46: 0 | BE46: 0 | BF46: 0 | BG46: 0 | BH46: 0 | BI46: 0 | BJ46: 0 | BK46: 0 | BL46: 0 | BM46: 0 | BN46: 0 | BO46: 0 | BP46: 0 | BQ46: 0 | BR46: 0
AW47: 0 | AX47: 0 | AY47: 0 | AZ47: 0 | BA47: 0 | BB47: 0 | BC47: 0 | BD47: 0 | BE47: 0 | BF47: 0 | BG47: 0 | BH47: 0 | BI47: 0 | BJ47: 0 | BK47: 0 | BL47: 0 | BM47: 0 | BN47: 0 | BO47: 0 | BP47: 0 | BQ47: 0 | BR47: 0
AW48: 0 | AX48: 0 | AY48: 0 | AZ48: 0 | BA48: 0 | BB48: 0 | BC48: 0 | BD48: 0 | BE48: 0 | BF48: 0 | BG48: 0 | BH48: 0 | BI48: 0 | BJ48: 0 | BK48: 0 | BL48: 0 | BM48: 0 | BN48: 0 | BO48: 0 | BP48: 0 | BQ48: 0 | BR48: 0
AW49: 0 | AX49: 0 | AY49: 0 | AZ49: 0 | BA49: 0 | BB49: 0 | BC49: 0 | BD49: 0 | BE49: 0 | BF49: 0 | BG49: 0 | BH49: 0 | BI49: 0 | BJ49: 0 | BK49: 0 | BL49: 0 | BM49: 0 | BN49: 0 | BO49: 0 | BP49: 0 | BQ49: 0 | BR49: 0
AW50: 0 | AX50: 0 | AY50: 0 | AZ50: 0 | BA50: 0 | BB50: 0 | BC50: 0 | BD50: 0 | BE50: 0 | BF50: 0 | BG50: 0 | BH50: 0 | BI50: 0 | BJ50: 0 | BK50: 0 | BL50: 0 | BM50: 0 | BN50: 0 | BO50: 0 | BP50: 0 | BQ50: 0 | BR50: 0
AW51: 0 | AX51: 0 | AY51: 0 | AZ51: 0 | BA51: 0 | BB51: 0 | BC51: 0 | BD51: 0 | BE51: 0 | BF51: 0 | BG51: 0 | BH51: 0 | BI51: 0 | BJ51: 0 | BK51: 0 | BL51: 0 | BM51: 0 | BN51: 0 | BO51: 0 | BP51: 0 | BQ51: 0 | BR51: 0
AW52: 0 | AX52: 0 | AY52: 0 | AZ52: 0 | BA52: 0 | BB52: 0 | BC52: 0 | BD52: 0 | BE52: 0 | BF52: 0 | BG52: 0 | BH52: 0 | BI52: 0 | BJ52: 0 | BK52: 0 | BL52: 0 | BM52: 0 | BN52: 0 | BO52: 0 | BP52: 0 | BQ52: 0 | BR52: 0
AW53: 0 | AX53: 0 | AY53: 0 | AZ53: 0 | BA53: 0 | BB53: 0 | BC53: 0 | BD53: 0 | BE53: 0 | BF53: 0 | BG53: 0 | BH53: 0 | BI53: 0 | BJ53: 0 | BK53: 0 | BL53: 0 | BM53: 0 | BN53: 0 | BO53: 0 | BP53: 0 | BQ53: 0 | BR53: 0
AW54: 0 | AX54: 0 | AY54: 0 | AZ54: 0 | BA54: 0 | BB54: 0 | BC54: 0 | BD54: 0 | BE54: 0 | BF54: 0 | BG54: 0 | BH54: 0 | BI54: 0 | BJ54: 0 | BK54: 0 | BL54: 0 | BM54: 0 | BN54: 0 | BO54: 0 | BP54: 0 | BQ54: 0 | BR54: 0
AW55: 0 | AX55: 0 | AY55: 0 | AZ55: 0 | BA55: 0 | BB55: 0 | BC55: 0 | BD55: 0 | BE55: 0 | BF55: 0 | BG55: 0 | BH55: 0 | BI55: 0 | BJ55: 0 | BK55: 0 | BL55: 0 | BM55: 0 | BN55: 0 | BO55: 0 | BP55: 0 | BQ55: 0 | BR55: 0
AW56: 0 | AX56: 0 | AY56: 0 | AZ56: 0 | BA56: 0 | BB56: 0 | BC56: 0 | BD56: 0 | BE56: 0 | BF56: 0 | BG56: 0 | BH56: 0 | BI56: 0 | BJ56: 0 | BK56: 0 | BL56: 0 | BM56: 0 | BN56: 0 | BO56: 0 | BP56: 0 | BQ56: 0 | BR56: 0
AW57: 0 | AX57: 0 | AY57: 0 | AZ57: 0 | BA57: 0 | BB57: 0 | BC57: 0 | BD57: 0 | BE57: 0 | BF57: 0 | BG57: 0 | BH57: 0 | BI57: 0 | BJ57: 0 | BK57: 0 | BL57: 0 | BM57: 0 | BN57: 0 | BO57: 0 | BP57: 0 | BQ57: 0 | BR57: 0
AW58: 0 | AX58: 0 | AY58: 0 | AZ58: 0 | BA58: 0 | BB58: 0 | BC58: 0 | BD58: 0 | BE58: 0 | BF58: 0 | BG58: 0 | BH58: 0 | BI58: 0 | BJ58: 0 | BK58: 0 | BL58: 0 | BM58: 0 | BN58: 0 | BO58: 0 | BP58: 0 | BQ58: 0 | BR58: 0
AW59: 0 | AX59: 0 | AY59: 0 | AZ59: 0 | BA59: 0 | BB59: 0 | BC59: 0 | BD59: 0 | BE59: 0 | BF59: 0 | BG59: 0 | BH59: 0 | BI59: 0 | BJ59: 0 | BK59: 0 | BL59: 0 | BM59: 0 | BN59: 0 | BO59: 0 | BP59: 0 | BQ59: 0 | BR59: 0
AW60: 0 | AX60: 0 | AY60: 0 | AZ60: 0 | BA60: 0 | BB60: 0 | BC60: 0 | BD60: 0 | BE60: 0 | BF60: 0 | BG60: 0 | BH60: 0 | BI60: 0 | BJ60: 0 | BK60: 0 | BL60: 0 | BM60: 0 | BN60: 0 | BO60: 0 | BP60: 0 | BQ60: 0 | BR60: 0
AW61: 0 | AX61: 0 | AY61: 0 | AZ61: 0 | BA61: 0 | BB61: 0 | BC61: 0 | BD61: 0 | BE61: 0 | BF61: 0 | BG61: 0 | BH61: 0 | BI61: 0 | BJ61: 0 | BK61: 0 | BL61: 0 | BM61: 0 | BN61: 0 | BO61: 0 | BP61: 0 | BQ61: 0 | BR61: 0
AW62: 0 | AX62: 0 | AY62: 0 | AZ62: 0 | BA62: 0 | BB62: 0 | BC62: 0 | BD62: 0 | BE62: 0 | BF62: 0 | BG62: 0 | BH62: 0 | BI62: 0 | BJ62: 0 | BK62: 0 | BL62: 0 | BM62: 0 | BN62: 0 | BO62: 0 | BP62: 0 | BQ62: 0 | BR62: 0
AW63: 0 | AX63: 0 | AY63: 0 | AZ63: 0 | BA63: 0 | BB63: 0 | BC63: 0 | BD63: 0 | BE63: 0 | BF63: 0 | BG63: 0 | BH63: 0 | BI63: 0 | BJ63: 0 | BK63: 0 | BL63: 0 | BM63: 0 | BN63: 0 | BO63: 0 | BP63: 0 | BQ63: 0 | BR63: 0
AW64: 0 | AX64: 0 | AY64: 0 | AZ64: 0 | BA64: 0 | BB64: 0 | BC64: 0 | BD64: 0 | BE64: 0 | BF64: 0 | BG64: 0 | BH64: 0 | BI64: 0 | BJ64: 0 | BK64: 0 | BL64: 0 | BM64: 0 | BN64: 0 | BO64: 0 | BP64: 0 | BQ64: 0 | BR64: 0
AW65: 0 | AX65: 0 | AY65: 0 | AZ65: 0 | BA65: 0 | BB65: 0 | BC65: 0 | BD65: 0 | BE65: 0 | BF65: 0 | BG65: 0 | BH65: 0 | BI65: 0 | BJ65: 0 | BK65: 0 | BL65: 0 | BM65: 0 | BN65: 0 | BO65: 0 | BP65: 0 | BQ65: 0 | BR65: 0
AW66: 0 | AX66: 0 | AY66: 0 | AZ66: 0 | BA66: 0 | BB66: 0 | BC66: 0 | BD66: 0 | BE66: 0 | BF66: 0 | BG66: 0 | BH66: 0 | BI66: 0 | BJ66: 0 | BK66: 0 | BL66: 0 | BM66: 0 | BN66: 0 | BO66: 0 | BP66: 0 | BQ66: 0 | BR66: 0
Z67: =SUM(Z7:Z66) -> 364456.5 | AA67: 895058100.1 | AB67: 3087517006 | AC67: 0 | AD67: 0 | AE67: 1954040693 | AF67: 0 | AG67: 0 | AH67: 0 | AI67: 1037103.974 | AJ67: 0 | AK67: 0 | AL67: 0 | AM67: =SUM(AM7:AM66) -> 1228292.357 | AN67: 915291.3227 | AO67: 1233104.148 | AP67: 0 | AQ67: 1452703.935 | AR67: 1271893.625 | AS67: 1455977.477 | AT67: 0 | AW67: =SUM(AW7:AW66) -> 27623902.65 | AX67: 50353204.97 | AY67: 110261026.2 | AZ67: 0 | BA67: 0 | BB67: 27100486.71 | BC67: 0 | BD67: 0 | BE67: 0 | BF67: 72053240.61 | BG67: 0 | BH67: 0 | BI67: 0 | BJ67: =SUM(BJ7:BJ66) -> 72463.52127 | BK67: 54302.70242 | BL67: 13224.7365 | BM67: 0 | BN67: 99218.62546 | BO67: 81411.76499 | BP67: 18135.57832 | BQ67: 0 | BR67: 287730618.1
B70: Definitions | AW70: 0 | AX70: 0 | AY70: 0 | AZ70: 0 | BA70: 0 | BB70: 0 | BC70: 0 | BD70: 0 | BE70: 0 | BF70: 0 | BG70: 0 | BH70: 0 | BI70: 0 | BJ70: 0 | BK70: 0 | BL70: 0 | BM70: 0 | BN70: 0 | BO70: 0 | BP70: 0 | BQ70: 0 | BR70: 0
B71: All information must be reported consistent the terms used in the DNSPs pricing proposal

Sheet 26. Actual t-2 Trans Tariff
B1: =Cover!E22 -> CitiPower Pty Ltd
B2: Tariff Quantity Data Template (Actual t-2) Transmission Tariff Revenue
B3: =Cover!E26 -> 2015
B5: Templates 24 to 29 collect data required for annual pricing proposals. T-2 requires actual information for the reporting year.
D6: Transmission Tariffs (Pt-2) | Z6: Actual Quantities (Qt-2) | AW6: Actual Revenue (P-2)*(Qt-2)
B7: Tariffs t-2 | D7: (t-2)Tar Fixed | E7: (t-2)Tar PkBlk1 | F7: (t-2)Tar PkBlk2 | G7: (t-2)Tar PkBlk3 | H7: (t-2)Tar PkBlk4 | I7: (t-2)Tar OPkBlk1 | J7: (t-2)Tar OPkBlk2 | K7: (t-2)Tar OPkBlk3 | L7: (t-2)Tar OPkBlk4 | M7: (t-2)Tar DemBlk1 | N7: (t-2)Tar DemBlk2 | O7: (t-2)Tar DemBlk3 | P7: (t-2)Tar DemBlk4 | Q7: (t-2)Tar SumBlk1 | R7: (t-2)Tar SumBlk2 | S7: (t-2)Tar SumBlk3 | T7: (t-2)Tar SumBlk4 | U7: (t-2)Tar WtrBlk1 | V7: (t-2)Tar WtrBlk2 | W7: (t-2)Tar WtrBlk3 | X7: (t-2)Tar WtrBlk4 | Z7: ActVol Fixed | AA7: ActVol PkBlk1 | AB7: ActVol PkBlk2 | AC7: ActVol PkBlk3 | AD7: ActVol PkBlk4 | AE7: ActVol OPkBlk1 | AF7: ActVol OPkBlk2 | AG7: ActVol OPkBlk3 | AH7: ActVol OPkBlk4 | AI7: ActVol DemBlk1 | AJ7: ActVol DemBlk2 | AK7: ActVol DemBlk3 | AL7: ActVol DemBlk4 | AM7: (t-2)Tar SumBlk1 | AN7: (t-2)Tar SumBlk2 | AO7: (t-2)Tar SumBlk3 | AP7: (t-2)Tar SumBlk4 | AQ7: (t-2)Tar WtrBlk1 | AR7: (t-2)Tar WtrBlk2 | AS7: (t-2)Tar WtrBlk3 | AT7: (t-2)Tar WtrBlk4 | AW7: ActRev Fixed | AX7: ActRev PkBlk1 | AY7: ActRev PkBlk2 | AZ7: ActRev PkBlk3 | BA7: ActRev PkBlk4 | BB7: ActRev OPkBlk1 | BC7: ActRev OPkBlk2 | BD7: ActRev OPkBlk3 | BE7: ActRev OPkBlk4 | BF7: ActRev DemBlk1 | BG7: ActRev DemBlk2 | BH7: ActRev DemBlk3 | BI7: ActRev DemBlk4 | BJ7: (t-2)Tar SumBlk1 | BK7: (t-2)Tar SumBlk2 | BL7: (t-2)Tar SumBlk3 | BM7: (t-2)Tar SumBlk4 | BN7: (t-2)Tar WtrBlk1 | BO7: (t-2)Tar WtrBlk2 | BP7: (t-2)Tar WtrBlk3 | BQ7: (t-2)Tar WtrBlk4 | BR7: ActRev Total
AW8: =D8*Z8 -> 0 | AX8: =E8/100*AA8 -> 0 | AY8: =F8/100*AB8 -> 0 | AZ8: =G8/100*AC8 -> 0 | BA8: =H8/100*AD8 -> 0 | BB8: =I8/100*AE8 -> 0 | BC8: =J8/100*AF8 -> 0 | BD8: =K8/100*AG8 -> 0 | BE8: =L8/100*AH8 -> 0 | BF8: =M8*AI8 -> 0 | BG8: =N8*AJ8 -> 0 | BH8: =O8*AK8 -> 0 | BI8: =P8*AL8 -> 0 | BJ8: =Q8/100*AM8 -> 0 | BK8: =R8/100*AN8 -> 0 | BL8: =S8/100*AO8 -> 0 | BM8: =T8/100*AP8 -> 0 | BN8: =U8/100*AQ8 -> 0 | BO8: =V8/100*AR8 -> 0 | BP8: =W8/100*AS8 -> 0 | BQ8: =X8/100*AT8 -> 0 | BR8: =SUM(AW8:BQ8) -> 0
B9: Residential Single Rate | D9: 0.0002 | E9: 1.2972 | F9: 3.0099 | G9: 0 | H9: 0 | I9: 0 | J9: 0 | K9: 0 | L9: 0 | M9: 0 | N9: 0 | O9: 0 | P9: 0 | Q9: 0 | R9: 0 | S9: 0 | T9: 0 | U9: 0 | V9: 0 | W9: 0 | X9: 0 | Z9: 198643.75 | AA9: 555364942 | AB9: 274827929.8 | AC9: 0 | AD9: 0 | AE9: 0 | AF9: 0 | AG9: 0 | AH9: 0 | AI9: 0 | AJ9: 0 | AK9: 0 | AL9: 0 | AM9: 0 | AN9: 0 | AO9: 0 | AP9: 0 | AQ9: 0 | AR9: 0 | AS9: 0 | AT9: 0 | AW9: =D9*Z9 -> 39.72875 | AX9: 7204194.028 | AY9: 8272045.86 | AZ9: 0 | BA9: 0 | BB9: 0 | BC9: 0 | BD9: 0 | BE9: 0 | BF9: =M9*AI9 -> 0 | BG9: =N9*AJ9 -> 0 | BH9: =O9*AK9 -> 0 | BI9: =P9*AL9 -> 0 | BJ9: =Q9/100*AM9 -> 0 | BK9: 0 | BL9: 0 | BM9: 0 | BN9: 0 | BO9: 0 | BP9: 0 | BQ9: 0 | BR9: =SUM(AW9:BQ9) -> 15476279.62
B10: Residential Single Rate - Bulk | D10: 0.0001 | E10: 1.135 | F10: 1.6436 | G10: 0 | H10: 0 | I10: 0 | J10: 0 | K10: 0 | L10: 0 | M10: 0 | N10: 0 | O10: 0 | P10: 0 | Q10: 0 | R10: 0 | S10: 0 | T10: 0 | U10: 0 | V10: 0 | W10: 0 | X10: 0 | Z10: 30651.91667 | AA10: 78012277.23 | AB10: 27161863.93 | AC10: 0 | AD10: 0 | AE10: 0 | AF10: 0 | AG10: 0 | AH10: 0 | AI10: 0 | AJ10: 0 | AK10: 0 | AL10: 0 | AM10: 0 | AN10: 0 | AO10: 0 | AP10: 0 | AQ10: 0 | AR10: 0 | AS10: 0 | AT10: 0 | AW10: 3.065191667 | AX10: 885439.3466 | AY10: 446432.3955 | AZ10: 0 | BA10: 0 | BB10: 0 | BC10: 0 | BD10: 0 | BE10: 0 | BF10: 0 | BG10: 0 | BH10: 0 | BI10: 0 | BJ10: 0 | BK10: 0 | BL10: 0 | BM10: 0 | BN10: 0 | BO10: 0 | BP10: 0 | BQ10: 0 | BR10: 1331874.807
B11: Residential - flexible pricing | D11: 0.0001 | E11: 0 | F11: 0 | G11: 0 | H11: 0 | I11: 0 | J11: 0 | K11: 0 | L11: 0 | M11: 0 | N11: 0 | O11: 0 | P11: 0 | Q11: 0.0001 | R11: 0.0001 | S11: 0.0001 | T11: 0 | U11: 0.0001 | V11: 0.0001 | W11: 0.0001 | X11: 0 | Z11: 625.75 | AA11: 0 | AB11: 0 | AC11: 0 | AD11: 0 | AE11: 132.789871 | AF11: 0 | AG11: 0 | AH11: 0 | AI11: 0 | AJ11: 0 | AK11: 0 | AL11: 0 | AM11: 283627.6805 | AN11: 618987.3646 | AO11: 424744.5757 | AP11: 0 | AQ11: 476066.7547 | AR11: 961728.1596 | AS11: 668934.713 | AT11: 0 | AW11: 0.062575 | AX11: 0 | AY11: 0 | AZ11: 0 | BA11: 0 | BB11: 0 | BC11: 0 | BD11: 0 | BE11: 0 | BF11: 0 | BG11: 0 | BH11: 0 | BI11: 0 | BJ11: 0.2836276805 | BK11: 0.6189873646 | BL11: 0.4247445757 | BM11: 0 | BN11: 0.4760667547 | BO11: 0.9617281596 | BP11: 0.668934713 | BQ11: 0 | BR11: 3.496664248
B12: Residential - flexible pricing bulk | D12: 0.0002 | E12: 0 | F12: 0 | G12: 0 | H12: 0 | I12: 0 | J12: 0 | K12: 0 | L12: 0 | M12: 0 | N12: 0 | O12: 0 | P12: 0 | Q12: 0.0001 | R12: 0.0001 | S12: 0.0001 | T12: 0 | U12: 0.0001 | V12: 0.0001 | W12: 0.0001 | X12: 0 | Z12: 85 | AA12: 0 | AB12: 0 | AC12: 0 | AD12: 0 | AE12: 0 | AF12: 0 | AG12: 0 | AH12: 0 | AI12: 0 | AJ12: 0 | AK12: 0 | AL12: 0 | AM12: 24571.02123 | AN12: 60425.92773 | AO12: 39401.55041 | AP12: 0 | AQ12: 38567.7171 | AR12: 87284.98452 | AS12: 58163.12284 | AT12: 0 | AW12: 0.017 | AX12: 0 | AY12: 0 | AZ12: 0 | BA12: 0 | BB12: 0 | BC12: 0 | BD12: 0 | BE12: 0 | BF12: 0 | BG12: 0 | BH12: 0 | BI12: 0 | BJ12: 0.02457102123 | BK12: 0.06042592773 | BL12: 0.03940155041 | BM12: 0 | BN12: 0.0385677171 | BO12: 0.08728498452 | BP12: 0.05816312284 | BQ12: 0 | BR12: 0.3254143238
B13: Residential Two Rate 5d | D13: 0.0001 | E13: 4.2957 | F13: 4.2957 | G13: 0 | H13: 0 | I13: 0.0001 | J13: 0 | K13: 0 | L13: 0 | M13: 0 | N13: 0 | O13: 0 | P13: 0 | Q13: 0 | R13: 0 | S13: 0 | T13: 0 | U13: 0 | V13: 0 | W13: 0 | X13: 0 | Z13: 11068.58333 | AA13: 24290178.82 | AB13: 13019369.91 | AC13: 0 | AD13: 0 | AE13: 32412476.83 | AF13: 0 | AG13: 0 | AH13: 0 | AI13: 0 | AJ13: 0 | AK13: 0 | AL13: 0 | AM13: 0 | AN13: 0 | AO13: 0 | AP13: 0 | AQ13: 0 | AR13: 0 | AS13: 0 | AT13: 0 | AW13: 1.106858333 | AX13: 1043433.211 | AY13: 559273.0734 | AZ13: 0 | BA13: 0 | BB13: 32.41247683 | BC13: 0 | BD13: 0 | BE13: 0 | BF13: 0 | BG13: 0 | BH13: 0 | BI13: 0 | BJ13: 0 | BK13: 0 | BL13: 0 | BM13: 0 | BN13: 0 | BO13: 0 | BP13: 0 | BQ13: 0 | BR13: 1602739.804
B14: Residential Two Rate 5d - Bulk | D14: 0.0001 | E14: 0.0001 | F14: 0.0001 | G14: 0 | H14: 0 | I14: 0.0001 | J14: 0 | K14: 0 | L14: 0 | M14: 0 | N14: 0 | O14: 0 | P14: 0 | Q14: 0 | R14: 0 | S14: 0 | T14: 0 | U14: 0 | V14: 0 | W14: 0 | X14: 0 | Z14: 4382.916667 | AA14: 8459189.757 | AB14: 4249647.846 | AC14: 0 | AD14: 0 | AE14: 10886420.22 | AF14: 0 | AG14: 0 | AH14: 0 | AI14: 0 | AJ14: 0 | AK14: 0 | AL14: 0 | AM14: 0 | AN14: 0 | AO14: 0 | AP14: 0 | AQ14: 0 | AR14: 0 | AS14: 0 | AT14: 0 | AW14: 0.4382916667 | AX14: 8.459189757 | AY14: 4.249647846 | AZ14: 0 | BA14: 0 | BB14: 10.88642022 | BC14: 0 | BD14: 0 | BE14: 0 | BF14: 0 | BG14: 0 | BH14: 0 | BI14: 0 | BJ14: 0 | BK14: 0 | BL14: 0 | BM14: 0 | BN14: 0 | BO14: 0 | BP14: 0 | BQ14: 0 | BR14: 24.03354949
B15: Residential Interval | D15: 0.0001 | E15: 4.2957 | F15: 4.2957 | G15: 0 | H15: 0 | I15: 0.0001 | J15: 0 | K15: 0 | L15: 0 | M15: 0 | N15: 0 | O15: 0 | P15: 0 | Q15: 0 | R15: 0 | S15: 0 | T15: 0 | U15: 0 | V15: 0 | W15: 0 | X15: 0 | Z15: 17380.5 | AA15: 40849562.59 | AB15: 21895274.86 | AC15: 0 | AD15: 0 | AE15: 54646075.27 | AF15: 0 | AG15: 0 | AH15: 0 | AI15: 0 | AJ15: 0 | AK15: 0 | AL15: 0 | AM15: 0 | AN15: 0 | AO15: 0 | AP15: 0 | AQ15: 0 | AR15: 0 | AS15: 0 | AT15: 0 | AW15: 1.73805 | AX15: 1754774.66 | AY15: 940555.3222 | AZ15: 0 | BA15: 0 | BB15: 54.64607527 | BC15: 0 | BD15: 0 | BE15: 0 | BF15: 0 | BG15: 0 | BH15: 0 | BI15: 0 | BJ15: 0 | BK15: 0 | BL15: 0 | BM15: 0 | BN15: 0 | BO15: 0 | BP15: 0 | BQ15: 0 | BR15: 2695386.366
B16: Residential Interval - Bulk | D16: 0.0001 | E16: 0.0001 | F16: 0.0001 | G16: 0 | H16: 0 | I16: 0.0001 | J16: 0 | K16: 0 | L16: 0 | M16: 0 | N16: 0 | O16: 0 | P16: 0 | Q16: 0 | R16: 0 | S16: 0 | T16: 0 | U16: 0 | V16: 0 | W16: 0 | X16: 0 | Z16: 9012.25 | AA16: 13442952.73 | AB16: 2219000.817 | AC16: 0 | AD16: 0 | AE16: 14647615.31 | AF16: 0 | AG16: 0 | AH16: 0 | AI16: 0 | AJ16: 0 | AK16: 0 | AL16: 0 | AM16: 0 | AN16: 0 | AO16: 0 | AP16: 0 | AQ16: 0 | AR16: 0 | AS16: 0 | AT16: 0 | AW16: 0.901225 | AX16: 13.44295273 | AY16: 2.219000817 | AZ16: 0 | BA16: 0 | BB16: 14.64761531 | BC16: 0 | BD16: 0 | BE16: 0 | BF16: 0 | BG16: 0 | BH16: 0 | BI16: 0 | BJ16: 0 | BK16: 0 | BL16: 0 | BM16: 0 | BN16: 0 | BO16: 0 | BP16: 0 | BQ16: 0 | BR16: 31.21079386
B17: Residential Two Rate 5d - Controlled Load | D17: 0 | E17: 0 | F17: 0 | G17: 0 | H17: 0 | I17: 0.0001 | J17: 0 | K17: 0 | L17: 0 | M17: 0 | N17: 0 | O17: 0 | P17: 0 | Q17: 0 | R17: 0 | S17: 0 | T17: 0 | U17: 0 | V17: 0 | W17: 0 | X17: 0 | Z17: 9590.583333 | AA17: 0 | AB17: 0 | AC17: 0 | AD17: 0 | AE17: 20039463.58 | AF17: 0 | AG17: 0 | AH17: 0 | AI17: 0 | AJ17: 0 | AK17: 0 | AL17: 0 | AM17: 0 | AN17: 0 | AO17: 0 | AP17: 0 | AQ17: 0 | AR17: 0 | AS17: -1805.636 | AT17: 0 | AW17: 0 | AX17: 0 | AY17: 0 | AZ17: 0 | BA17: 0 | BB17: 20.03946358 | BC17: 0 | BD17: 0 | BE17: 0 | BF17: 0 | BG17: 0 | BH17: 0 | BI17: 0 | BJ17: 0 | BK17: 0 | BL17: 0 | BM17: 0 | BN17: 0 | BO17: 0 | BP17: 0 | BQ17: 0 | BR17: 20.03946358
B18: Residential Two Rate 5d - Bulk - Controlled Load | D18: 0 | E18: 0 | F18: 0 | G18: 0 | H18: 0 | I18: 0.0001 | J18: 0 | K18: 0 | L18: 0 | M18: 0 | N18: 0 | O18: 0 | P18: 0 | Q18: 0 | R18: 0 | S18: 0 | T18: 0 | U18: 0 | V18: 0 | W18: 0 | X18: 0 | Z18: 3682.166667 | AA18: 0 | AB18: 0 | AC18: 0 | AD18: 0 | AE18: 7359912.331 | AF18: 0 | AG18: 0 | AH18: 0 | AI18: 0 | AJ18: 0 | AK18: 0 | AL18: 0 | AM18: 0 | AN18: 0 | AO18: 0 | AP18: 0 | AQ18: 0 | AR18: 0 | AS18: -499.677 | AT18: 0 | AW18: 0 | AX18: 0 | AY18: 0 | AZ18: 0 | BA18: 0 | BB18: 7.359912331 | BC18: 0 | BD18: 0 | BE18: 0 | BF18: 0 | BG18: 0 | BH18: 0 | BI18: 0 | BJ18: 0 | BK18: 0 | BL18: 0 | BM18: 0 | BN18: 0 | BO18: 0 | BP18: 0 | BQ18: 0 | BR18: 7.359912331
B19: Dedicated Circuit | D19: 0 | E19: 0 | F19: 0 | G19: 0 | H19: 0 | I19: 0.0001 | J19: 0 | K19: 0 | L19: 0 | M19: 0 | N19: 0 | O19: 0 | P19: 0 | Q19: 0 | R19: 0 | S19: 0 | T19: 0 | U19: 0 | V19: 0 | W19: 0 | X19: 0 | Z19: 24190.5 | AA19: 0 | AB19: 0 | AC19: 0 | AD19: 0 | AE19: 39326842.37 | AF19: 0 | AG19: 0 | AH19: 0 | AI19: 0 | AJ19: 0 | AK19: 0 | AL19: 0 | AM19: 0 | AN19: 0 | AO19: 0 | AP19: 0 | AQ19: 0 | AR19: 0 | AS19: -3371.396 | AT19: 0 | AW19: 0 | AX19: 0 | AY19: 0 | AZ19: 0 | BA19: 0 | BB19: 39.32684237 | BC19: 0 | BD19: 0 | BE19: 0 | BF19: 0 | BG19: 0 | BH19: 0 | BI19: 0 | BJ19: 0 | BK19: 0 | BL19: 0 | BM19: 0 | BN19: 0 | BO19: 0 | BP19: 0 | BQ19: 0 | BR19: 39.32684237
B20: Dedicated Circuit - Bulk | D20: 0 | E20: 0 | F20: 0 | G20: 0 | H20: 0 | I20: 0.0001 | J20: 0 | K20: 0 | L20: 0 | M20: 0 | N20: 0 | O20: 0 | P20: 0 | Q20: 0 | R20: 0 | S20: 0 | T20: 0 | U20: 0 | V20: 0 | W20: 0 | X20: 0 | Z20: 1167.666667 | AA20: 0 | AB20: 0 | AC20: 0 | AD20: 0 | AE20: 2601721.167 | AF20: 0 | AG20: 0 | AH20: 0 | AI20: 0 | AJ20: 0 | AK20: 0 | AL20: 0 | AM20: 0 | AN20: 0 | AO20: 0 | AP20: 0 | AQ20: 0 | AR20: 0 | AS20: -55.5782 | AT20: 0 | AW20: 0 | AX20: 0 | AY20: 0 | AZ20: 0 | BA20: 0 | BB20: 2.601721167 | BC20: 0 | BD20: 0 | BE20: 0 | BF20: 0 | BG20: 0 | BH20: 0 | BI20: 0 | BJ20: 0 | BK20: 0 | BL20: 0 | BM20: 0 | BN20: 0 | BO20: 0 | BP20: 0 | BQ20: 0 | BR20: 2.601721167
B21: Non-Residential Single Rate | D21: 0.0002 | E21: 0.0001 | F21: 0.0001 | G21: 0 | H21: 0 | I21: 0 | J21: 0 | K21: 0 | L21: 0 | M21: 0 | N21: 0 | O21: 0 | P21: 0 | Q21: 0 | R21: 0 | S21: 0 | T21: 0 | U21: 0 | V21: 0 | W21: 0 | X21: 0 | Z21: 19695.25 | AA21: 62979582.61 | AB21: 260104343.6 | AC21: 0 | AD21: 0 | AE21: 1583.494249 | AF21: 0 | AG21: 0 | AH21: 0 | AI21: 0 | AJ21: 0 | AK21: 0 | AL21: 0 | AM21: 0 | AN21: 0 | AO21: 0 | AP21: 0 | AQ21: 0 | AR21: 0 | AS21: 0 | AT21: 0 | AW21: 3.93905 | AX21: 62.97958261 | AY21: 260.1043436 | AZ21: 0 | BA21: 0 | BB21: 0 | BC21: 0 | BD21: 0 | BE21: 0 | BF21: 0 | BG21: 0 | BH21: 0 | BI21: 0 | BJ21: 0 | BK21: 0 | BL21: 0 | BM21: 0 | BN21: 0 | BO21: 0 | BP21: 0 | BQ21: 0 | BR21: 327.0229762
B22: Non-Residential Single Rate - Bulk | D22: 0.0001 | E22: 0.0001 | F22: 0.0001 | G22: 0 | H22: 0 | I22: 0 | J22: 0 | K22: 0 | L22: 0 | M22: 0 | N22: 0 | O22: 0 | P22: 0 | Q22: 0 | R22: 0 | S22: 0 | T22: 0 | U22: 0 | V22: 0 | W22: 0 | X22: 0 | Z22: 5873.5 | AA22: 18904571.96 | AB22: 110368834.3 | AC22: 0 | AD22: 0 | AE22: 3700.931513 | AF22: 0 | AG22: 0 | AH22: 0 | AI22: 0 | AJ22: 0 | AK22: 0 | AL22: 0 | AM22: 0 | AN22: 0 | AO22: 0 | AP22: 0 | AQ22: 0 | AR22: 0 | AS22: 0 | AT22: 0 | AW22: 0.58735 | AX22: 18.90457196 | AY22: 110.3688343 | AZ22: 0 | BA22: 0 | BB22: 0 | BC22: 0 | BD22: 0 | BE22: 0 | BF22: 0 | BG22: 0 | BH22: 0 | BI22: 0 | BJ22: 0 | BK22: 0 | BL22: 0 | BM22: 0 | BN22: 0 | BO22: 0 | BP22: 0 | BQ22: 0 | BR22: 129.8607563
B23: Non-Residential Two Rate 5d | D23: 0.0002 | E23: 2.2905 | F23: 2.2905 | G23: 0 | H23: 0 | I23: 0.0001 | J23: 0 | K23: 0 | L23: 0 | M23: 0 | N23: 0 | O23: 0 | P23: 0 | Q23: 0 | R23: 0 | S23: 0 | T23: 0 | U23: 0 | V23: 0 | W23: 0 | X23: 0 | Z23: 11612.58333 | AA23: 35309917.45 | AB23: 278153650.5 | AC23: 0 | AD23: 0 | AE23: 222313618.3 | AF23: 0 | AG23: 0 | AH23: 0 | AI23: 0 | AJ23: 0 | AK23: 0 | AL23: 0 | AM23: 0 | AN23: 0 | AO23: 0 | AP23: 0 | AQ23: 0 | AR23: 0 | AS23: 0 | AT23: 0 | AW23: 2.322516667 | AX23: 808773.6593 | AY23: 6371109.365 | AZ23: 0 | BA23: 0 | BB23: 222.3136183 | BC23: 0 | BD23: 0 | BE23: 0 | BF23: 0 | BG23: 0 | BH23: 0 | BI23: 0 | BJ23: 0 | BK23: 0 | BL23: 0 | BM23: 0 | BN23: 0 | BO23: 0 | BP23: 0 | BQ23: 0 | BR23: 7180107.661
B24: Non-Residential Two Rate 5d - Bulk | D24: 0.0002 | E24: 3.4165 | F24: 3.4165 | G24: 0 | H24: 0 | I24: 0.8587 | J24: 0 | K24: 0 | L24: 0 | M24: 0 | N24: 0 | O24: 0 | P24: 0 | Q24: 0 | R24: 0 | S24: 0 | T24: 0 | U24: 0 | V24: 0 | W24: 0 | X24: 0 | Z24: 1950.916667 | AA24: 7168695.236 | AB24: 92776486.8 | AC24: 0 | AD24: 0 | AE24: 65978262.38 | AF24: 0 | AG24: 0 | AH24: 0 | AI24: 0 | AJ24: 0 | AK24: 0 | AL24: 0 | AM24: 0 | AN24: 0 | AO24: 0 | AP24: 0 | AQ24: 0 | AR24: 0 | AS24: 0 | AT24: 0 | AW24: 0.3901833333 | AX24: 244918.4727 | AY24: 3169708.672 | AZ24: 0 | BA24: 0 | BB24: 566555.339 | BC24: 0 | BD24: 0 | BE24: 0 | BF24: 0 | BG24: 0 | BH24: 0 | BI24: 0 | BJ24: 0 | BK24: 0 | BL24: 0 | BM24: 0 | BN24: 0 | BO24: 0 | BP24: 0 | BQ24: 0 | BR24: 3981182.874
B25: Non-Residential Interval | D25: 0.0002 | E25: 2.2905 | F25: 2.2905 | G25: 0 | H25: 0 | I25: 0.0001 | J25: 0 | K25: 0 | L25: 0 | M25: 0 | N25: 0 | O25: 0 | P25: 0 | Q25: 0 | R25: 0 | S25: 0 | T25: 0 | U25: 0 | V25: 0 | W25: 0 | X25: 0 | Z25: 5092.75 | AA25: 16903514.17 | AB25: 102232177.2 | AC25: 0 | AD25: 0 | AE25: 76114184.6 | AF25: 0 | AG25: 0 | AH25: 0 | AI25: 0 | AJ25: 0 | AK25: 0 | AL25: 0 | AM25: 0 | AN25: 0 | AO25: 0 | AP25: 0 | AQ25: 0 | AR25: 0 | AS25: 0 | AT25: 0 | AW25: 1.01855 | AX25: 387174.992 | AY25: 2341628.018 | AZ25: 0 | BA25: 0 | BB25: 76.1141846 | BC25: 0 | BD25: 0 | BE25: 0 | BF25: 0 | BG25: 0 | BH25: 0 | BI25: 0 | BJ25: 0 | BK25: 0 | BL25: 0 | BM25: 0 | BN25: 0 | BO25: 0 | BP25: 0 | BQ25: 0 | BR25: 2728880.143
B26: Non-Residential Interval - Bulk | D26: 0.0002 | E26: 3.4165 | F26: 3.4165 | G26: 0 | H26: 0 | I26: 0.8587 | J26: 0 | K26: 0 | L26: 0 | M26: 0 | N26: 0 | O26: 0 | P26: 0 | Q26: 0 | R26: 0 | S26: 0 | T26: 0 | U26: 0 | V26: 0 | W26: 0 | X26: 0 | Z26: 3112.166667 | AA26: 11314281.09 | AB26: 168916131.3 | AC26: 0 | AD26: 0 | AE26: 115478858.6 | AF26: 0 | AG26: 0 | AH26: 0 | AI26: 0 | AJ26: 0 | AK26: 0 | AL26: 0 | AM26: 0 | AN26: 0 | AO26: 0 | AP26: 0 | AQ26: 0 | AR26: 0 | AS26: 0 | AT26: 0 | AW26: 0.6224333333 | AX26: 386552.4136 | AY26: 5771019.626 | AZ26: 0 | BA26: 0 | BB26: 991616.9592 | BC26: 0 | BD26: 0 | BE26: 0 | BF26: 0 | BG26: 0 | BH26: 0 | BI26: 0 | BJ26: 0 | BK26: 0 | BL26: 0 | BM26: 0 | BN26: 0 | BO26: 0 | BP26: 0 | BQ26: 0 | BR26: 7149189.621
B27: Non-Residential | D27: 25.9446 | E27: 0 | F27: 0 | G27: 0 | H27: 0 | I27: 0 | J27: 0 | K27: 0 | L27: 0 | M27: 0 | N27: 0 | O27: 0 | P27: 0 | Q27: 0.0001 | R27: 0.0001 | S27: 2.2522 | T27: 0 | U27: 0.0001 | V27: 0.0001 | W27: 2.2522 | X27: 0 | Z27: 34.83333333 | AA27: 0 | AB27: 0 | AC27: 0 | AD27: 0 | AE27: 0 | AF27: 0 | AG27: 0 | AH27: 0 | AI27: 0 | AJ27: 0 | AK27: 0 | AL27: 0 | AM27: 414071.035 | AN27: 130871.1991 | AO27: 380028.9461 | AP27: 0 | AQ27: 411075.2931 | AR27: 125100.6512 | AS27: 362350.7348 | AT27: 0 | AW27: 903.7369 | AX27: 0 | AY27: 0 | AZ27: 0 | BA27: 0 | BB27: 0 | BC27: 0 | BD27: 0 | BE27: 0 | BF27: 0 | BG27: 0 | BH27: 0 | BI27: 0 | BJ27: 0.414071035 | BK27: 0.1308711991 | BL27: 8559.011924 | BM27: 0 | BN27: 0.4110752931 | BO27: 0.1251006512 | BP27: 8160.863249 | BQ27: 0 | BR27: 17624.69319
B28: Non-Residential - Bulk | D28: 19.7175 | E28: 0 | F28: 0 | G28: 0 | H28: 0 | I28: 0 | J28: 0 | K28: 0 | L28: 0 | M28: 0 | N28: 0 | O28: 0 | P28: 0 | Q28: 8.2703 | R28: 7.2078 | S28: 2.0781 | T28: 0 | U28: 8.2703 | V28: 7.2078 | W28: 2.0781 | X28: 0 | Z28: 22 | AA28: 0 | AB28: 0 | AC28: 0 | AD28: 0 | AE28: 0 | AF28: 0 | AG28: 0 | AH28: 0 | AI28: 0 | AJ28: 0 | AK28: 0 | AL28: 0 | AM28: 506022.62 | AN28: 105006.8313 | AO28: 388929.0758 | AP28: 0 | AQ28: 526994.1697 | AR28: 97779.82981 | AS28: 372261.1932 | AT28: 0 | AW28: 433.785 | AX28: 0 | AY28: 0 | AZ28: 0 | BA28: 0 | BB28: 0 | BC28: 0 | BD28: 0 | BE28: 0 | BF28: 0 | BG28: 0 | BH28: 0 | BI28: 0 | BJ28: 41849.58874 | BK28: 7568.682388 | BL28: 8082.335125 | BM28: 0 | BN28: 43583.99882 | BO28: 7047.774573 | BP28: 7735.959855 | BQ28: 0 | BR28: 116302.1245
B29: Non-Residential Two Rate 7d | D29: 0.0002 | E29: 0.0001 | F29: 0.0001 | G29: 0 | H29: 0 | I29: 0.0001 | J29: 0 | K29: 0 | L29: 0 | M29: 0 | N29: 0 | O29: 0 | P29: 0 | Q29: 0 | R29: 0 | S29: 0 | T29: 0 | U29: 0 | V29: 0 | W29: 0 | X29: 0 | Z29: 3106.416667 | AA29: 11163249.89 | AB29: 88428695.13 | AC29: 0 | AD29: 0 | AE29: 25258082.47 | AF29: 0 | AG29: 0 | AH29: 0 | AI29: 0 | AJ29: 0 | AK29: 0 | AL29: 0 | AM29: 0 | AN29: 0 | AO29: 0 | AP29: 0 | AQ29: 0 | AR29: 0 | AS29: 0 | AT29: 0 | AW29: 0.6212833333 | AX29: 11.16324989 | AY29: 88.42869513 | AZ29: 0 | BA29: 0 | BB29: 25.25808247 | BC29: 0 | BD29: 0 | BE29: 0 | BF29: 0 | BG29: 0 | BH29: 0 | BI29: 0 | BJ29: 0 | BK29: 0 | BL29: 0 | BM29: 0 | BN29: 0 | BO29: 0 | BP29: 0 | BQ29: 0 | BR29: 125.4713108
B30: Non-Residential Two Rate 7d - Bulk | D30: 0.0001 | E30: 0.0001 | F30: 0.0001 | G30: 0 | H30: 0 | I30: 0.0001 | J30: 0 | K30: 0 | L30: 0 | M30: 0 | N30: 0 | O30: 0 | P30: 0 | Q30: 0 | R30: 0 | S30: 0 | T30: 0 | U30: 0 | V30: 0 | W30: 0 | X30: 0 | Z30: 447.25 | AA30: 1677577.677 | AB30: 23414677.48 | AC30: 0 | AD30: 0 | AE30: 6829569.278 | AF30: 0 | AG30: 0 | AH30: 0 | AI30: 0 | AJ30: 0 | AK30: 0 | AL30: 0 | AM30: 0 | AN30: 0 | AO30: 0 | AP30: 0 | AQ30: 0 | AR30: 0 | AS30: 0 | AT30: 0 | AW30: 0.044725 | AX30: 1.677577677 | AY30: 23.41467748 | AZ30: 0 | BA30: 0 | BB30: 6.829569278 | BC30: 0 | BD30: 0 | BE30: 0 | BF30: 0 | BG30: 0 | BH30: 0 | BI30: 0 | BJ30: 0 | BK30: 0 | BL30: 0 | BM30: 0 | BN30: 0 | BO30: 0 | BP30: 0 | BQ30: 0 | BR30: 31.96654943
B31: Unmetered Supplies / Public Lighting | D31: 0 | E31: 0.0001 | F31: 0.0001 | G31: 0 | H31: 0 | I31: 1.709 | J31: 0 | K31: 0 | L31: 0 | M31: 0 | N31: 0 | O31: 0 | P31: 0 | Q31: 0 | R31: 0 | S31: 0 | T31: 0 | U31: 0 | V31: 0 | W31: 0 | X31: 0 | Z31: 1146.833333 | AA31: 1576335.839 | AB31: 8438871.683 | AC31: 0 | AD31: 0 | AE31: 24908035.17 | AF31: 0 | AG31: 0 | AH31: 0 | AI31: 0 | AJ31: 0 | AK31: 0 | AL31: 0 | AM31: 0 | AN31: 0 | AO31: 0 | AP31: 0 | AQ31: 0 | AR31: 0 | AS31: 0 | AT31: 0 | AW31: 0 | AX31: 1.576335839 | AY31: 8.438871683 | AZ31: 0 | BA31: 0 | BB31: 425678.321 | BC31: 0 | BD31: 0 | BE31: 0 | BF31: 0 | BG31: 0 | BH31: 0 | BI31: 0 | BJ31: 0 | BK31: 0 | BL31: 0 | BM31: 0 | BN31: 0 | BO31: 0 | BP31: 0 | BQ31: 0 | BR31: 425688.3362
B32: Large Two Rate 7d | D32: 52.095 | E32: 6.8711 | F32: 6.8711 | G32: 0 | H32: 0 | I32: 1.8858 | J32: 0 | K32: 0 | L32: 0 | M32: 0 | N32: 0 | O32: 0 | P32: 0 | Q32: 0 | R32: 0 | S32: 0 | T32: 0 | U32: 0 | V32: 0 | W32: 0 | X32: 0 | Z32: 41.75 | AA32: 170044.3453 | AB32: 14179340.16 | AC32: 0 | AD32: 0 | AE32: 3510649.018 | AF32: 0 | AG32: 0 | AH32: 0 | AI32: 0 | AJ32: 0 | AK32: 0 | AL32: 0 | AM32: 0 | AN32: 0 | AO32: 0 | AP32: 0 | AQ32: 0 | AR32: 0 | AS32: 0 | AT32: 0 | AW32: 2174.96625 | AX32: 11683.91701 | AY32: 974276.6417 | AZ32: 0 | BA32: 0 | BB32: 66203.81919 | BC32: 0 | BD32: 0 | BE32: 0 | BF32: 0 | BG32: 0 | BH32: 0 | BI32: 0 | BJ32: 0 | BK32: 0 | BL32: 0 | BM32: 0 | BN32: 0 | BO32: 0 | BP32: 0 | BQ32: 0 | BR32: 1054339.344
B33: Large Low Voltage Demand | D33: 0 | E33: 0.796 | F33: 0.796 | G33: 0 | H33: 0 | I33: 1.4481 | J33: 0 | K33: 0 | L33: 0 | M33: 0.0001 | N33: 0 | O33: 0 | P33: 0 | Q33: 0 | R33: 0 | S33: 0 | T33: 0 | U33: 0 | V33: 0 | W33: 0 | X33: 0 | Z33: 242.1666667 | AA33: 981933.5151 | AB33: 89364793.97 | AC33: 0 | AD33: 0 | AE33: 69956158.91 | AF33: 0 | AG33: 0 | AH33: 0 | AI33: 59720.20835 | AJ33: 0 | AK33: 0 | AL33: 0 | AM33: 0 | AN33: 0 | AO33: 0 | AP33: 0 | AQ33: 0 | AR33: 0 | AS33: 0 | AT33: 0 | AW33: 0 | AX33: 7816.19078 | AY33: 711343.76 | AZ33: 0 | BA33: 0 | BB33: 1013035.137 | BC33: 0 | BD33: 0 | BE33: 0 | BF33: 5.972020835 | BG33: 0 | BH33: 0 | BI33: 0 | BJ33: 0 | BK33: 0 | BL33: 0 | BM33: 0 | BN33: 0 | BO33: 0 | BP33: 0 | BQ33: 0 | BR33: 1732201.06
B34: Large Low Voltage Demand - Bulk | D34: 0 | E34: 2.6291 | F34: 2.6291 | G34: 0 | H34: 0 | I34: 1.4212 | J34: 0 | K34: 0 | L34: 0 | M34: 17.2207 | N34: 0 | O34: 0 | P34: 0 | Q34: 0 | R34: 0 | S34: 0 | T34: 0 | U34: 0 | V34: 0 | W34: 0 | X34: 0 | Z34: 1291.833333 | AA34: 5235330.067 | AB34: 1000343670 | AC34: 0 | AD34: 0 | AE34: 735773250.4 | AF34: 0 | AG34: 0 | AH34: 0 | AI34: 636736.4812 | AJ34: 0 | AK34: 0 | AL34: 0 | AM34: 0 | AN34: 0 | AO34: 0 | AP34: 0 | AQ34: 0 | AR34: 0 | AS34: 0 | AT34: 0 | AW34: 0 | AX34: 137642.0628 | AY34: 26300035.42 | AZ34: 0 | BA34: 0 | BB34: 10456809.44 | BC34: 0 | BD34: 0 | BE34: 0 | BF34: 10965047.92 | BG34: 0 | BH34: 0 | BI34: 0 | BJ34: 0 | BK34: 0 | BL34: 0 | BM34: 0 | BN34: 0 | BO34: 0 | BP34: 0 | BQ34: 0 | BR34: 47859534.84
B35: Large Low Voltage Demand R | D35: 0 | E35: 1.6342 | F35: 1.6342 | G35: 0 | H35: 0 | I35: 0.5302 | J35: 0 | K35: 0 | L35: 0 | M35: 11.5132 | N35: 0 | O35: 0 | P35: 0 | Q35: 0 | R35: 0 | S35: 0 | T35: 0 | U35: 0 | V35: 0 | W35: 0 | X35: 0 | Z35: 7.25 | AA35: 37462.63157 | AB35: 1730012.765 | AC35: 0 | AD35: 0 | AE35: 2563351.268 | AF35: 0 | AG35: 0 | AH35: 0 | AI35: 2723.286667 | AJ35: 0 | AK35: 0 | AL35: 0 | AM35: 0 | AN35: 0 | AO35: 0 | AP35: 0 | AQ35: 0 | AR35: 0 | AS35: 0 | AT35: 0 | AW35: 0 | AX35: 612.2143251 | AY35: 28271.86861 | AZ35: 0 | BA35: 0 | BB35: 13590.88843 | BC35: 0 | BD35: 0 | BE35: 0 | BF35: 31353.74405 | BG35: 0 | BH35: 0 | BI35: 0 | BJ35: 0 | BK35: 0 | BL35: 0 | BM35: 0 | BN35: 0 | BO35: 0 | BP35: 0 | BQ35: 0 | BR35: 73828.71541
B36: Large Low Voltage Demand G | D36: 0 | E36: 3.002 | F36: 3.002 | G36: 0 | H36: 0 | I36: 0.0007 | J36: 0 | K36: 0 | L36: 0 | M36: 0.0002 | N36: 0 | O36: 0 | P36: 0 | Q36: 0 | R36: 0 | S36: 0 | T36: 0 | U36: 0 | V36: 0 | W36: 0 | X36: 0 | Z36: 2.083333333 | AA36: -8371.605256 | AB36: -2536563.689 | AC36: 0 | AD36: 0 | AE36: -2360785.328 | AF36: 0 | AG36: 0 | AH36: 0 | AI36: -1360.391914 | AJ36: 0 | AK36: 0 | AL36: 0 | AM36: 0 | AN36: 0 | AO36: 0 | AP36: 0 | AQ36: 0 | AR36: 0 | AS36: 0 | AT36: 0 | AW36: 0 | AX36: -251.3155898 | AY36: -76147.64196 | AZ36: 0 | BA36: 0 | BB36: -16.5254973 | BC36: 0 | BD36: 0 | BE36: 0 | BF36: -0.2720783828 | BG36: 0 | BH36: 0 | BI36: 0 | BJ36: 0 | BK36: 0 | BL36: 0 | BM36: 0 | BN36: 0 | BO36: 0 | BP36: 0 | BQ36: 0 | BR36: -76415.75512
B37: Large Low Voltage Demand - Bulk R | D37: 0 | E37: 1.715 | F37: 1.715 | G37: 0 | H37: 0 | I37: 0.5256 | J37: 0 | K37: 0 | L37: 0 | M37: 11.425 | N37: 0 | O37: 0 | P37: 0 | Q37: 0 | R37: 0 | S37: 0 | T37: 0 | U37: 0 | V37: 0 | W37: 0 | X37: 0 | Z37: 127.1666667 | AA37: 612582.6915 | AB37: 56124969.95 | AC37: 0 | AD37: 0 | AE37: 49549953.49 | AF37: 0 | AG37: 0 | AH37: 0 | AI37: 35830.11192 | AJ37: 0 | AK37: 0 | AL37: 0 | AM37: 0 | AN37: 0 | AO37: 0 | AP37: 0 | AQ37: 0 | AR37: 0 | AS37: 0 | AT37: 0 | AW37: 0 | AX37: 10505.79316 | AY37: 962543.2347 | AZ37: 0 | BA37: 0 | BB37: 260434.5555 | BC37: 0 | BD37: 0 | BE37: 0 | BF37: 409359.0286 | BG37: 0 | BH37: 0 | BI37: 0 | BJ37: 0 | BK37: 0 | BL37: 0 | BM37: 0 | BN37: 0 | BO37: 0 | BP37: 0 | BQ37: 0 | BR37: 1642842.612
B38: Large Low Voltage Demand - Bulk G | D38: 0 | E38: 1.506 | F38: 1.506 | G38: 0 | H38: 0 | I38: 0.0002 | J38: 0 | K38: 0 | L38: 0 | M38: 0.0002 | N38: 0 | O38: 0 | P38: 0 | Q38: 0 | R38: 0 | S38: 0 | T38: 0 | U38: 0 | V38: 0 | W38: 0 | X38: 0 | Z38: 79.91666667 | AA38: 270176.0229 | AB38: 68858670.77 | AC38: 0 | AD38: 0 | AE38: 47135924.69 | AF38: 0 | AG38: 0 | AH38: 0 | AI38: 35302.11205 | AJ38: 0 | AK38: 0 | AL38: 0 | AM38: 0 | AN38: 0 | AO38: 0 | AP38: 0 | AQ38: 0 | AR38: 0 | AS38: 0 | AT38: 0 | AW38: 0 | AX38: 4068.850905 | AY38: 1037011.582 | AZ38: 0 | BA38: 0 | BB38: 94.27184938 | BC38: 0 | BD38: 0 | BE38: 0 | BF38: 7.060422409 | BG38: 0 | BH38: 0 | BI38: 0 | BJ38: 0 | BK38: 0 | BL38: 0 | BM38: 0 | BN38: 0 | BO38: 0 | BP38: 0 | BQ38: 0 | BR38: 1041181.765
B39: High Voltage Demand | D39: 0 | E39: 1.9876 | F39: 1.9876 | G39: 0 | H39: 0 | I39: 0.0905 | J39: 0 | K39: 0 | L39: 0 | M39: 32.2549 | N39: 0 | O39: 0 | P39: 0 | Q39: 0 | R39: 0 | S39: 0 | T39: 0 | U39: 0 | V39: 0 | W39: 0 | X39: 0 | Z39: 80.08333333 | AA39: 309473.4153 | AB39: 312105861.3 | AC39: 0 | AD39: 0 | AE39: 289721545 | AF39: 0 | AG39: 0 | AH39: 0 | AI39: 193537.455 | AJ39: 0 | AK39: 0 | AL39: 0 | AM39: 0 | AN39: 0 | AO39: 0 | AP39: 0 | AQ39: 0 | AR39: 0 | AS39: 0 | AT39: 0 | AW39: 0 | AX39: 6151.093603 | AY39: 6203416.099 | AZ39: 0 | BA39: 0 | BB39: 262197.9983 | BC39: 0 | BD39: 0 | BE39: 0 | BF39: 6242531.258 | BG39: 0 | BH39: 0 | BI39: 0 | BJ39: 0 | BK39: 0 | BL39: 0 | BM39: 0 | BN39: 0 | BO39: 0 | BP39: 0 | BQ39: 0 | BR39: 12714296.45
B40: High Voltage Demand D1 | D40: 0 | E40: 1.6645 | F40: 1.6645 | G40: 0 | H40: 0 | I40: 0.8328 | J40: 0 | K40: 0 | L40: 0 | M40: 11.8545 | N40: 0 | O40: 0 | P40: 0 | Q40: 0 | R40: 0 | S40: 0 | T40: 0 | U40: 0 | V40: 0 | W40: 0 | X40: 0 | Z40: 0 | AA40: 0 | AB40: 0 | AC40: 0 | AD40: 0 | AE40: 0 | AF40: 0 | AG40: 0 | AH40: 0 | AI40: 0 | AJ40: 0 | AK40: 0 | AL40: 0 | AM40: 0 | AN40: 0 | AO40: 0 | AP40: 0 | AQ40: 0 | AR40: 0 | AS40: 0 | AT40: 0 | AW40: 0 | AX40: =E40/100*AA40 -> 0 | AY40: =F40/100*AB40 -> 0 | AZ40: =G40/100*AC40 -> 0 | BA40: =H40/100*AD40 -> 0 | BB40: =I40/100*AE40 -> 0 | BC40: =J40/100*AF40 -> 0 | BD40: =K40/100*AG40 -> 0 | BE40: =L40/100*AH40 -> 0 | BF40: 0 | BG40: 0 | BH40: 0 | BI40: 0 | BJ40: 0 | BK40: 0 | BL40: 0 | BM40: 0 | BN40: 0 | BO40: 0 | BP40: 0 | BQ40: 0 | BR40: 0
B41: High Voltage Demand R | D41: 0 | E41: 1.8733 | F41: 1.8733 | G41: 0 | H41: 0 | I41: 0.507 | J41: 0 | K41: 0 | L41: 0 | M41: 9.1131 | N41: 0 | O41: 0 | P41: 0 | Q41: 0 | R41: 0 | S41: 0 | T41: 0 | U41: 0 | V41: 0 | W41: 0 | X41: 0 | Z41: 0.1666666667 | AA41: 0 | AB41: 0 | AC41: 0 | AD41: 0 | AE41: 0 | AF41: 0 | AG41: 0 | AH41: 0 | AI41: 0 | AJ41: 0 | AK41: 0 | AL41: 0 | AM41: 0 | AN41: 0 | AO41: 0 | AP41: 0 | AQ41: 0 | AR41: 0 | AS41: 0 | AT41: 0 | AW41: 0 | AX41: 0 | AY41: 0 | AZ41: 0 | BA41: 0 | BB41: 0 | BC41: 0 | BD41: 0 | BE41: 0 | BF41: 0 | BG41: =N41*AJ41 -> 0 | BH41: =O41*AK41 -> 0 | BI41: =P41*AL41 -> 0 | BJ41: 0 | BK41: 0 | BL41: 0 | BM41: 0 | BN41: 0 | BO41: 0 | BP41: 0 | BQ41: 0 | BR41: 0
B42: High Voltage Demand G | D42: 0 | E42: 2.6001 | F42: 2.6001 | G42: 0 | H42: 0 | I42: 1.0357 | J42: 0 | K42: 0 | L42: 0 | M42: 0.0001 | N42: 0 | O42: 0 | P42: 0 | Q42: 0 | R42: 0 | S42: 0 | T42: 0 | U42: 0 | V42: 0 | W42: 0 | X42: 0 | Z42: 1 | AA42: 4080 | AB42: 5503603.16 | AC42: 0 | AD42: 0 | AE42: 2653616.26 | AF42: 0 | AG42: 0 | AH42: 0 | AI42: 2997.710667 | AJ42: 0 | AK42: 0 | AL42: 0 | AM42: 0 | AN42: 0 | AO42: 0 | AP42: 0 | AQ42: 0 | AR42: 0 | AS42: 0 | AT42: 0 | AW42: 0 | AX42: 106.08408 | AY42: 143099.1858 | AZ42: 0 | BA42: 0 | BB42: 27483.50361 | BC42: 0 | BD42: 0 | BE42: 0 | BF42: 0.2997710667 | BG42: 0 | BH42: 0 | BI42: 0 | BJ42: 0 | BK42: 0 | BL42: 0 | BM42: 0 | BN42: 0 | BO42: 0 | BP42: 0 | BQ42: 0 | BR42: 170689.0732
B43: Subtransmission Demand | D43: 0 | E43: 2.6048 | F43: 2.6048 | G43: 0 | H43: 0 | I43: 0.8685 | J43: 0 | K43: 0 | L43: 0 | M43: 5.9335 | N43: 0 | O43: 0 | P43: 0 | Q43: 0 | R43: 0 | S43: 0 | T43: 0 | U43: 0 | V43: 0 | W43: 0 | X43: 0 | Z43: 7 | AA43: 28560 | AB43: 65635692.63 | AC43: 0 | AD43: 0 | AE43: 36730474.27 | AF43: 0 | AG43: 0 | AH43: 0 | AI43: 71617 | AJ43: 0 | AK43: 0 | AL43: 0 | AM43: 0 | AN43: 0 | AO43: 0 | AP43: 0 | AQ43: 0 | AR43: 0 | AS43: 0 | AT43: 0 | AW43: 0 | AX43: 743.93088 | AY43: 1709678.522 | AZ43: 0 | BA43: 0 | BB43: 319004.169 | BC43: 0 | BD43: 0 | BE43: 0 | BF43: 424939.4695 | BG43: 0 | BH43: 0 | BI43: 0 | BJ43: 0 | BK43: 0 | BL43: 0 | BM43: 0 | BN43: 0 | BO43: 0 | BP43: 0 | BQ43: 0 | BR43: 2454366.091
AW44: 0 | AX44: 0 | AY44: 0 | AZ44: 0 | BA44: 0 | BB44: 0 | BC44: 0 | BD44: 0 | BE44: 0 | BF44: 0 | BG44: 0 | BH44: 0 | BI44: 0 | BJ44: 0 | BK44: 0 | BL44: 0 | BM44: 0 | BN44: 0 | BO44: 0 | BP44: 0 | BQ44: 0 | BR44: 0
AW45: 0 | AX45: 0 | AY45: 0 | AZ45: 0 | BA45: 0 | BB45: 0 | BC45: 0 | BD45: 0 | BE45: 0 | BF45: 0 | BG45: 0 | BH45: 0 | BI45: 0 | BJ45: 0 | BK45: 0 | BL45: 0 | BM45: 0 | BN45: 0 | BO45: 0 | BP45: 0 | BQ45: 0 | BR45: 0
AW46: 0 | AX46: 0 | AY46: 0 | AZ46: 0 | BA46: 0 | BB46: 0 | BC46: 0 | BD46: 0 | BE46: 0 | BF46: 0 | BG46: 0 | BH46: 0 | BI46: 0 | BJ46: 0 | BK46: 0 | BL46: 0 | BM46: 0 | BN46: 0 | BO46: 0 | BP46: 0 | BQ46: 0 | BR46: 0
AW47: 0 | AX47: 0 | AY47: 0 | AZ47: 0 | BA47: 0 | BB47: 0 | BC47: 0 | BD47: 0 | BE47: 0 | BF47: 0 | BG47: 0 | BH47: 0 | BI47: 0 | BJ47: 0 | BK47: 0 | BL47: 0 | BM47: 0 | BN47: 0 | BO47: 0 | BP47: 0 | BQ47: 0 | BR47: 0
AW48: 0 | AX48: 0 | AY48: 0 | AZ48: 0 | BA48: 0 | BB48: 0 | BC48: 0 | BD48: 0 | BE48: 0 | BF48: 0 | BG48: 0 | BH48: 0 | BI48: 0 | BJ48: 0 | BK48: 0 | BL48: 0 | BM48: 0 | BN48: 0 | BO48: 0 | BP48: 0 | BQ48: 0 | BR48: 0
AW49: 0 | AX49: 0 | AY49: 0 | AZ49: 0 | BA49: 0 | BB49: 0 | BC49: 0 | BD49: 0 | BE49: 0 | BF49: 0 | BG49: 0 | BH49: 0 | BI49: 0 | BJ49: 0 | BK49: 0 | BL49: 0 | BM49: 0 | BN49: 0 | BO49: 0 | BP49: 0 | BQ49: 0 | BR49: 0
AW50: 0 | AX50: 0 | AY50: 0 | AZ50: 0 | BA50: 0 | BB50: 0 | BC50: 0 | BD50: 0 | BE50: 0 | BF50: 0 | BG50: 0 | BH50: 0 | BI50: 0 | BJ50: 0 | BK50: 0 | BL50: 0 | BM50: 0 | BN50: 0 | BO50: 0 | BP50: 0 | BQ50: 0 | BR50: 0
AW51: 0 | AX51: 0 | AY51: 0 | AZ51: 0 | BA51: 0 | BB51: 0 | BC51: 0 | BD51: 0 | BE51: 0 | BF51: 0 | BG51: 0 | BH51: 0 | BI51: 0 | BJ51: 0 | BK51: 0 | BL51: 0 | BM51: 0 | BN51: 0 | BO51: 0 | BP51: 0 | BQ51: 0 | BR51: 0
AW52: 0 | AX52: 0 | AY52: 0 | AZ52: 0 | BA52: 0 | BB52: 0 | BC52: 0 | BD52: 0 | BE52: 0 | BF52: 0 | BG52: 0 | BH52: 0 | BI52: 0 | BJ52: 0 | BK52: 0 | BL52: 0 | BM52: 0 | BN52: 0 | BO52: 0 | BP52: 0 | BQ52: 0 | BR52: 0
AW53: 0 | AX53: 0 | AY53: 0 | AZ53: 0 | BA53: 0 | BB53: 0 | BC53: 0 | BD53: 0 | BE53: 0 | BF53: 0 | BG53: 0 | BH53: 0 | BI53: 0 | BJ53: 0 | BK53: 0 | BL53: 0 | BM53: 0 | BN53: 0 | BO53: 0 | BP53: 0 | BQ53: 0 | BR53: 0
AW54: 0 | AX54: 0 | AY54: 0 | AZ54: 0 | BA54: 0 | BB54: 0 | BC54: 0 | BD54: 0 | BE54: 0 | BF54: 0 | BG54: 0 | BH54: 0 | BI54: 0 | BJ54: 0 | BK54: 0 | BL54: 0 | BM54: 0 | BN54: 0 | BO54: 0 | BP54: 0 | BQ54: 0 | BR54: 0
AW55: 0 | AX55: 0 | AY55: 0 | AZ55: 0 | BA55: 0 | BB55: 0 | BC55: 0 | BD55: 0 | BE55: 0 | BF55: 0 | BG55: 0 | BH55: 0 | BI55: 0 | BJ55: 0 | BK55: 0 | BL55: 0 | BM55: 0 | BN55: 0 | BO55: 0 | BP55: 0 | BQ55: 0 | BR55: 0
AW56: 0 | AX56: 0 | AY56: 0 | AZ56: 0 | BA56: 0 | BB56: 0 | BC56: 0 | BD56: 0 | BE56: 0 | BF56: 0 | BG56: 0 | BH56: 0 | BI56: 0 | BJ56: 0 | BK56: 0 | BL56: 0 | BM56: 0 | BN56: 0 | BO56: 0 | BP56: 0 | BQ56: 0 | BR56: 0
AW57: 0 | AX57: 0 | AY57: 0 | AZ57: 0 | BA57: 0 | BB57: 0 | BC57: 0 | BD57: 0 | BE57: 0 | BF57: 0 | BG57: 0 | BH57: 0 | BI57: 0 | BJ57: 0 | BK57: 0 | BL57: 0 | BM57: 0 | BN57: 0 | BO57: 0 | BP57: 0 | BQ57: 0 | BR57: 0
AW58: 0 | AX58: 0 | AY58: 0 | AZ58: 0 | BA58: 0 | BB58: 0 | BC58: 0 | BD58: 0 | BE58: 0 | BF58: 0 | BG58: 0 | BH58: 0 | BI58: 0 | BJ58: 0 | BK58: 0 | BL58: 0 | BM58: 0 | BN58: 0 | BO58: 0 | BP58: 0 | BQ58: 0 | BR58: 0
AW59: 0 | AX59: 0 | AY59: 0 | AZ59: 0 | BA59: 0 | BB59: 0 | BC59: 0 | BD59: 0 | BE59: 0 | BF59: 0 | BG59: 0 | BH59: 0 | BI59: 0 | BJ59: 0 | BK59: 0 | BL59: 0 | BM59: 0 | BN59: 0 | BO59: 0 | BP59: 0 | BQ59: 0 | BR59: 0
AW60: 0 | AX60: 0 | AY60: 0 | AZ60: 0 | BA60: 0 | BB60: 0 | BC60: 0 | BD60: 0 | BE60: 0 | BF60: 0 | BG60: 0 | BH60: 0 | BI60: 0 | BJ60: 0 | BK60: 0 | BL60: 0 | BM60: 0 | BN60: 0 | BO60: 0 | BP60: 0 | BQ60: 0 | BR60: 0
AW61: 0 | AX61: 0 | AY61: 0 | AZ61: 0 | BA61: 0 | BB61: 0 | BC61: 0 | BD61: 0 | BE61: 0 | BF61: 0 | BG61: 0 | BH61: 0 | BI61: 0 | BJ61: 0 | BK61: 0 | BL61: 0 | BM61: 0 | BN61: 0 | BO61: 0 | BP61: 0 | BQ61: 0 | BR61: 0
AW62: 0 | AX62: 0 | AY62: 0 | AZ62: 0 | BA62: 0 | BB62: 0 | BC62: 0 | BD62: 0 | BE62: 0 | BF62: 0 | BG62: 0 | BH62: 0 | BI62: 0 | BJ62: 0 | BK62: 0 | BL62: 0 | BM62: 0 | BN62: 0 | BO62: 0 | BP62: 0 | BQ62: 0 | BR62: 0
AW63: 0 | AX63: 0 | AY63: 0 | AZ63: 0 | BA63: 0 | BB63: 0 | BC63: 0 | BD63: 0 | BE63: 0 | BF63: 0 | BG63: 0 | BH63: 0 | BI63: 0 | BJ63: 0 | BK63: 0 | BL63: 0 | BM63: 0 | BN63: 0 | BO63: 0 | BP63: 0 | BQ63: 0 | BR63: 0
AW64: 0 | AX64: 0 | AY64: 0 | AZ64: 0 | BA64: 0 | BB64: 0 | BC64: 0 | BD64: 0 | BE64: 0 | BF64: 0 | BG64: 0 | BH64: 0 | BI64: 0 | BJ64: 0 | BK64: 0 | BL64: 0 | BM64: 0 | BN64: 0 | BO64: 0 | BP64: 0 | BQ64: 0 | BR64: 0
AW65: 0 | AX65: 0 | AY65: 0 | AZ65: 0 | BA65: 0 | BB65: 0 | BC65: 0 | BD65: 0 | BE65: 0 | BF65: 0 | BG65: 0 | BH65: 0 | BI65: 0 | BJ65: 0 | BK65: 0 | BL65: 0 | BM65: 0 | BN65: 0 | BO65: 0 | BP65: 0 | BQ65: 0 | BR65: 0
AW66: 0 | AX66: 0 | AY66: 0 | AZ66: 0 | BA66: 0 | BB66: 0 | BC66: 0 | BD66: 0 | BE66: 0 | BF66: 0 | BG66: 0 | BH66: 0 | BI66: 0 | BJ66: 0 | BK66: 0 | BL66: 0 | BM66: 0 | BN66: 0 | BO66: 0 | BP66: 0 | BQ66: 0 | BR66: 0
AW67: 0 | AX67: 0 | AY67: 0 | AZ67: 0 | BA67: 0 | BB67: 0 | BC67: 0 | BD67: 0 | BE67: 0 | BF67: 0 | BG67: 0 | BH67: 0 | BI67: 0 | BJ67: 0 | BK67: 0 | BL67: 0 | BM67: 0 | BN67: 0 | BO67: 0 | BP67: 0 | BQ67: 0 | BR67: 0
Z68: =SUM(Z8:Z67) -> 364456.5 | AA68: 895058100.1 | AB68: 3087517006 | AC68: 0 | AD68: 0 | AE68: 1954040693 | AF68: 0 | AG68: 0 | AH68: 0 | AI68: 1037103.974 | AJ68: 0 | AK68: 0 | AL68: 0 | AM68: =SUM(AM8:AM67) -> 1228292.357 | AN68: 915291.3227 | AO68: 1233104.148 | AP68: 0 | AQ68: 1452703.935 | AR68: 1271893.625 | AS68: 1455977.477 | AT68: 0 | AW68: =SUM(AW8:AW67) -> 3569.092183 | AX68: 12894457.81 | AY68: 65865798.23 | AZ68: 0 | BA68: 0 | BB68: 14403200.31 | BC68: 0 | BD68: 0 | BE68: 0 | BF68: 18073244.48 | BG68: 0 | BH68: 0 | BI68: 0 | BJ68: =SUM(BJ8:BJ67) -> 41850.31101 | BK68: 7569.492672 | BL68: 16641.81119 | BM68: 0 | BN68: 43584.92453 | BO68: 7048.948687 | BP68: 15897.5502 | BQ68: 0 | BR68: 111372863
AW71: 0 | AX71: 0 | AY71: 0 | AZ71: 0 | BA71: 0 | BB71: 0 | BC71: 0 | BD71: 0 | BE71: 0 | BF71: 0 | BG71: 0 | BH71: 0 | BI71: 0 | BJ71: 0 | BK71: 0 | BL71: 0 | BM71: 0 | BN71: 0 | BO71: 0 | BP71: 0 | BQ71: 0 | BR71: 0
B72: Definitions
B73: All information must be reported consistent the terms used in the DNSPs pricing proposal

Sheet 27. TUoS cost audit (t-2)
B1: =Cover!E22 -> CitiPower Pty Ltd
B2: TUoS cost audit template (t-2)
B3: =Cover!E26 -> 2015
B5: Templates 24 to 29 collect data required for annual pricing proposals. T-2 requires actual information for the reporting year.
B7: TUOS charges (AEMO) | F7: t-2 actual
B8: AEMO (TUOS Usage) | F8: 18443881.08
B9: AEMO (TUOS General and Common Service) | F9: 54911061.55
B10: Grid equalisation | F10: 1776000.003
E12: Total | F12: =SUM(F8:F11) -> 75130942.63
B14: Transmission connection fees (SPI Powernet) | F14: t-2 actual
B15: Ausnet Services (Connection) | F15: 7805742.39
B16: Ausnet Services (Augmentation) | F16: 3639207.39
E19: Total | F19: =SUM(F15:F18) -> 11444949.78
B21: Cross boundary network charges (internetwork charges) | F21: t-2 actual
B22: Distribution Business | C22: Amount (payable)/receivable
C23: HV crossings | D23: Sub-transmission crossings | E23: TUoS Adjustment | F23: Total
B24: Jemena | C24: -3470409.09 | F24: =SUM(C24:E24) -> -3470409.09
B25: UE | D25: 0 | F25: 0
F26: =SUM(C26:E26) -> 0
F27: =SUM(C27:E27) -> 0
F28: =SUM(C28:E28) -> 0
B29: Total | F29: =SUM(F24:F28) -> -3470409.09
B31: Payments to embedded generators | F31: t-2 actual
B32: Avoided transmission costs
B34: Avoided TUoS costs | F34: 0
B38: Total | F38: =SUM(F33:F37) -> 0
B40: Avoided TUoS usage charges
B46: Total | F46: =SUM(F41:F45) -> 0
B47: Total payments to embedded generators | F47: =F46+F38 -> 0
B49: Where the following definitions apply
B50: HV Crossings | C50: Payments/Receipts for energy transferred utilising the distributor’s HV and LV line assets.
B51: Sub-transmission Crossings | C51: Payments/Receipts for the Sub-transmission assets in shared loops that support each distributor’s Zone Substation capacity to ensure N-1 reliability is maintained.
B52: TuoS Adjustment | C52: Payments/Receipts for the adjustment of TuoS paid by a distributor for energy delivered to another distribution business through a shared loop.

Sheet 28. Actual t-2 Juris Revenue
B1: =Cover!E22 -> CitiPower Pty Ltd
B2: Tariff Quantity Data Template (Actual t-2) Jurisdictional Scheme Tariff Revenue
B3: =Cover!E26 -> 2015
B5: Templates 24 to 29 collect data required for annual pricing proposals. T-2 requires actual information for the reporting year.
D6: Jurisdictional Scheme Tariffs (Pt-2) | Z6: Actual Quantities (Qt-2) | AW6: Actual Revenue (P-2)*(Qt-2)
B7: Tariff (t-2) | D7: (t-2)Tar Fixed | E7: (t-2)Tar PkBlk1 | F7: (t-2)Tar PkBlk2 | G7: (t-2)Tar PkBlk3 | H7: (t-2)Tar PkBlk4 | I7: (t-2)Tar OPkBlk1 | J7: (t-2)Tar OPkBlk2 | K7: (t-2)Tar OPkBlk3 | L7: (t-2)Tar OPkBlk4 | M7: (t-2)Tar DemBlk1 | N7: (t-2)Tar DemBlk2 | O7: (t-2)Tar DemBlk3 | P7: (t-2)Tar DemBlk4 | Q7: ActRev SumBlk1 | R7: ActRev SumBlk2 | S7: ActRev SumBlk3 | T7: ActRev SumBlk4 | U7: ActRev WtrBlk1 | V7: ActRev WtrBlk2 | W7: ActRev WtrBlk3 | X7: ActRev WtrBlk4 | Z7: ActVol Fixed | AA7: ActVol PkBlk1 | AB7: ActVol PkBlk2 | AC7: ActVol PkBlk3 | AD7: ActVol PkBlk4 | AE7: ActVol OPkBlk1 | AF7: ActVol OPkBlk2 | AG7: ActVol OPkBlk3 | AH7: ActVol OPkBlk4 | AI7: ActVol DemBlk1 | AJ7: ActVol DemBlk2 | AK7: ActVol DemBlk3 | AL7: ActVol DemBlk4 | AM7: ActRev SumBlk1 | AN7: ActRev SumBlk2 | AO7: ActRev SumBlk3 | AP7: ActRev SumBlk4 | AQ7: ActRev WtrBlk1 | AR7: ActRev WtrBlk2 | AS7: ActRev WtrBlk3 | AT7: ActRev WtrBlk4 | AW7: ActRev Fixed | AX7: ActRev PkBlk1 | AY7: ActRev PkBlk2 | AZ7: ActRev PkBlk3 | BA7: ActRev PkBlk4 | BB7: ActRev OPkBlk1 | BC7: ActRev OPkBlk2 | BD7: ActRev OPkBlk3 | BE7: ActRev OPkBlk4 | BF7: ActRev DemBlk1 | BG7: ActRev DemBlk2 | BH7: ActRev DemBlk3 | BI7: ActRev DemBlk4 | BJ7: ActRev SumBlk1 | BK7: ActRev SumBlk2 | BL7: ActRev SumBlk3 | BM7: ActRev SumBlk4 | BN7: ActRev WtrBlk1 | BO7: ActRev WtrBlk2 | BP7: ActRev WtrBlk3 | BQ7: ActRev WtrBlk4 | BR7: ActRev Total
AW8: =D8*Z8 -> 0 | AX8: =E8/100*AA8 -> 0 | AY8: =F8/100*AB8 -> 0 | AZ8: =G8/100*AC8 -> 0 | BA8: =H8/100*AD8 -> 0 | BB8: =I8/100*AE8 -> 0 | BC8: =J8/100*AF8 -> 0 | BD8: =K8/100*AG8 -> 0 | BE8: =L8/100*AH8 -> 0 | BF8: =M8*AI8 -> 0 | BG8: =N8*AJ8 -> 0 | BH8: =O8*AK8 -> 0 | BI8: =P8*AL8 -> 0 | BJ8: =Q8/100*AM8 -> 0 | BK8: =R8/100*AN8 -> 0 | BL8: =S8/100*AO8 -> 0 | BM8: =T8/100*AP8 -> 0 | BN8: =U8/100*AQ8 -> 0 | BO8: =V8/100*AR8 -> 0 | BP8: =W8/100*AS8 -> 0 | BQ8: =X8/100*AT8 -> 0 | BR8: =SUM(AW8:BQ8) -> 0
B9: Residential Single Rate | D9: 0 | E9: 0.6557 | F9: 0.0001 | G9: 0 | H9: 0 | I9: 0 | J9: 0 | K9: 0 | L9: 0 | M9: 0 | N9: 0 | O9: 0 | P9: 0 | Q9: 0 | R9: 0 | S9: 0 | T9: 0 | U9: 0 | V9: 0 | W9: 0 | X9: 0 | Z9: 198643.75 | AA9: 555364942 | AB9: 274827929.8 | AC9: 0 | AD9: 0 | AE9: 0 | AF9: 0 | AG9: 0 | AH9: 0 | AI9: 0 | AJ9: 0 | AK9: 0 | AL9: 0 | AM9: 0 | AN9: 0 | AO9: 0 | AP9: 0 | AQ9: 0 | AR9: 0 | AS9: 0 | AT9: 0 | AW9: =D9*Z9 -> 0 | AX9: 3641527.925 | AY9: 274.8279298 | AZ9: 0 | BA9: 0 | BB9: 0 | BC9: 0 | BD9: 0 | BE9: 0 | BF9: =M9*AI9 -> 0 | BG9: =N9*AJ9 -> 0 | BH9: =O9*AK9 -> 0 | BI9: =P9*AL9 -> 0 | BJ9: =Q9/100*AM9 -> 0 | BK9: 0 | BL9: 0 | BM9: 0 | BN9: 0 | BO9: 0 | BP9: 0 | BQ9: 0 | BR9: =SUM(AW9:BQ9) -> 3641802.753
B10: Residential Single Rate - Bulk | D10: 0 | E10: 0.0001 | F10: 0.0001 | G10: 0 | H10: 0 | I10: 0 | J10: 0 | K10: 0 | L10: 0 | M10: 0 | N10: 0 | O10: 0 | P10: 0 | Q10: 0 | R10: 0 | S10: 0 | T10: 0 | U10: 0 | V10: 0 | W10: 0 | X10: 0 | Z10: 30651.91667 | AA10: 78012277.23 | AB10: 27161863.93 | AC10: 0 | AD10: 0 | AE10: 0 | AF10: 0 | AG10: 0 | AH10: 0 | AI10: 0 | AJ10: 0 | AK10: 0 | AL10: 0 | AM10: 0 | AN10: 0 | AO10: 0 | AP10: 0 | AQ10: 0 | AR10: 0 | AS10: 0 | AT10: 0 | AW10: 0 | AX10: 78.01227723 | AY10: 27.16186393 | AZ10: 0 | BA10: 0 | BB10: 0 | BC10: 0 | BD10: 0 | BE10: 0 | BF10: 0 | BG10: 0 | BH10: 0 | BI10: 0 | BJ10: 0 | BK10: 0 | BL10: 0 | BM10: 0 | BN10: 0 | BO10: 0 | BP10: 0 | BQ10: 0 | BR10: 105.1741412
B11: Residential - flexible pricing | D11: 0 | E11: 0 | F11: 0 | G11: 0 | H11: 0 | I11: 0 | J11: 0 | K11: 0 | L11: 0 | M11: 0 | N11: 0 | O11: 0 | P11: 0 | Q11: 0.0001 | R11: 0.0001 | S11: 0.0001 | T11: 0 | U11: 0.0001 | V11: 0.0001 | W11: 0.0001 | X11: 0 | Z11: 625.75 | AA11: 0 | AB11: 0 | AC11: 0 | AD11: 0 | AE11: 132.789871 | AF11: 0 | AG11: 0 | AH11: 0 | AI11: 0 | AJ11: 0 | AK11: 0 | AL11: 0 | AM11: 283627.6805 | AN11: 618987.3646 | AO11: 424744.5757 | AP11: 0 | AQ11: 476066.7547 | AR11: 961728.1596 | AS11: 668934.713 | AT11: 0 | AW11: 0 | AX11: 0 | AY11: 0 | AZ11: 0 | BA11: 0 | BB11: 0 | BC11: 0 | BD11: 0 | BE11: 0 | BF11: 0 | BG11: 0 | BH11: 0 | BI11: 0 | BJ11: 0.2836276805 | BK11: 0.6189873646 | BL11: 0.4247445757 | BM11: 0 | BN11: 0.4760667547 | BO11: 0.9617281596 | BP11: 0.668934713 | BQ11: 0 | BR11: 3.434089248
B12: Residential - flexible pricing bulk | D12: 0 | E12: 0 | F12: 0 | G12: 0 | H12: 0 | I12: 0 | J12: 0 | K12: 0 | L12: 0 | M12: 0 | N12: 0 | O12: 0 | P12: 0 | Q12: 0.0001 | R12: 0.0001 | S12: 0.0001 | T12: 0 | U12: 0.0001 | V12: 0.0001 | W12: 0.0001 | X12: 0 | Z12: 85 | AA12: 0 | AB12: 0 | AC12: 0 | AD12: 0 | AE12: 0 | AF12: 0 | AG12: 0 | AH12: 0 | AI12: 0 | AJ12: 0 | AK12: 0 | AL12: 0 | AM12: 24571.02123 | AN12: 60425.92773 | AO12: 39401.55041 | AP12: 0 | AQ12: 38567.7171 | AR12: 87284.98452 | AS12: 58163.12284 | AT12: 0 | AW12: 0 | AX12: 0 | AY12: 0 | AZ12: 0 | BA12: 0 | BB12: 0 | BC12: 0 | BD12: 0 | BE12: 0 | BF12: 0 | BG12: 0 | BH12: 0 | BI12: 0 | BJ12: 0.02457102123 | BK12: 0.06042592773 | BL12: 0.03940155041 | BM12: 0 | BN12: 0.0385677171 | BO12: 0.08728498452 | BP12: 0.05816312284 | BQ12: 0 | BR12: 0.3084143238
B13: Residential Two Rate 5d | D13: 0 | E13: 0.0001 | F13: 0.0001 | G13: 0 | H13: 0 | I13: 0.0001 | J13: 0 | K13: 0 | L13: 0 | M13: 0 | N13: 0 | O13: 0 | P13: 0 | Q13: 0 | R13: 0 | S13: 0 | T13: 0 | U13: 0 | V13: 0 | W13: 0 | X13: 0 | Z13: 11068.58333 | AA13: 24290178.82 | AB13: 13019369.91 | AC13: 0 | AD13: 0 | AE13: 32412476.83 | AF13: 0 | AG13: 0 | AH13: 0 | AI13: 0 | AJ13: 0 | AK13: 0 | AL13: 0 | AM13: 0 | AN13: 0 | AO13: 0 | AP13: 0 | AQ13: 0 | AR13: 0 | AS13: 0 | AT13: 0 | AW13: 0 | AX13: 24.29017882 | AY13: 13.01936991 | AZ13: 0 | BA13: 0 | BB13: 32.41247683 | BC13: 0 | BD13: 0 | BE13: 0 | BF13: 0 | BG13: 0 | BH13: 0 | BI13: 0 | BJ13: 0 | BK13: 0 | BL13: 0 | BM13: 0 | BN13: 0 | BO13: 0 | BP13: 0 | BQ13: 0 | BR13: 69.72202556
B14: Residential Two Rate 5d - Bulk | D14: 0 | E14: 0.0001 | F14: 0.0001 | G14: 0 | H14: 0 | I14: 0.0001 | J14: 0 | K14: 0 | L14: 0 | M14: 0 | N14: 0 | O14: 0 | P14: 0 | Q14: 0 | R14: 0 | S14: 0 | T14: 0 | U14: 0 | V14: 0 | W14: 0 | X14: 0 | Z14: 4382.916667 | AA14: 8459189.757 | AB14: 4249647.846 | AC14: 0 | AD14: 0 | AE14: 10886420.22 | AF14: 0 | AG14: 0 | AH14: 0 | AI14: 0 | AJ14: 0 | AK14: 0 | AL14: 0 | AM14: 0 | AN14: 0 | AO14: 0 | AP14: 0 | AQ14: 0 | AR14: 0 | AS14: 0 | AT14: 0 | AW14: 0 | AX14: 8.459189757 | AY14: 4.249647846 | AZ14: 0 | BA14: 0 | BB14: 10.88642022 | BC14: 0 | BD14: 0 | BE14: 0 | BF14: 0 | BG14: 0 | BH14: 0 | BI14: 0 | BJ14: 0 | BK14: 0 | BL14: 0 | BM14: 0 | BN14: 0 | BO14: 0 | BP14: 0 | BQ14: 0 | BR14: 23.59525782
B15: Residential Interval | D15: 0 | E15: 0.0001 | F15: 0.0001 | G15: 0 | H15: 0 | I15: 0.0001 | J15: 0 | K15: 0 | L15: 0 | M15: 0 | N15: 0 | O15: 0 | P15: 0 | Q15: 0 | R15: 0 | S15: 0 | T15: 0 | U15: 0 | V15: 0 | W15: 0 | X15: 0 | Z15: 17380.5 | AA15: 40849562.59 | AB15: 21895274.86 | AC15: 0 | AD15: 0 | AE15: 54646075.27 | AF15: 0 | AG15: 0 | AH15: 0 | AI15: 0 | AJ15: 0 | AK15: 0 | AL15: 0 | AM15: 0 | AN15: 0 | AO15: 0 | AP15: 0 | AQ15: 0 | AR15: 0 | AS15: 0 | AT15: 0 | AW15: 0 | AX15: 40.84956259 | AY15: 21.89527486 | AZ15: 0 | BA15: 0 | BB15: 54.64607527 | BC15: 0 | BD15: 0 | BE15: 0 | BF15: 0 | BG15: 0 | BH15: 0 | BI15: 0 | BJ15: 0 | BK15: 0 | BL15: 0 | BM15: 0 | BN15: 0 | BO15: 0 | BP15: 0 | BQ15: 0 | BR15: 117.3909127
B16: Residential Interval - Bulk | D16: 0 | E16: 0.0001 | F16: 0.0001 | G16: 0 | H16: 0 | I16: 0.0001 | J16: 0 | K16: 0 | L16: 0 | M16: 0 | N16: 0 | O16: 0 | P16: 0 | Q16: 0 | R16: 0 | S16: 0 | T16: 0 | U16: 0 | V16: 0 | W16: 0 | X16: 0 | Z16: 9012.25 | AA16: 13442952.73 | AB16: 2219000.817 | AC16: 0 | AD16: 0 | AE16: 14647615.31 | AF16: 0 | AG16: 0 | AH16: 0 | AI16: 0 | AJ16: 0 | AK16: 0 | AL16: 0 | AM16: 0 | AN16: 0 | AO16: 0 | AP16: 0 | AQ16: 0 | AR16: 0 | AS16: 0 | AT16: 0 | AW16: 0 | AX16: 13.44295273 | AY16: 2.219000817 | AZ16: 0 | BA16: 0 | BB16: 14.64761531 | BC16: 0 | BD16: 0 | BE16: 0 | BF16: 0 | BG16: 0 | BH16: 0 | BI16: 0 | BJ16: 0 | BK16: 0 | BL16: 0 | BM16: 0 | BN16: 0 | BO16: 0 | BP16: 0 | BQ16: 0 | BR16: 30.30956886
B17: Residential Two Rate 5d - Controlled Load | D17: 0 | E17: 0 | F17: 0 | G17: 0 | H17: 0 | I17: 0.0001 | J17: 0 | K17: 0 | L17: 0 | M17: 0 | N17: 0 | O17: 0 | P17: 0 | Q17: 0 | R17: 0 | S17: 0 | T17: 0 | U17: 0 | V17: 0 | W17: 0 | X17: 0 | Z17: 9590.583333 | AA17: 0 | AB17: 0 | AC17: 0 | AD17: 0 | AE17: 20039463.58 | AF17: 0 | AG17: 0 | AH17: 0 | AI17: 0 | AJ17: 0 | AK17: 0 | AL17: 0 | AM17: 0 | AN17: 0 | AO17: 0 | AP17: 0 | AQ17: 0 | AR17: 0 | AS17: -1805.636 | AT17: 0 | AW17: 0 | AX17: 0 | AY17: 0 | AZ17: 0 | BA17: 0 | BB17: 20.03946358 | BC17: 0 | BD17: 0 | BE17: 0 | BF17: 0 | BG17: 0 | BH17: 0 | BI17: 0 | BJ17: 0 | BK17: 0 | BL17: 0 | BM17: 0 | BN17: 0 | BO17: 0 | BP17: 0 | BQ17: 0 | BR17: 20.03946358
B18: Residential Two Rate 5d - Bulk - Controlled Load | D18: 0 | E18: 0 | F18: 0 | G18: 0 | H18: 0 | I18: 0.0001 | J18: 0 | K18: 0 | L18: 0 | M18: 0 | N18: 0 | O18: 0 | P18: 0 | Q18: 0 | R18: 0 | S18: 0 | T18: 0 | U18: 0 | V18: 0 | W18: 0 | X18: 0 | Z18: 3682.166667 | AA18: 0 | AB18: 0 | AC18: 0 | AD18: 0 | AE18: 7359912.331 | AF18: 0 | AG18: 0 | AH18: 0 | AI18: 0 | AJ18: 0 | AK18: 0 | AL18: 0 | AM18: 0 | AN18: 0 | AO18: 0 | AP18: 0 | AQ18: 0 | AR18: 0 | AS18: -499.677 | AT18: 0 | AW18: 0 | AX18: 0 | AY18: 0 | AZ18: 0 | BA18: 0 | BB18: 7.359912331 | BC18: 0 | BD18: 0 | BE18: 0 | BF18: 0 | BG18: 0 | BH18: 0 | BI18: 0 | BJ18: 0 | BK18: 0 | BL18: 0 | BM18: 0 | BN18: 0 | BO18: 0 | BP18: 0 | BQ18: 0 | BR18: 7.359912331
B19: Dedicated Circuit | D19: 0 | E19: 0 | F19: 0 | G19: 0 | H19: 0 | I19: 0.5521 | J19: 0 | K19: 0 | L19: 0 | M19: 0 | N19: 0 | O19: 0 | P19: 0 | Q19: 0 | R19: 0 | S19: 0 | T19: 0 | U19: 0 | V19: 0 | W19: 0 | X19: 0 | Z19: 24190.5 | AA19: 0 | AB19: 0 | AC19: 0 | AD19: 0 | AE19: 39326842.37 | AF19: 0 | AG19: 0 | AH19: 0 | AI19: 0 | AJ19: 0 | AK19: 0 | AL19: 0 | AM19: 0 | AN19: 0 | AO19: 0 | AP19: 0 | AQ19: 0 | AR19: 0 | AS19: -3371.396 | AT19: 0 | AW19: 0 | AX19: 0 | AY19: 0 | AZ19: 0 | BA19: 0 | BB19: 217123.4967 | BC19: 0 | BD19: 0 | BE19: 0 | BF19: 0 | BG19: 0 | BH19: 0 | BI19: 0 | BJ19: 0 | BK19: 0 | BL19: 0 | BM19: 0 | BN19: 0 | BO19: 0 | BP19: 0 | BQ19: 0 | BR19: 217123.4967
B20: Dedicated Circuit - Bulk | D20: 0 | E20: 0 | F20: 0 | G20: 0 | H20: 0 | I20: 0.0001 | J20: 0 | K20: 0 | L20: 0 | M20: 0 | N20: 0 | O20: 0 | P20: 0 | Q20: 0 | R20: 0 | S20: 0 | T20: 0 | U20: 0 | V20: 0 | W20: 0 | X20: 0 | Z20: 1167.666667 | AA20: 0 | AB20: 0 | AC20: 0 | AD20: 0 | AE20: 2601721.167 | AF20: 0 | AG20: 0 | AH20: 0 | AI20: 0 | AJ20: 0 | AK20: 0 | AL20: 0 | AM20: 0 | AN20: 0 | AO20: 0 | AP20: 0 | AQ20: 0 | AR20: 0 | AS20: -55.5782 | AT20: 0 | AW20: 0 | AX20: 0 | AY20: 0 | AZ20: 0 | BA20: 0 | BB20: 2.601721167 | BC20: 0 | BD20: 0 | BE20: 0 | BF20: 0 | BG20: 0 | BH20: 0 | BI20: 0 | BJ20: 0 | BK20: 0 | BL20: 0 | BM20: 0 | BN20: 0 | BO20: 0 | BP20: 0 | BQ20: 0 | BR20: 2.601721167
B21: Non-Residential Single Rate | D21: 0 | E21: 0.0001 | F21: 0.0001 | G21: 0 | H21: 0 | I21: 0 | J21: 0 | K21: 0 | L21: 0 | M21: 0 | N21: 0 | O21: 0 | P21: 0 | Q21: 0 | R21: 0 | S21: 0 | T21: 0 | U21: 0 | V21: 0 | W21: 0 | X21: 0 | Z21: 19695.25 | AA21: 62979582.61 | AB21: 260104343.6 | AC21: 0 | AD21: 0 | AE21: 1583.494249 | AF21: 0 | AG21: 0 | AH21: 0 | AI21: 0 | AJ21: 0 | AK21: 0 | AL21: 0 | AM21: 0 | AN21: 0 | AO21: 0 | AP21: 0 | AQ21: 0 | AR21: 0 | AS21: 0 | AT21: 0 | AW21: 0 | AX21: 62.97958261 | AY21: 260.1043436 | AZ21: 0 | BA21: 0 | BB21: 0 | BC21: 0 | BD21: 0 | BE21: 0 | BF21: 0 | BG21: 0 | BH21: 0 | BI21: 0 | BJ21: 0 | BK21: 0 | BL21: 0 | BM21: 0 | BN21: 0 | BO21: 0 | BP21: 0 | BQ21: 0 | BR21: 323.0839262
B22: Non-Residential Single Rate - Bulk | D22: 0 | E22: 0.0001 | F22: 0.0001 | G22: 0 | H22: 0 | I22: 0 | J22: 0 | K22: 0 | L22: 0 | M22: 0 | N22: 0 | O22: 0 | P22: 0 | Q22: 0 | R22: 0 | S22: 0 | T22: 0 | U22: 0 | V22: 0 | W22: 0 | X22: 0 | Z22: 5873.5 | AA22: 18904571.96 | AB22: 110368834.3 | AC22: 0 | AD22: 0 | AE22: 3700.931513 | AF22: 0 | AG22: 0 | AH22: 0 | AI22: 0 | AJ22: 0 | AK22: 0 | AL22: 0 | AM22: 0 | AN22: 0 | AO22: 0 | AP22: 0 | AQ22: 0 | AR22: 0 | AS22: 0 | AT22: 0 | AW22: 0 | AX22: 18.90457196 | AY22: 110.3688343 | AZ22: 0 | BA22: 0 | BB22: 0 | BC22: 0 | BD22: 0 | BE22: 0 | BF22: 0 | BG22: 0 | BH22: 0 | BI22: 0 | BJ22: 0 | BK22: 0 | BL22: 0 | BM22: 0 | BN22: 0 | BO22: 0 | BP22: 0 | BQ22: 0 | BR22: 129.2734063
B23: Non-Residential Two Rate 5d | D23: 0 | E23: 0.0001 | F23: 0.0001 | G23: 0 | H23: 0 | I23: 0.0001 | J23: 0 | K23: 0 | L23: 0 | M23: 0 | N23: 0 | O23: 0 | P23: 0 | Q23: 0 | R23: 0 | S23: 0 | T23: 0 | U23: 0 | V23: 0 | W23: 0 | X23: 0 | Z23: 11612.58333 | AA23: 35309917.45 | AB23: 278153650.5 | AC23: 0 | AD23: 0 | AE23: 222313618.3 | AF23: 0 | AG23: 0 | AH23: 0 | AI23: 0 | AJ23: 0 | AK23: 0 | AL23: 0 | AM23: 0 | AN23: 0 | AO23: 0 | AP23: 0 | AQ23: 0 | AR23: 0 | AS23: 0 | AT23: 0 | AW23: 0 | AX23: 35.30991745 | AY23: 278.1536505 | AZ23: 0 | BA23: 0 | BB23: 222.3136183 | BC23: 0 | BD23: 0 | BE23: 0 | BF23: 0 | BG23: 0 | BH23: 0 | BI23: 0 | BJ23: 0 | BK23: 0 | BL23: 0 | BM23: 0 | BN23: 0 | BO23: 0 | BP23: 0 | BQ23: 0 | BR23: 535.7771863
B24: Non-Residential Two Rate 5d - Bulk | D24: 0 | E24: 0.0001 | F24: 0.0001 | G24: 0 | H24: 0 | I24: 0.0001 | J24: 0 | K24: 0 | L24: 0 | M24: 0 | N24: 0 | O24: 0 | P24: 0 | Q24: 0 | R24: 0 | S24: 0 | T24: 0 | U24: 0 | V24: 0 | W24: 0 | X24: 0 | Z24: 1950.916667 | AA24: 7168695.236 | AB24: 92776486.8 | AC24: 0 | AD24: 0 | AE24: 65978262.38 | AF24: 0 | AG24: 0 | AH24: 0 | AI24: 0 | AJ24: 0 | AK24: 0 | AL24: 0 | AM24: 0 | AN24: 0 | AO24: 0 | AP24: 0 | AQ24: 0 | AR24: 0 | AS24: 0 | AT24: 0 | AW24: 0 | AX24: 7.168695236 | AY24: 92.7764868 | AZ24: 0 | BA24: 0 | BB24: 65.97826238 | BC24: 0 | BD24: 0 | BE24: 0 | BF24: 0 | BG24: 0 | BH24: 0 | BI24: 0 | BJ24: 0 | BK24: 0 | BL24: 0 | BM24: 0 | BN24: 0 | BO24: 0 | BP24: 0 | BQ24: 0 | BR24: 165.9234444
B25: Non-Residential Interval | D25: 0 | E25: 0.0001 | F25: 0.0001 | G25: 0 | H25: 0 | I25: 0.0001 | J25: 0 | K25: 0 | L25: 0 | M25: 0 | N25: 0 | O25: 0 | P25: 0 | Q25: 0 | R25: 0 | S25: 0 | T25: 0 | U25: 0 | V25: 0 | W25: 0 | X25: 0 | Z25: 5092.75 | AA25: 16903514.17 | AB25: 102232177.2 | AC25: 0 | AD25: 0 | AE25: 76114184.6 | AF25: 0 | AG25: 0 | AH25: 0 | AI25: 0 | AJ25: 0 | AK25: 0 | AL25: 0 | AM25: 0 | AN25: 0 | AO25: 0 | AP25: 0 | AQ25: 0 | AR25: 0 | AS25: 0 | AT25: 0 | AW25: 0 | AX25: 16.90351417 | AY25: 102.2321772 | AZ25: 0 | BA25: 0 | BB25: 76.1141846 | BC25: 0 | BD25: 0 | BE25: 0 | BF25: 0 | BG25: 0 | BH25: 0 | BI25: 0 | BJ25: 0 | BK25: 0 | BL25: 0 | BM25: 0 | BN25: 0 | BO25: 0 | BP25: 0 | BQ25: 0 | BR25: 195.2498759
B26: Non-Residential Interval - Bulk | D26: 0 | E26: 0.0001 | F26: 0.0001 | G26: 0 | H26: 0 | I26: 0.0001 | J26: 0 | K26: 0 | L26: 0 | M26: 0 | N26: 0 | O26: 0 | P26: 0 | Q26: 0 | R26: 0 | S26: 0 | T26: 0 | U26: 0 | V26: 0 | W26: 0 | X26: 0 | Z26: 3112.166667 | AA26: 11314281.09 | AB26: 168916131.3 | AC26: 0 | AD26: 0 | AE26: 115478858.6 | AF26: 0 | AG26: 0 | AH26: 0 | AI26: 0 | AJ26: 0 | AK26: 0 | AL26: 0 | AM26: 0 | AN26: 0 | AO26: 0 | AP26: 0 | AQ26: 0 | AR26: 0 | AS26: 0 | AT26: 0 | AW26: 0 | AX26: 11.31428109 | AY26: 168.9161313 | AZ26: 0 | BA26: 0 | BB26: 115.4788586 | BC26: 0 | BD26: 0 | BE26: 0 | BF26: 0 | BG26: 0 | BH26: 0 | BI26: 0 | BJ26: 0 | BK26: 0 | BL26: 0 | BM26: 0 | BN26: 0 | BO26: 0 | BP26: 0 | BQ26: 0 | BR26: 295.709271
B27: Non-Residential | D27: 0 | E27: 0 | F27: 0 | G27: 0 | H27: 0 | I27: 0 | J27: 0 | K27: 0 | L27: 0 | M27: 0 | N27: 0 | O27: 0 | P27: 0 | Q27: 8.3713 | R27: 7.8781 | S27: 0.0001 | T27: 0 | U27: 8.3713 | V27: 7.8781 | W27: 0.0001 | X27: 0 | Z27: 34.83333333 | AA27: 0 | AB27: 0 | AC27: 0 | AD27: 0 | AE27: 0 | AF27: 0 | AG27: 0 | AH27: 0 | AI27: 0 | AJ27: 0 | AK27: 0 | AL27: 0 | AM27: 414071.035 | AN27: 130871.1991 | AO27: 380028.9461 | AP27: 0 | AQ27: 411075.2931 | AR27: 125100.6512 | AS27: 362350.7348 | AT27: 0 | AW27: 0 | AX27: 0 | AY27: 0 | AZ27: 0 | BA27: 0 | BB27: 0 | BC27: 0 | BD27: 0 | BE27: 0 | BF27: 0 | BG27: 0 | BH27: 0 | BI27: 0 | BJ27: 34663.12855 | BK27: 10310.16393 | BL27: 0.3800289461 | BM27: 0 | BN27: 34412.34601 | BO27: 9855.554399 | BP27: 0.3623507348 | BQ27: 0 | BR27: 89241.93528
B28: Non-Residential - Bulk | D28: 0 | E28: 0 | F28: 0 | G28: 0 | H28: 0 | I28: 0 | J28: 0 | K28: 0 | L28: 0 | M28: 0 | N28: 0 | O28: 0 | P28: 0 | Q28: 0.0001 | R28: 0.0001 | S28: 0.0001 | T28: 0 | U28: 0.0001 | V28: 0.0001 | W28: 0.0001 | X28: 0 | Z28: 22 | AA28: 0 | AB28: 0 | AC28: 0 | AD28: 0 | AE28: 0 | AF28: 0 | AG28: 0 | AH28: 0 | AI28: 0 | AJ28: 0 | AK28: 0 | AL28: 0 | AM28: 506022.62 | AN28: 105006.8313 | AO28: 388929.0758 | AP28: 0 | AQ28: 526994.1697 | AR28: 97779.82981 | AS28: 372261.1932 | AT28: 0 | AW28: 0 | AX28: 0 | AY28: 0 | AZ28: 0 | BA28: 0 | BB28: 0 | BC28: 0 | BD28: 0 | BE28: 0 | BF28: 0 | BG28: 0 | BH28: 0 | BI28: 0 | BJ28: 0.50602262 | BK28: 0.1050068313 | BL28: 0.3889290758 | BM28: 0 | BN28: 0.5269941697 | BO28: 0.09777982981 | BP28: 0.3722611932 | BQ28: 0 | BR28: 1.99699372
B29: Non-Residential Two Rate 7d | D29: 0 | E29: 0.0001 | F29: 0.0001 | G29: 0 | H29: 0 | I29: 0.0001 | J29: 0 | K29: 0 | L29: 0 | M29: 0 | N29: 0 | O29: 0 | P29: 0 | Q29: 0 | R29: 0 | S29: 0 | T29: 0 | U29: 0 | V29: 0 | W29: 0 | X29: 0 | Z29: 3106.416667 | AA29: 11163249.89 | AB29: 88428695.13 | AC29: 0 | AD29: 0 | AE29: 25258082.47 | AF29: 0 | AG29: 0 | AH29: 0 | AI29: 0 | AJ29: 0 | AK29: 0 | AL29: 0 | AM29: 0 | AN29: 0 | AO29: 0 | AP29: 0 | AQ29: 0 | AR29: 0 | AS29: 0 | AT29: 0 | AW29: 0 | AX29: 11.16324989 | AY29: 88.42869513 | AZ29: 0 | BA29: 0 | BB29: 25.25808247 | BC29: 0 | BD29: 0 | BE29: 0 | BF29: 0 | BG29: 0 | BH29: 0 | BI29: 0 | BJ29: 0 | BK29: 0 | BL29: 0 | BM29: 0 | BN29: 0 | BO29: 0 | BP29: 0 | BQ29: 0 | BR29: 124.8500275
B30: Non-Residential Two Rate 7d - Bulk | D30: 0 | E30: 0.0001 | F30: 0.0001 | G30: 0 | H30: 0 | I30: 0.0001 | J30: 0 | K30: 0 | L30: 0 | M30: 0 | N30: 0 | O30: 0 | P30: 0 | Q30: 0 | R30: 0 | S30: 0 | T30: 0 | U30: 0 | V30: 0 | W30: 0 | X30: 0 | Z30: 447.25 | AA30: 1677577.677 | AB30: 23414677.48 | AC30: 0 | AD30: 0 | AE30: 6829569.278 | AF30: 0 | AG30: 0 | AH30: 0 | AI30: 0 | AJ30: 0 | AK30: 0 | AL30: 0 | AM30: 0 | AN30: 0 | AO30: 0 | AP30: 0 | AQ30: 0 | AR30: 0 | AS30: 0 | AT30: 0 | AW30: 0 | AX30: 1.677577677 | AY30: 23.41467748 | AZ30: 0 | BA30: 0 | BB30: 6.829569278 | BC30: 0 | BD30: 0 | BE30: 0 | BF30: 0 | BG30: 0 | BH30: 0 | BI30: 0 | BJ30: 0 | BK30: 0 | BL30: 0 | BM30: 0 | BN30: 0 | BO30: 0 | BP30: 0 | BQ30: 0 | BR30: 31.92182443
B31: Unmetered Supplies / Public Lighting | D31: 0 | E31: 0.0001 | F31: 0.0001 | G31: 0 | H31: 0 | I31: 0.0001 | J31: 0 | K31: 0 | L31: 0 | M31: 0 | N31: 0 | O31: 0 | P31: 0 | Q31: 0 | R31: 0 | S31: 0 | T31: 0 | U31: 0 | V31: 0 | W31: 0 | X31: 0 | Z31: 1146.833333 | AA31: 1576335.839 | AB31: 8438871.683 | AC31: 0 | AD31: 0 | AE31: 24908035.17 | AF31: 0 | AG31: 0 | AH31: 0 | AI31: 0 | AJ31: 0 | AK31: 0 | AL31: 0 | AM31: 0 | AN31: 0 | AO31: 0 | AP31: 0 | AQ31: 0 | AR31: 0 | AS31: 0 | AT31: 0 | AW31: 0 | AX31: 1.576335839 | AY31: 8.438871683 | AZ31: 0 | BA31: 0 | BB31: 24.90803517 | BC31: 0 | BD31: 0 | BE31: 0 | BF31: 0 | BG31: 0 | BH31: 0 | BI31: 0 | BJ31: 0 | BK31: 0 | BL31: 0 | BM31: 0 | BN31: 0 | BO31: 0 | BP31: 0 | BQ31: 0 | BR31: 34.92324269
B32: Large Two Rate 7d | D32: 0 | E32: 0.0001 | F32: 0.0001 | G32: 0 | H32: 0 | I32: 0.0001 | J32: 0 | K32: 0 | L32: 0 | M32: 0 | N32: 0 | O32: 0 | P32: 0 | Q32: 0 | R32: 0 | S32: 0 | T32: 0 | U32: 0 | V32: 0 | W32: 0 | X32: 0 | Z32: 41.75 | AA32: 170044.3453 | AB32: 14179340.16 | AC32: 0 | AD32: 0 | AE32: 3510649.018 | AF32: 0 | AG32: 0 | AH32: 0 | AI32: 0 | AJ32: 0 | AK32: 0 | AL32: 0 | AM32: 0 | AN32: 0 | AO32: 0 | AP32: 0 | AQ32: 0 | AR32: 0 | AS32: 0 | AT32: 0 | AW32: 0 | AX32: 0.1700443453 | AY32: 14.17934016 | AZ32: 0 | BA32: 0 | BB32: 3.510649018 | BC32: 0 | BD32: 0 | BE32: 0 | BF32: 0 | BG32: 0 | BH32: 0 | BI32: 0 | BJ32: 0 | BK32: 0 | BL32: 0 | BM32: 0 | BN32: 0 | BO32: 0 | BP32: 0 | BQ32: 0 | BR32: 17.86003352
B33: Large Low Voltage Demand | D33: 0 | E33: 0.0001 | F33: 0.0001 | G33: 0 | H33: 0 | I33: 0.0001 | J33: 0 | K33: 0 | L33: 0 | M33: 0 | N33: 0 | O33: 0 | P33: 0 | Q33: 0 | R33: 0 | S33: 0 | T33: 0 | U33: 0 | V33: 0 | W33: 0 | X33: 0 | Z33: 242.1666667 | AA33: 981933.5151 | AB33: 89364793.97 | AC33: 0 | AD33: 0 | AE33: 69956158.91 | AF33: 0 | AG33: 0 | AH33: 0 | AI33: 59720.20835 | AJ33: 0 | AK33: 0 | AL33: 0 | AM33: 0 | AN33: 0 | AO33: 0 | AP33: 0 | AQ33: 0 | AR33: 0 | AS33: 0 | AT33: 0 | AW33: 0 | AX33: 0.9819335151 | AY33: 89.36479397 | AZ33: 0 | BA33: 0 | BB33: 69.95615891 | BC33: 0 | BD33: 0 | BE33: 0 | BF33: 0 | BG33: 0 | BH33: 0 | BI33: 0 | BJ33: 0 | BK33: 0 | BL33: 0 | BM33: 0 | BN33: 0 | BO33: 0 | BP33: 0 | BQ33: 0 | BR33: 160.3028864
B34: Large Low Voltage Demand - Bulk | D34: 0 | E34: 0.0001 | F34: 0.0001 | G34: 0 | H34: 0 | I34: 0.0001 | J34: 0 | K34: 0 | L34: 0 | M34: 0 | N34: 0 | O34: 0 | P34: 0 | Q34: 0 | R34: 0 | S34: 0 | T34: 0 | U34: 0 | V34: 0 | W34: 0 | X34: 0 | Z34: 1291.833333 | AA34: 5235330.067 | AB34: 1000343670 | AC34: 0 | AD34: 0 | AE34: 735773250.4 | AF34: 0 | AG34: 0 | AH34: 0 | AI34: 636736.4812 | AJ34: 0 | AK34: 0 | AL34: 0 | AM34: 0 | AN34: 0 | AO34: 0 | AP34: 0 | AQ34: 0 | AR34: 0 | AS34: 0 | AT34: 0 | AW34: 0 | AX34: 5.235330067 | AY34: 1000.34367 | AZ34: 0 | BA34: 0 | BB34: 735.7732504 | BC34: 0 | BD34: 0 | BE34: 0 | BF34: 0 | BG34: 0 | BH34: 0 | BI34: 0 | BJ34: 0 | BK34: 0 | BL34: 0 | BM34: 0 | BN34: 0 | BO34: 0 | BP34: 0 | BQ34: 0 | BR34: 1741.35225
B35: Large Low Voltage Demand R | D35: 0 | E35: 0.0505 | F35: 0.0505 | G35: 0 | H35: 0 | I35: 0.0546 | J35: 0 | K35: 0 | L35: 0 | M35: 0 | N35: 0 | O35: 0 | P35: 0 | Q35: 0 | R35: 0 | S35: 0 | T35: 0 | U35: 0 | V35: 0 | W35: 0 | X35: 0 | Z35: 7.25 | AA35: 37462.63157 | AB35: 1730012.765 | AC35: 0 | AD35: 0 | AE35: 2563351.268 | AF35: 0 | AG35: 0 | AH35: 0 | AI35: 2723.286667 | AJ35: 0 | AK35: 0 | AL35: 0 | AM35: 0 | AN35: 0 | AO35: 0 | AP35: 0 | AQ35: 0 | AR35: 0 | AS35: 0 | AT35: 0 | AW35: 0 | AX35: 18.91862894 | AY35: 873.6564464 | AZ35: 0 | BA35: 0 | BB35: 1399.589793 | BC35: 0 | BD35: 0 | BE35: 0 | BF35: 0 | BG35: 0 | BH35: 0 | BI35: 0 | BJ35: 0 | BK35: 0 | BL35: 0 | BM35: 0 | BN35: 0 | BO35: 0 | BP35: 0 | BQ35: 0 | BR35: 2292.164868
B36: Large Low Voltage Demand G | D36: 0 | E36: 0.0001 | F36: 0.0001 | G36: 0 | H36: 0 | I36: 0.0001 | J36: 0 | K36: 0 | L36: 0 | M36: 0 | N36: 0 | O36: 0 | P36: 0 | Q36: 0 | R36: 0 | S36: 0 | T36: 0 | U36: 0 | V36: 0 | W36: 0 | X36: 0 | Z36: 2.083333333 | AA36: -8371.605256 | AB36: -2536563.689 | AC36: 0 | AD36: 0 | AE36: -2360785.328 | AF36: 0 | AG36: 0 | AH36: 0 | AI36: -1360.391914 | AJ36: 0 | AK36: 0 | AL36: 0 | AM36: 0 | AN36: 0 | AO36: 0 | AP36: 0 | AQ36: 0 | AR36: 0 | AS36: 0 | AT36: 0 | AW36: 0 | AX36: -0.008371605256 | AY36: -2.536563689 | AZ36: 0 | BA36: 0 | BB36: -2.360785328 | BC36: 0 | BD36: 0 | BE36: 0 | BF36: 0 | BG36: 0 | BH36: 0 | BI36: 0 | BJ36: 0 | BK36: 0 | BL36: 0 | BM36: 0 | BN36: 0 | BO36: 0 | BP36: 0 | BQ36: 0 | BR36: -4.905720623
B37: Large Low Voltage Demand - Bulk R | D37: 0 | E37: 0.0505 | F37: 0.0505 | G37: 0 | H37: 0 | I37: 0.0546 | J37: 0 | K37: 0 | L37: 0 | M37: 0 | N37: 0 | O37: 0 | P37: 0 | Q37: 0 | R37: 0 | S37: 0 | T37: 0 | U37: 0 | V37: 0 | W37: 0 | X37: 0 | Z37: 127.1666667 | AA37: 612582.6915 | AB37: 56124969.95 | AC37: 0 | AD37: 0 | AE37: 49549953.49 | AF37: 0 | AG37: 0 | AH37: 0 | AI37: 35830.11192 | AJ37: 0 | AK37: 0 | AL37: 0 | AM37: 0 | AN37: 0 | AO37: 0 | AP37: 0 | AQ37: 0 | AR37: 0 | AS37: 0 | AT37: 0 | AW37: 0 | AX37: 309.3542592 | AY37: 28343.10983 | AZ37: 0 | BA37: 0 | BB37: 27054.2746 | BC37: 0 | BD37: 0 | BE37: 0 | BF37: 0 | BG37: 0 | BH37: 0 | BI37: 0 | BJ37: 0 | BK37: 0 | BL37: 0 | BM37: 0 | BN37: 0 | BO37: 0 | BP37: 0 | BQ37: 0 | BR37: 55706.73869
B38: Large Low Voltage Demand - Bulk G | D38: 0 | E38: 0.0001 | F38: 0.0001 | G38: 0 | H38: 0 | I38: 0.0001 | J38: 0 | K38: 0 | L38: 0 | M38: 0 | N38: 0 | O38: 0 | P38: 0 | Q38: 0 | R38: 0 | S38: 0 | T38: 0 | U38: 0 | V38: 0 | W38: 0 | X38: 0 | Z38: 79.91666667 | AA38: 270176.0229 | AB38: 68858670.77 | AC38: 0 | AD38: 0 | AE38: 47135924.69 | AF38: 0 | AG38: 0 | AH38: 0 | AI38: 35302.11205 | AJ38: 0 | AK38: 0 | AL38: 0 | AM38: 0 | AN38: 0 | AO38: 0 | AP38: 0 | AQ38: 0 | AR38: 0 | AS38: 0 | AT38: 0 | AW38: 0 | AX38: 0.2701760229 | AY38: 68.85867077 | AZ38: 0 | BA38: 0 | BB38: 47.13592469 | BC38: 0 | BD38: 0 | BE38: 0 | BF38: 0 | BG38: 0 | BH38: 0 | BI38: 0 | BJ38: 0 | BK38: 0 | BL38: 0 | BM38: 0 | BN38: 0 | BO38: 0 | BP38: 0 | BQ38: 0 | BR38: 116.2647715
B39: High Voltage Demand | D39: 0 | E39: 0 | F39: 0 | G39: 0 | H39: 0 | I39: 0 | J39: 0 | K39: 0 | L39: 0 | M39: 0 | N39: 0 | O39: 0 | P39: 0 | Q39: 0 | R39: 0 | S39: 0 | T39: 0 | U39: 0 | V39: 0 | W39: 0 | X39: 0 | Z39: 80.08333333 | AA39: 309473.4153 | AB39: 312105861.3 | AC39: 0 | AD39: 0 | AE39: 289721545 | AF39: 0 | AG39: 0 | AH39: 0 | AI39: 193537.455 | AJ39: 0 | AK39: 0 | AL39: 0 | AM39: 0 | AN39: 0 | AO39: 0 | AP39: 0 | AQ39: 0 | AR39: 0 | AS39: 0 | AT39: 0 | AW39: 0 | AX39: 0 | AY39: 0 | AZ39: 0 | BA39: 0 | BB39: 0 | BC39: 0 | BD39: 0 | BE39: 0 | BF39: 0 | BG39: 0 | BH39: 0 | BI39: 0 | BJ39: 0 | BK39: 0 | BL39: 0 | BM39: 0 | BN39: 0 | BO39: 0 | BP39: 0 | BQ39: 0 | BR39: 0
B40: High Voltage Demand D1 | D40: 0 | E40: 0 | F40: 0 | G40: 0 | H40: 0 | I40: 0 | J40: 0 | K40: 0 | L40: 0 | M40: 0 | N40: 0 | O40: 0 | P40: 0 | Q40: 0 | R40: 0 | S40: 0 | T40: 0 | U40: 0 | V40: 0 | W40: 0 | X40: 0 | Z40: 0 | AA40: 0 | AB40: 0 | AC40: 0 | AD40: 0 | AE40: 0 | AF40: 0 | AG40: 0 | AH40: 0 | AI40: 0 | AJ40: 0 | AK40: 0 | AL40: 0 | AM40: 0 | AN40: 0 | AO40: 0 | AP40: 0 | AQ40: 0 | AR40: 0 | AS40: 0 | AT40: 0 | AW40: 0 | AX40: =E40/100*AA40 -> 0 | AY40: =F40/100*AB40 -> 0 | AZ40: =G40/100*AC40 -> 0 | BA40: =H40/100*AD40 -> 0 | BB40: =I40/100*AE40 -> 0 | BC40: =J40/100*AF40 -> 0 | BD40: =K40/100*AG40 -> 0 | BE40: =L40/100*AH40 -> 0 | BF40: 0 | BG40: 0 | BH40: 0 | BI40: 0 | BJ40: 0 | BK40: 0 | BL40: 0 | BM40: 0 | BN40: 0 | BO40: 0 | BP40: 0 | BQ40: 0 | BR40: 0
B41: High Voltage Demand R | D41: 0 | E41: 0 | F41: 0 | G41: 0 | H41: 0 | I41: 0 | J41: 0 | K41: 0 | L41: 0 | M41: 0 | N41: 0 | O41: 0 | P41: 0 | Q41: 0 | R41: 0 | S41: 0 | T41: 0 | U41: 0 | V41: 0 | W41: 0 | X41: 0 | Z41: 0.1666666667 | AA41: 0 | AB41: 0 | AC41: 0 | AD41: 0 | AE41: 0 | AF41: 0 | AG41: 0 | AH41: 0 | AI41: 0 | AJ41: 0 | AK41: 0 | AL41: 0 | AM41: 0 | AN41: 0 | AO41: 0 | AP41: 0 | AQ41: 0 | AR41: 0 | AS41: 0 | AT41: 0 | AW41: 0 | AX41: 0 | AY41: 0 | AZ41: 0 | BA41: 0 | BB41: 0 | BC41: 0 | BD41: 0 | BE41: 0 | BF41: 0 | BG41: =N41*AJ41 -> 0 | BH41: =O41*AK41 -> 0 | BI41: =P41*AL41 -> 0 | BJ41: 0 | BK41: 0 | BL41: 0 | BM41: 0 | BN41: 0 | BO41: 0 | BP41: 0 | BQ41: 0 | BR41: 0
B42: High Voltage Demand G | D42: 0 | E42: 0 | F42: 0 | G42: 0 | H42: 0 | I42: 0 | J42: 0 | K42: 0 | L42: 0 | M42: 0 | N42: 0 | O42: 0 | P42: 0 | Q42: 0 | R42: 0 | S42: 0 | T42: 0 | U42: 0 | V42: 0 | W42: 0 | X42: 0 | Z42: 1 | AA42: 4080 | AB42: 5503603.16 | AC42: 0 | AD42: 0 | AE42: 2653616.26 | AF42: 0 | AG42: 0 | AH42: 0 | AI42: 2997.710667 | AJ42: 0 | AK42: 0 | AL42: 0 | AM42: 0 | AN42: 0 | AO42: 0 | AP42: 0 | AQ42: 0 | AR42: 0 | AS42: 0 | AT42: 0 | AW42: 0 | AX42: 0 | AY42: 0 | AZ42: 0 | BA42: 0 | BB42: 0 | BC42: 0 | BD42: 0 | BE42: 0 | BF42: 0 | BG42: 0 | BH42: 0 | BI42: 0 | BJ42: 0 | BK42: 0 | BL42: 0 | BM42: 0 | BN42: 0 | BO42: 0 | BP42: 0 | BQ42: 0 | BR42: 0
B43: Subtransmission Demand | D43: 0 | E43: 0 | F43: 0 | G43: 0 | H43: 0 | I43: 0 | J43: 0 | K43: 0 | L43: 0 | M43: 0 | N43: 0 | O43: 0 | P43: 0 | Q43: 0 | R43: 0 | S43: 0 | T43: 0 | U43: 0 | V43: 0 | W43: 0 | X43: 0 | Z43: 7 | AA43: 28560 | AB43: 65635692.63 | AC43: 0 | AD43: 0 | AE43: 36730474.27 | AF43: 0 | AG43: 0 | AH43: 0 | AI43: 71617 | AJ43: 0 | AK43: 0 | AL43: 0 | AM43: 0 | AN43: 0 | AO43: 0 | AP43: 0 | AQ43: 0 | AR43: 0 | AS43: 0 | AT43: 0 | AW43: 0 | AX43: 0 | AY43: 0 | AZ43: 0 | BA43: 0 | BB43: 0 | BC43: 0 | BD43: 0 | BE43: 0 | BF43: 0 | BG43: 0 | BH43: 0 | BI43: 0 | BJ43: 0 | BK43: 0 | BL43: 0 | BM43: 0 | BN43: 0 | BO43: 0 | BP43: 0 | BQ43: 0 | BR43: 0
AW44: 0 | AX44: 0 | AY44: 0 | AZ44: 0 | BA44: 0 | BB44: 0 | BC44: 0 | BD44: 0 | BE44: 0 | BF44: 0 | BG44: 0 | BH44: 0 | BI44: 0 | BJ44: 0 | BK44: 0 | BL44: 0 | BM44: 0 | BN44: 0 | BO44: 0 | BP44: 0 | BQ44: 0 | BR44: 0
AW45: 0 | AX45: 0 | AY45: 0 | AZ45: 0 | BA45: 0 | BB45: 0 | BC45: 0 | BD45: 0 | BE45: 0 | BF45: 0 | BG45: 0 | BH45: 0 | BI45: 0 | BJ45: 0 | BK45: 0 | BL45: 0 | BM45: 0 | BN45: 0 | BO45: 0 | BP45: 0 | BQ45: 0 | BR45: 0
AW46: 0 | AX46: 0 | AY46: 0 | AZ46: 0 | BA46: 0 | BB46: 0 | BC46: 0 | BD46: 0 | BE46: 0 | BF46: 0 | BG46: 0 | BH46: 0 | BI46: 0 | BJ46: 0 | BK46: 0 | BL46: 0 | BM46: 0 | BN46: 0 | BO46: 0 | BP46: 0 | BQ46: 0 | BR46: 0
AW47: 0 | AX47: 0 | AY47: 0 | AZ47: 0 | BA47: 0 | BB47: 0 | BC47: 0 | BD47: 0 | BE47: 0 | BF47: 0 | BG47: 0 | BH47: 0 | BI47: 0 | BJ47: 0 | BK47: 0 | BL47: 0 | BM47: 0 | BN47: 0 | BO47: 0 | BP47: 0 | BQ47: 0 | BR47: 0
AW48: 0 | AX48: 0 | AY48: 0 | AZ48: 0 | BA48: 0 | BB48: 0 | BC48: 0 | BD48: 0 | BE48: 0 | BF48: 0 | BG48: 0 | BH48: 0 | BI48: 0 | BJ48: 0 | BK48: 0 | BL48: 0 | BM48: 0 | BN48: 0 | BO48: 0 | BP48: 0 | BQ48: 0 | BR48: 0
AW49: 0 | AX49: 0 | AY49: 0 | AZ49: 0 | BA49: 0 | BB49: 0 | BC49: 0 | BD49: 0 | BE49: 0 | BF49: 0 | BG49: 0 | BH49: 0 | BI49: 0 | BJ49: 0 | BK49: 0 | BL49: 0 | BM49: 0 | BN49: 0 | BO49: 0 | BP49: 0 | BQ49: 0 | BR49: 0
AW50: 0 | AX50: 0 | AY50: 0 | AZ50: 0 | BA50: 0 | BB50: 0 | BC50: 0 | BD50: 0 | BE50: 0 | BF50: 0 | BG50: 0 | BH50: 0 | BI50: 0 | BJ50: 0 | BK50: 0 | BL50: 0 | BM50: 0 | BN50: 0 | BO50: 0 | BP50: 0 | BQ50: 0 | BR50: 0
AW51: 0 | AX51: 0 | AY51: 0 | AZ51: 0 | BA51: 0 | BB51: 0 | BC51: 0 | BD51: 0 | BE51: 0 | BF51: 0 | BG51: 0 | BH51: 0 | BI51: 0 | BJ51: 0 | BK51: 0 | BL51: 0 | BM51: 0 | BN51: 0 | BO51: 0 | BP51: 0 | BQ51: 0 | BR51: 0
AW52: 0 | AX52: 0 | AY52: 0 | AZ52: 0 | BA52: 0 | BB52: 0 | BC52: 0 | BD52: 0 | BE52: 0 | BF52: 0 | BG52: 0 | BH52: 0 | BI52: 0 | BJ52: 0 | BK52: 0 | BL52: 0 | BM52: 0 | BN52: 0 | BO52: 0 | BP52: 0 | BQ52: 0 | BR52: 0
AW53: 0 | AX53: 0 | AY53: 0 | AZ53: 0 | BA53: 0 | BB53: 0 | BC53: 0 | BD53: 0 | BE53: 0 | BF53: 0 | BG53: 0 | BH53: 0 | BI53: 0 | BJ53: 0 | BK53: 0 | BL53: 0 | BM53: 0 | BN53: 0 | BO53: 0 | BP53: 0 | BQ53: 0 | BR53: 0
AW54: 0 | AX54: 0 | AY54: 0 | AZ54: 0 | BA54: 0 | BB54: 0 | BC54: 0 | BD54: 0 | BE54: 0 | BF54: 0 | BG54: 0 | BH54: 0 | BI54: 0 | BJ54: 0 | BK54: 0 | BL54: 0 | BM54: 0 | BN54: 0 | BO54: 0 | BP54: 0 | BQ54: 0 | BR54: 0
AW55: 0 | AX55: 0 | AY55: 0 | AZ55: 0 | BA55: 0 | BB55: 0 | BC55: 0 | BD55: 0 | BE55: 0 | BF55: 0 | BG55: 0 | BH55: 0 | BI55: 0 | BJ55: 0 | BK55: 0 | BL55: 0 | BM55: 0 | BN55: 0 | BO55: 0 | BP55: 0 | BQ55: 0 | BR55: 0
AW56: 0 | AX56: 0 | AY56: 0 | AZ56: 0 | BA56: 0 | BB56: 0 | BC56: 0 | BD56: 0 | BE56: 0 | BF56: 0 | BG56: 0 | BH56: 0 | BI56: 0 | BJ56: 0 | BK56: 0 | BL56: 0 | BM56: 0 | BN56: 0 | BO56: 0 | BP56: 0 | BQ56: 0 | BR56: 0
AW57: 0 | AX57: 0 | AY57: 0 | AZ57: 0 | BA57: 0 | BB57: 0 | BC57: 0 | BD57: 0 | BE57: 0 | BF57: 0 | BG57: 0 | BH57: 0 | BI57: 0 | BJ57: 0 | BK57: 0 | BL57: 0 | BM57: 0 | BN57: 0 | BO57: 0 | BP57: 0 | BQ57: 0 | BR57: 0
AW58: 0 | AX58: 0 | AY58: 0 | AZ58: 0 | BA58: 0 | BB58: 0 | BC58: 0 | BD58: 0 | BE58: 0 | BF58: 0 | BG58: 0 | BH58: 0 | BI58: 0 | BJ58: 0 | BK58: 0 | BL58: 0 | BM58: 0 | BN58: 0 | BO58: 0 | BP58: 0 | BQ58: 0 | BR58: 0
AW59: 0 | AX59: 0 | AY59: 0 | AZ59: 0 | BA59: 0 | BB59: 0 | BC59: 0 | BD59: 0 | BE59: 0 | BF59: 0 | BG59: 0 | BH59: 0 | BI59: 0 | BJ59: 0 | BK59: 0 | BL59: 0 | BM59: 0 | BN59: 0 | BO59: 0 | BP59: 0 | BQ59: 0 | BR59: 0
AW60: 0 | AX60: 0 | AY60: 0 | AZ60: 0 | BA60: 0 | BB60: 0 | BC60: 0 | BD60: 0 | BE60: 0 | BF60: 0 | BG60: 0 | BH60: 0 | BI60: 0 | BJ60: 0 | BK60: 0 | BL60: 0 | BM60: 0 | BN60: 0 | BO60: 0 | BP60: 0 | BQ60: 0 | BR60: 0
AW61: 0 | AX61: 0 | AY61: 0 | AZ61: 0 | BA61: 0 | BB61: 0 | BC61: 0 | BD61: 0 | BE61: 0 | BF61: 0 | BG61: 0 | BH61: 0 | BI61: 0 | BJ61: 0 | BK61: 0 | BL61: 0 | BM61: 0 | BN61: 0 | BO61: 0 | BP61: 0 | BQ61: 0 | BR61: 0
AW62: 0 | AX62: 0 | AY62: 0 | AZ62: 0 | BA62: 0 | BB62: 0 | BC62: 0 | BD62: 0 | BE62: 0 | BF62: 0 | BG62: 0 | BH62: 0 | BI62: 0 | BJ62: 0 | BK62: 0 | BL62: 0 | BM62: 0 | BN62: 0 | BO62: 0 | BP62: 0 | BQ62: 0 | BR62: 0
AW63: 0 | AX63: 0 | AY63: 0 | AZ63: 0 | BA63: 0 | BB63: 0 | BC63: 0 | BD63: 0 | BE63: 0 | BF63: 0 | BG63: 0 | BH63: 0 | BI63: 0 | BJ63: 0 | BK63: 0 | BL63: 0 | BM63: 0 | BN63: 0 | BO63: 0 | BP63: 0 | BQ63: 0 | BR63: 0
AW64: 0 | AX64: 0 | AY64: 0 | AZ64: 0 | BA64: 0 | BB64: 0 | BC64: 0 | BD64: 0 | BE64: 0 | BF64: 0 | BG64: 0 | BH64: 0 | BI64: 0 | BJ64: 0 | BK64: 0 | BL64: 0 | BM64: 0 | BN64: 0 | BO64: 0 | BP64: 0 | BQ64: 0 | BR64: 0
AW65: 0 | AX65: 0 | AY65: 0 | AZ65: 0 | BA65: 0 | BB65: 0 | BC65: 0 | BD65: 0 | BE65: 0 | BF65: 0 | BG65: 0 | BH65: 0 | BI65: 0 | BJ65: 0 | BK65: 0 | BL65: 0 | BM65: 0 | BN65: 0 | BO65: 0 | BP65: 0 | BQ65: 0 | BR65: 0
AW66: 0 | AX66: 0 | AY66: 0 | AZ66: 0 | BA66: 0 | BB66: 0 | BC66: 0 | BD66: 0 | BE66: 0 | BF66: 0 | BG66: 0 | BH66: 0 | BI66: 0 | BJ66: 0 | BK66: 0 | BL66: 0 | BM66: 0 | BN66: 0 | BO66: 0 | BP66: 0 | BQ66: 0 | BR66: 0
AW67: 0 | AX67: 0 | AY67: 0 | AZ67: 0 | BA67: 0 | BB67: 0 | BC67: 0 | BD67: 0 | BE67: 0 | BF67: 0 | BG67: 0 | BH67: 0 | BI67: 0 | BJ67: 0 | BK67: 0 | BL67: 0 | BM67: 0 | BN67: 0 | BO67: 0 | BP67: 0 | BQ67: 0 | BR67: 0
Z68: =SUM(Z8:Z67) -> 364456.5 | AA68: 895058100.1 | AB68: 3087517006 | AC68: 0 | AD68: 0 | AE68: 1954040693 | AF68: 0 | AG68: 0 | AH68: 0 | AI68: 1037103.974 | AJ68: 0 | AK68: 0 | AL68: 0 | AM68: =SUM(AM8:AM67) -> 1228292.357 | AN68: 915291.3227 | AO68: 1233104.148 | AP68: 0 | AQ68: 1452703.935 | AR68: 1271893.625 | AS68: 1455977.477 | AT68: 0 | AW68: =SUM(AW8:AW67) -> 0 | AX68: 3642194.899 | AY68: 31863.18314 | AZ68: 0 | BA68: 0 | BB68: 247110.8506 | BC68: 0 | BD68: 0 | BE68: 0 | BF68: 0 | BG68: 0 | BH68: 0 | BI68: 0 | BJ68: =SUM(BJ8:BJ67) -> 34663.94278 | BK68: 10310.94835 | BL68: 1.233104148 | BM68: 0 | BN68: 34413.38764 | BO68: 9856.701192 | BP68: 1.461709764 | BQ68: 0 | BR68: 4010416.607
AW70: 0 | AX70: 0 | AY70: 0 | AZ70: 0 | BA70: 0 | BB70: 0 | BC70: 0 | BD70: 0 | BE70: 0 | BF70: 0 | BG70: 0 | BH70: 0 | BI70: 0 | BJ70: 0 | BK70: 0 | BL70: 0 | BM70: 0 | BN70: 0 | BO70: 0 | BP70: 0 | BQ70: 0 | BR70: 0
B73: Definitions
B74: All information must be reported consistent the terms used in the DNSPs pricing proposal

Sheet 29. Juris cost audit template
B1: =Cover!E22 -> CitiPower Pty Ltd
B2: Jurisdictional amount cost audit template
B3: =Cover!E26 -> 2015
B5: Templates 24 to 29 collect data required for annual pricing proposals. T-2 requires actual information for the reporting year.
B7: Jurisdictional scheme amounts | F7: t-2 actual
B8: PFIT | F8: 2370508.74
B9: TFIT | F9: 601168.73
B10: <DNSP to insert for future schemes>
E11: Total | F11: =SUM(F8:F10) -> 2971677.47
B13: Where the following definitions apply
B14: PFIT | C14: Premium feed-in tariff payments
B15: TFIT | C15: Transitional feed-in tariff payments

Sheet Income Work Paper
B4: CitiPower
B5: Income Statement Workpaper
B6: 2015
D9: Directly Attributed ($'000 nominal) | L9: Allocated ($'000 nominal) | T9: Numeric QTY of each allocator (%) | AB9: Description of Allocation Basis | AC9: Reason for choosing this basis
B10: Income Statement Workpaper | C10: CitiPower | D10: SCS | E10: AMI | F10: PL (EF) | G10: PL (NE) | H10: ACS (F) | I10: ACS (Q) | J10: Neg'd | K10: Un'reg | L10: SCS | M10: AMI | N10: PL (EF) | O10: PL (NE) | P10: ACS (F) | Q10: ACS (Q) | R10: Neg'd | S10: Un'reg | T10: SCS | U10: AMI | V10: PL (EF) | W10: PL (NE) | X10: ACS (F) | Y10: ACS (Q) | Z10: Neg'd | AA10: Un'reg | AD10: check
B12: Distribution Revenue | C12: -338953.0503 | D12: -287663.0822 | E12: -36868.20092 | F12: -2147.456393 | G12: -2195.311277 | H12: -5428.372201 | I12: -4474.20396 | J12: -176.42694 | K12: 0 | AD12: =C12-SUM(D12:S12) -> 0.003571893729
B13: TUOS revenue | C13: 0 | AD13: 0
B14: Cross boundary revenue | C14: 0 | AD14: 0
B15: Jurisdictional Scheme Amounts | C15: 0 | AD15: 0
B16: Profit from sale of Fixed Assets | C16: 1.27482 | AD16: 1.27482
B17: Customer Contributions | C17: 0 | AD17: 0
B18: Interest income | C18: -128.4401 | L18: -118.0734471 | M18: -9.634449725 | N18: -0.3107570081 | O18: -0.4214461981 | P18: 0 | Q18: 0 | R18: 0 | S18: 0 | T18: =L18/SUM($L$18:$S$18) -> 0.9192880344 | U18: =M18/SUM($L$18:$S$18) -> 0.07501122877 | V18: 0.002419470306 | W18: 0.003281266506 | X18: 0 | Y18: 0 | Z18: 0 | AA18: 0 | AB18: Allocation based on RAB balances calculated using the methodology and assumptions consistent with the published AER roll forward model | AC18: Most appropriate allocator | AD18: 0
B19: Revenue from use of RAB assets for non-SCS purposes | C19: 0 | AD19: 0
B20: Other Revenue | C20: 895.0525 | D20: -727.02199 | E20: 4342.44609 | F20: 99.195 | G20: 0 | H20: 0 | I20: 0 | J20: 0 | K20: -2819.5666 | AD20: 1.364242053e-12
B22: Total Revenue | C22: =SUM(C12:C20) -> -338185.1631 | D22: =SUM(D12:D20) -> -288390.1042 | E22: =SUM(E12:E20) -> -32525.75483 | F22: =SUM(F12:F20) -> -2048.261393 | G22: -2195.311277 | H22: -5428.372201 | I22: -4474.20396 | J22: -176.42694 | K22: -2819.5666 | L22: =SUM(L12:L20) -> -118.0734471 | M22: =SUM(M12:M20) -> -9.634449725 | N22: =SUM(N12:N20) -> -0.3107570081 | O22: -0.4214461981 | P22: 0 | Q22: 0 | R22: 0 | S22: 0 | AD22: =SUM(AD12:AD20) -> 1.278391894
B24: Maintenance | C24: 32384.60468 | D24: 25985.57513 | E24: 928.726 | F24: 922.4360928 | G24: 1251.000538 | H24: 1502.431558 | I24: 1794.435365 | J24: 0 | K24: 0 | AD24: =C24-SUM(D24:S24) -> 0
B25: TUOS costs | C25: 0 | H25: 0 | AD25: 0
B26: Cross boundary costs | C26: 0
B27: Jurisdictional Scheme Amounts | C27: 0 | AD27: 0
B28: Operating Expenses (Billing & Revenue Collection - Allocated) | C28: 2465.951947 | L28: 2205.826985 | M28: 117.8731732 | N28: 11.49054949 | O28: 15.5833924 | P28: 56.07201324 | Q28: 59.10583335 | R28: 0 | S28: 0 | T28: 0.8945133696 | U28: 0.04780027175 | V28: 0.004659681024 | W28: 0.006319422574 | X28: 0.02273848577 | Y28: 0.02396876931 | Z28: 0 | AA28: 0 | AB28: Allocation based on Expenditure Split | AC28: Reflective of the costs incurred in providing different categories of distribution services | AD28: 0
B29: Operating Expenses (Advertising/Marketing - Allocated) | C29: 6.535259393 | L29: 5.845876901 | M29: 0.312387175 | N29: 0.03045222418 | O29: 0.04129906574 | P29: 0.1486019027 | Q29: 0.1566421248 | R29: 0 | S29: 0 | T29: 0.8945133696 | U29: 0.04780027175 | V29: 0.004659681024 | W29: 0.006319422574 | X29: 0.02273848577 | Y29: 0.02396876931 | Z29: 0 | AA29: 0 | AB29: Allocation based on Expenditure Split | AC29: Reflective of the costs incurred in providing different categories of distribution services | AD29: 0
B30: Operating Expenses (Customer Service - Allocated) | C30: 3344.795631 | L30: 2991.96441 | M30: 159.8821401 | N30: 15.58568073 | O30: 21.13717702 | P30: 76.05558784 | Q30: 80.17063487 | R30: 0 | S30: 0 | T30: 0.8945133696 | U30: 0.04780027175 | V30: 0.004659681024 | W30: 0.006319422574 | X30: 0.02273848577 | Y30: 0.02396876931 | Z30: 0 | AA30: 0 | AB30: Allocation based on Expenditure Split | AC30: Reflective of the costs incurred in providing different categories of distribution services | AD30: 0
B31: Operating Expenses (Directly Attributable) | C31: 36564.00519 | D31: 24824.76014 | E31: 5789.832969 | F31: 0 | G31: 0 | H31: 2998.340712 | I31: 2951.07157 | J31: 0 | K31: 0 | AD31: -0.0002000000095
B32: Depreciation | C32: 103198.6367 | D32: 84256.16814 | E32: 18352.39931 | F32: 250.4334402 | G32: 339.6358522 | H32: 0 | I32: 0 | J32: 0 | K32: 0 | AD32: 0
B33: Finance Charges | C33: 0 | D33: 0 | E33: 0 | F33: 0 | G33: 0 | H33: 0 | I33: 0 | J33: 0 | K33: 0 | L33: 0 | M33: 0 | N33: 0 | O33: 0 | P33: 0 | Q33: 0 | R33: 0 | S33: 0 | AD33: 0
B34: Loss from sale of Fixed Assets | C34: 16.67665 | D34: 16.67665 | AD34: 0
B35: Impairment Losses (Nature) | C35: 0 | AD35: 0
B36: Costs from use of RAB assets for non-SCS purposes | C36: 0 | AD36: 0
B37: Other | C37: 0 | AD37: 0
B39: Profit before Tax (PBT) | C39: =SUM(C22:C37) -> -160203.957 | D39: =SUM(D22:D37) -> -153306.9241 | E39: -7454.796549 | F39: -875.3918601 | G39: -604.6748866 | H39: -927.5999303 | I39: 271.3029745 | J39: -176.42694 | K39: -2819.5666 | L39: 5085.563825 | M39: 268.4332507 | N39: 26.79592544 | O39: 36.34042228 | P39: 132.276203 | Q39: 139.4331103 | R39: 0 | S39: 0 | AD39: =C39-SUM(D39:S39) -> 1.278191894
B41: Income Tax Expense / (Benefit) | C41: 1335.806769 | L41: 1235.883291 | M41: 59.92107138 | N41: 7.075731558 | O41: 4.738865625 | P41: 6.631539189 | Q41: -3.424784587 | R41: 1.471076653 | S41: 23.51000701 | T41: =L41/$C$41 -> 0.9251961579 | U41: =M41/$C$41 -> 0.04485758925 | V41: =N41/$C$41 -> 0.005296972376 | W41: 0.003547568206 | X41: 0.004964444963 | Y41: -0.002563832334 | Z41: 0.001101264559 | AA41: 0.01759985617 | AB41: Allocated based on Proportion of Profit/Loss in each segment | AC41: Most appropriate allocator | AD41: =C41-SUM(D41:S41) -> -2.811540094e-05
B43: Profit after Tax | C43: =SUM(C39:C41) -> -158868.1502 | D43: -153306.9241 | E43: -7454.796549 | F43: -875.3918601 | G43: -604.6748866 | H43: -927.5999303 | I43: 271.3029745 | J43: -176.42694 | K43: -2819.5666 | L43: 6321.447116 | M43: 328.3543221 | N43: 33.871657 | O43: 41.07928791 | P43: 138.9077422 | Q43: 136.0083258 | R43: 1.471076653 | S43: 23.51000701 | AD43: =C43-SUM(D43:S43) -> 1.278163778
C46: 0

Sheet Services Fee Work Paper
A2: Corporate Services Fee Allocations Workpaper
F7: 'Numeric QTY of each allocator (%) | O7: ($'000 nominal) | X7: Description of Allocation Basis
B8: Services Fee Workpaper | C8: Statutory $000's | D8: Related Party / Amount Capitalised | E8: CitiPower $000 | F8: SCS | G8: AMI | H8: PL (EF) | I8: PL (NE) | J8: ACS (F) | K8: ACS (Q) | L8: Neg'd | M8: Un'reg | N8: Total % | O8: SCS | P8: AMI | Q8: PL (EF) | R8: PL (NE) | S8: ACS (F) | T8: ACS (Q) | U8: Neg'd | V8: Un'reg | W8: Total $
B10: Maintenance | C10: 3512.28703 | E10: 3512.28703 | O10: 2907.975821 | P10: 126.82273 | Q10: 41.01285825 | R10: 55.62131419 | S10: 173.4526227 | T10: 207.4016843 | U10: 0 | V10: 0 | W10: =SUM(O10:V10) -> 3512.28703 | X10: Directly attributable | Z10: =E10-W10 -> 0
B11: Network operating costs | C11: 424.8906964 | E11: 424.8906964 | O11: 0 | P11: 424.8906964 | Q11: 0 | R11: 0 | S11: 0 | T11: 0 | U11: 0 | V11: 0 | W11: =SUM(O11:V11) -> 424.8906964 | X11: Directly attributable | Z11: =E11-W11 -> 0
B12: Meter data services | C12: 0 | E12: 0 | O12: 0 | P12: 0 | Q12: 0 | R12: 0 | S12: 0 | T12: 0 | U12: 0 | V12: 0 | W12: 0 | X12: Directly attributable to AMI | Z12: 0
B13: Billing and revenue collection - CIS | C13: 686.4084745 | E13: 686.4084745 | O13: 686.4084745 | P13: 0 | Q13: 0 | R13: 0 | S13: 0 | T13: 0 | U13: 0 | V13: 0 | W13: 686.4084745 | X13: Directly attributable to SCS | Z13: 0
B14: Billing and revenue collection | C14: 2465.951947 | E14: 2465.951947 | F14: 0.8945133696 | G14: 0.04780027175 | H14: 0.004659681024 | I14: 0.006319422574 | J14: 0.02273848577 | K14: 0.02396876931 | L14: 0 | M14: 0 | N14: 1 | O14: 2205.826985 | P14: 117.8731732 | Q14: 11.49054949 | R14: 15.5833924 | S14: 56.07201324 | T14: 59.10583335 | U14: 0 | V14: 0 | W14: 2465.951947 | X14: Allocation based on 2012 expenditure split | Z14: 0
B15: Advertising & Marketing | C15: 6.535259393 | E15: 6.535259393 | F15: 0.8945133696 | G15: 0.04780027175 | H15: 0.004659681024 | I15: 0.006319422574 | J15: 0.02273848577 | K15: 0.02396876931 | L15: 0 | M15: 0 | N15: 1 | O15: 5.845876901 | P15: 0.312387175 | Q15: 0.03045222418 | R15: 0.04129906574 | S15: 0.1486019027 | T15: 0.1566421248 | U15: 0 | V15: 0 | W15: 6.535259393 | X15: Allocation based on 2012 expenditure split | Z15: 0
B16: Customer Service | C16: 3344.795631 | E16: 3344.795631 | F16: 0.8945133696 | G16: 0.04780027175 | H16: 0.004659681024 | I16: 0.006319422574 | J16: 0.02273848577 | K16: 0.02396876931 | L16: 0 | M16: 0 | N16: 1 | O16: 2991.96441 | P16: 159.8821401 | Q16: 15.58568073 | R16: 21.13717702 | S16: 76.05558784 | T16: 80.17063487 | U16: 0 | V16: 0 | W16: 3344.795631 | X16: Allocation based on 2012 expenditure split | Z16: 0
B17: Regulatory | C17: 2188.686115 | D17: 2188.686115 | E17: 0 | O17: 0 | P17: 0 | Q17: 0 | R17: 0 | S17: 0 | T17: 0 | U17: 0 | V17: 0 | W17: 0 | X17: Directly attributable | Z17: 0
B18: Other | C18: 21635.76695 | D18: 17103.14564 | E18: 4532.621308 | O18: 4819.208878 | P18: 0 | S18: -286.58757 | W18: 4532.621308 | X18: Directly attributable to SCS & ACS | Z18: 0
Z19: 0
B20: TOTAL | C20: =SUM(C10:C19) -> 34265.32211 | D20: =SUM(D10:D19) -> 19291.83176 | E20: =SUM(E10:E19) -> 14973.49035 | O20: =SUM(O10:O19) -> 13617.23045 | P20: =SUM(P10:P19) -> 829.7811269 | Q20: =SUM(Q10:Q19) -> 68.1195407 | R20: 92.38318267 | S20: 19.14125572 | T20: 346.8347946 | U20: 0 | V20: 0 | W20: =SUM(W10:W19) -> 14973.49035 | Z20: 0
Z21: 0
Z22: 0

Sheet Income Adjustments
C3: CITIPOWER
C5: Description | D5: Audited Statutory Accounts | E5: Adjustments | F5: Distribution business | H5: Adjustments | I5: Basis
C7: Distribution Revenue | D7: 338953.0503 | E7: 0 | F7: 338953.0503
C8: TUOS revenue | D8: 107561.9681 | E8: -107561.9681 | F8: 0 | H8: Pass-through transmission revenues | I8: Revenues not earned by the distribution business and only passed through from retailers to the transmission businesses. | J8: =E8 -> -107561.9681
C9: Cross boundary revenue | D9: 3810.89484 | E9: -3810.89484 | F9: 0 | H9: Pass-through transmission revenues | I9: As above | J9: =E9 -> -3810.89484
C10: Jurisdictional Scheme Amounts | D10: 4010.41661 | E10: -4010.41661 | F10: 0 | H10: Pass-through transmission revenues | I10: As above | J10: -4010.41661
C11: Profit from sale of Fixed Assets | D11: -17.95147 | E11: 16.67665 | F11: -1.27482 | H11: Transfer Proceeds from Sale of Assets to Loss from sale of Fixed Assets | I11: This is not an adjustment between the statutory and regulatory accounts expenditure. It is merely a product of the reporting templates with an offsetting entry in Loss from sale of Fixed Assets | J11: 16.67665
C12: Customer Contributions | D12: 28703.45497 | E12: -28703.45497 | F12: 0 | H12: Transfer Customer Contribution Revenue to Fixed assets | I12: Customer contributions are netted off against capex for regulatory purposes to ensure that the there is no further recovery of this portion of capex through the RAB. This is consistent with RAB Roll forward methodology | J12: -28703.45497
C13: Interest income | D13: 128.4401 | E13: 0 | F13: 128.4401
C14: Revenue from use of RAB assets for non-SCS purposes | D14: 0 | E14: 0 | F14: 0
C15: Other Revenue | D15: 26771.65236 | E15: -27666.70486 | F15: -895.0525 | H15: Other Revenue | I15: Other Revenue | J15: =SUM(J16:J19) -> -27666.70486
H16: Resources Contract Revenue | I16: Under the respective resources agreements, we provide staff to other entities. In turn, these entities pay us for wages and salaries (including bonuses, allowances, leave payments, fringe benefits, fringe benefit tax, payroll tax, superannuation payments and work cover payments); operating expenses that are incidental to the provision of the services (including phone calls and stationery); and motor vehicle expenses relating to provision of the services. The pricing of services under the resources services agreement is at cost. There are no margins, management fees, incentive payments or overhead costs associated with the resources agreement. | J16: -25710.68704
H17: Activity Allocations treated as Revenue in Statutory Reporting transfer to Non-Regulated | I17: Net time confirmations and operating expenditure charged between internal related parties. Reflects work performed by / peformed on behalf of the distribution business. | J17: 0
H18: Recoverable STPIS Penalties | I18: Every year the business receives a reward or penalty in its regulated distribution charges relating to the service target performance incentive scheme (STPIS). The business has chosen to try and recover STPIS penalties from identifiable parties who have caused a STPIS penalty event. In terms of the profit and loss statement, recoverable STPIS penalties are recognised as revenue and a provision for doubtful debts is raised. When STPIS penalties charged to a party are recovered the doubtful debt provision is reduced, and when the STPIS penalties are not recovered they are written off as a bad debt. In terms of RIN reporting to the Australian Energy Regulator, recovered and unrecovered STPIS penalties should be adjusted out of the Statutory Accounts and excluded from the Distribution Business for the following reasons: • The recovery of STPIS penalties is not a regulated activity, therefore it should not be reported as part of the Distribution Business. • The regulated distribution charges are set to recover a certain allowed amount of annual revenue, taking into account the STPIS reward/penalty. There is an annual true up process between reported revenue and revenue allowance to ensure that only the revenue allowance is recovered. If recovered STPIS penalties were included in regulated revenue, then the recovery of STPIS penalties from parties would not offset the penalty that the business incurs via lower distribution charges. • The operating cost allowance of the business, which is a component of the revenue allowance, is based on actual reported operating costs. Bad debt associated with unrecovered STPIS penalties does not relate to a regulated activity and should therefore not be recovered as part of the regulated revenue allowance. | J18: -1411.112
H19: Other revenue relating to non-distribution services | I19: Revenues earned from non distrubition services or assets | J19: -544.90582
C20: Total revenue | D20: =SUM(D7:D15) -> 509921.9258 | E20: =SUM(E7:E15) -> -171736.7627 | F20: =SUM(F7:F15) -> 338185.1631
C21: TUOS costs | D21: 107561.9681 | E21: -107561.9681 | F21: 0 | H21: Pass-through transmission charges | I21: Costs not incurred by the distribution business and only passed through from transmission businesses to retailers. | J21: =E21 -> -107561.9681
C22: Cross boundary costs | D22: 3810.89484 | E22: -3810.89484 | F22: 0 | H22: Pass-through transmission charges | I22: As above | J22: -3810.89484
C23: Jurisdictional Scheme Amounts | D23: 4010.41661 | E23: -4010.41661 | F23: 0 | H23: Pass-through transmission charges | I23: As above | J23: -4010.41661
C24: Maintenance | D24: 32384.60468 | E24: 0 | F24: 32384.60468
C25: Operating Expenses | D25: 66265.67887 | E25: -23884.39085 | F25: 42381.28803
C26: Network Operating Costs | D26: 18169.87799 | E26: -254.79341 | F26: 17915.08458 | H26: Network Operating Costs | I26: Network Operating Costs | J26: =SUM(J27:J28) -> -254.79341
H28: Non-network operating costs transfer to Other Standard Control Services | I28: This is not an adjustment between the statutory and regulatory accounts expenditure. It is merely a product of the reporting templates with an offsetting entry in Other - Standard Control Services . | J28: -254.79341
C29: Billing & Revenue Collection | D29: 4985.72412 | E29: -1341.884 | F29: 3643.84012 | H29: Doubtful Debts - STPIS Penalties Charged | I29: Every year the business receives a reward or penalty in its regulated distribution charges relating to the service target performance incentive scheme (STPIS). The business has chosen to try and recover STPIS penalties from identifiable parties who have caused a STPIS penalty event. In terms of the profit and loss statement, recoverable STPIS penalties are recognised as revenue and a provision for doubtful debts is raised. When STPIS penalties charged to a party are recovered the doubtful debt provision is reduced, and when the STPIS penalties are not recovered they are written off as a bad debt. In terms of RIN reporting to the Australian Energy Regulator, recovered and unrecovered STPIS penalties should be adjusted out of the Statutory Accounts and excluded from the Distribution Business for the following reasons: • The recovery of STPIS penalties is not a regulated activity, therefore it should not be reported as part of the Distribution Business. • The regulated distribution charges are set to recover a certain allowed amount of annual revenue, taking into account the STPIS reward/penalty. There is an annual true up process between reported revenue and revenue allowance to ensure that only the revenue allowance is recovered. If recovered STPIS penalties were included in regulated revenue, then the recovery of STPIS penalties from parties would not offset the penalty that the business incurs via lower distribution charges. • The operating cost allowance of the business, which is a component of the revenue allowance, is based on actual reported operating costs. Bad debt associated with unrecovered STPIS penalties does not relate to a regulated activity and should therefore not be recovered as part of the regulated revenue allowance. | J29: =E29 -> -1341.884
C30: Advertising/Marketing | D30: 5.845876901 | E30: 0 | F30: 5.845876901
C31: Customer Service | D31: 2991.96441 | E31: 0 | F31: 2991.96441
C32: Regulatory | D32: 0 | E32: 0 | F32: 0
C33: Regulatory Reset | D33: -0.00817 | E33: 621.1531588 | F33: 621.1449888 | H33: Price Reset Costs | I33: Price Reset costs incorrectly allocated to a related party. | J33: =E33 -> 621.1531588
C34: IT | D34: 0 | E34: 0 | F34: 0
C35: Licence fee | D35: 36.475 | E35: 0 | F35: 36.475
C36: GSL payments | D36: 38.151 | E36: 0 | F36: 38.151
C37: Non-network alternatives costs | D37: 0 | E37: 0 | F37: 0
C38: Debt raising costs | D38: 0 | E38: 0 | F38: 0
C39: Other - Standard Control Services | D39: 29892.13386 | E39: -25116.24242 | F39: 4775.891436 | H39: Other - Standard Control Services | I39: Other - Standard Control Services | J39: =SUM(J40:J43) -> -25116.24242
H40: Resources Contract Cost | I40: Under the respective resources agreements, we provide staff to other entities. In turn, these entities pay us for wages and salaries (including bonuses, allowances, leave payments, fringe benefits, fringe benefit tax, payroll tax, superannuation payments and work cover payments); operating expenses that are incidental to the provision of the services (including phone calls and stationary); and motor vehicle expenses relating to provision of the services. The pricing of services under the resources services agreement is at cost. There are no margins, management fees, incentive payments or overhead costs associated with the resources agreement. | J40: -25710.68704
H41: Non-network operating costs transfer to Other Standard Control Services | I41: This is not an adjustment between the statutory and regulatory accounts expenditure. It is merely a product of the reporting templates with an offsetting entry in Network Operating Costs. | J41: 254.79341
H42: Capital to Operating adjustment in relation to ACS activities | I42: Certain assets are treated as capex for statutory purposes though not for regulatory purposes. i.e. ACS Capex where revenues are recovered directly from the customer. | J42: 340.12517
H43: Other items relating to non-distribution services | I43: Net expenditures relating to a a related party for non distribution services. | J43: -0.47396
C44: AMI | D44: 6067.90067 | E44: 0 | F44: 6067.90067
C45: Public Lighting | D45: 63.86855093 | E45: 0 | F45: 63.86855093
C46: Alternative control -other | D46: 4013.745771 | E46: 2207.375825 | F46: 6221.121595 | H46: Capital to Operating adjustment in relation to ACS activities | I46: Certain assets are treated as capex for statutory purposes though not for regulatory purposes. i.e. ACS Capex where revenues are recovered directly from the customer. | J46: 2207.375825
C47: Negotiated services | D47: 0 | E47: 0 | F47: 0
C48: Unregulated services | D48: 0 | E48: 0 | F48: 0
C49: Depreciation | D49: 75425.31203 | E49: 27773.32471 | F49: 103198.6367 | H49: The adjustment between statutory and regulatory disclosures relates to the differing methodologies on which depreciation is calculated. | I49: The Depreciation balance has been calculated using the methodology and assumptions consistent with the published AER roll forward model. - For regulatory purposes the asset base is revalued for inflation. - Certain assets are treated as capex for statutory purposes though not for regulatory purposes. i.e. ACS Capex where revenues are recovered directly from the customer. | J49: =E49 -> 27773.32471
C50: Finance Charges | D50: 10776.65121 | E50: -10776.65121 | F50: 0 | H50: Interest expense not relating to the Distribution Business. | I50: Inter company interest calculated on inter company loans which is non-cash. Revenue is not reflective of costs incurred. | J50: =E50 -> -10776.65121
C51: Loss from sale of Fixed Assets | D51: 0 | E51: 16.67665 | F51: 16.67665 | H51: Transfer Proceeds from Sale of Assets to Loss from sale of Fixed Assets | I51: This is not an adjustment between the statutory and regulatory accounts expenditure. It is merely a product of the reporting templates with an offsetting entry in Profit from sale of Fixed Assets | J51: =E51 -> 16.67665
C52: Impairment Losses (Nature) | D52: 0 | E52: 0 | F52: 0
C53: Costs from use of RAB assets for non-SCS purposes | D53: 0 | E53: 0 | F53: 0
C54: Other | D54: 0 | E54: 0 | F54: 0
C55: Profit before Tax (PBT) | D55: =D20-SUM(D21:D25,D49:D54) -> 209686.3995 | E55: =E20-SUM(E21:E25,E49:E54) -> -49482.44249 | F55: =F20-SUM(F21:F25,F49:F54) -> 160203.957
C56: Income Tax Expenses /(Benefit) | D56: 1748.39946 | E56: -412.5926905 | F56: 1335.806769 | H56: Re-apportionment of income tax expense | I56: Income tax expense as reported in the Statutory Accounts has been apportioned based on the ratio of profit before tax disclosed per regulatory segment in the Income Statement. | J56: =E56 -> -412.5926905
C57: Profit after tax | D57: =D55-D56 -> 207938 | E57: -49069.8498 | F57: 158868.1502
D58: 0 | E58: 1.164153218e-10 | F58: 0
J59: =-SUM(J21:J23,J26,J29,J33,J39,J46,J49:J51,J56) -> 122666.913
J60: =-SUM(J8:J12,J15) -> 171736.7627
J61: =J59-J60 -> -49069.8498
J62: =J61-E57 -> 0

Sheet Amendments
B2: Amendments - RIN rationalisation
B4: Information no longer required from Annual Reporting RIN | D4: Reasoning
B5: (workbook/worksheet/table/row-column-cell)
B6: Financial information templates
B7: 1b. Provisions | C7: Entire worksheet | D7: Information in Benchmarking RIN T3.3
B8: 2. Demand and Revenue | C8: T1/T2 Standard control services revenue, yr t,t-1 | D8: Information in Benchmarking RIN Worksheet 2
C9: T5/T6 Public lighting revenue, yr t,t-1 | D9: Information in Benchmarking RIN Worksheet 2
B10: 4a. Capex overheads | C10: Entire worksheets | D10: Information in Category analysis RIN Worksheets 2.10
B11: 4b. Capex O’head margins
B12: 7a. Maintenance O’head | C12: Entire worksheets | D12: Information in Category analysis RIN Worksheets 2.10
B13: 7b. Main O’head margins
B14: 9a. Operating O’head | C14: Entire worksheets | D14: Information in Category analysis RIN Worksheets 2.10
B15: 9b. Opex O’head margins
B16: 10. Overheads allocation | C16: Entire worksheet | D16: Information in Category analysis RIN Worksheet 2.10
B17: 11. Total Overheads | C17: Entire worksheet | D17: Information in Category analysis RIN Worksheet 2.10
B18: 12. Cost categories | C18: Entire worksheet | D18: Information in Category analysis RIN Worksheet 2.12
